{"text_format":"1","workbook":"xlsx","n_sheets":14,"sheets":["Cover","Info","Results","E01","E02","E03","E04","E05","E06","E07","E08","E09","E10","About"],"not_rendered":{"charts":12,"images":38,"macros":1,"external_links":0,"defined_names":15,"comments":0,"pivot_tables":0},"unopened":[],"bounds":{"document_bytes":16777216,"sheet_cells":100000,"rows_first":2000,"rows_last":500,"rows_between":2000,"halvings":0,"cell_chars":16384,"cell_head_chars":4096},"cells_cut":0,"cells_raw":0,"read":"whole","date_system":"1900"}

{"sheet":"Cover","index":0,"n_rows":0,"n_cols":0,"rows_kept":0,"cut":false,"hidden":false,"merged":[]}

{"sheet":"Info","index":1,"n_rows":39,"n_cols":4,"rows_kept":39,"cut":false,"hidden":false,"merged":[[38,1,38,3],[39,1,39,3],[2,1,2,2],[3,1,3,2],[4,1,4,2],[5,1,5,2],[6,1,6,2],[37,1,37,3],[31,1,31,2],[32,1,32,2],[33,1,33,2],[34,1,34,2],[35,1,35,2]]}
[]
[]
[null,"Diese Bewertung",null,"Antwort"]
[null,"Name der Kommune"]
[null,"Art der Kommune"]
[null,"Land"]
[null,"Datum der Bewertung"]
[]
[null,"Kommunen Profil (erforderlich)","Antwort","Datum der Quelle"]
[null,"Titel des höchsten Repräsentanten (z.B. Bürgermeister, etc.)"]
[null,"Gesamtbevölkerung der Kommune"]
[null,"Quadratkilometer der Kommune"]
[null,"Bevölkerungsdichte (pro km²)"]
[null,"Bevölkerung zwischen 15 – 24 (%)"]
[null,"Bevölkerung über 65 (%)"]
[null,"Geschlecht (% weibliche Bevölkerung)"]
[null,"Alphabetisierungsgrad (% der Bevölkerung, die lesen und schreiben können)"]
[null,"Armutsrate (% der Bevölkerung oberhalb der Armutsgrenze)"]
[null,"Durchschnittliches Haushaltseinkommen"]
[null,"Einwohner, die keine Staatsbürger sind (%)"]
[null,"Wahrscheinlichstes Katastrophenrisiko"]
[null,"Schwerwiegendstes Katastrophenrisiko"]
[]
[null,"Kommunen Profil (optional)","Antwort","Datum der Quelle"]
[null,"Gesamtanzahl der Haushalte"]
[null,"Personen pro Haushalt"]
[null,"Lebenshaltungskosten (EUR)"]
[null,"Bruttoinlandsprodukt pro Kopf (EUR)"]
[null,"Gini-Koeffizient"]
[null,"Kommunales Bruttoinlandsprodukt pro Kopf (EUR)"]
[]
[null,"Resilienzteam der Kommunalverwaltung",null,"Antwort"]
[null,"Name der Person, die die Durchführung der Selbstbewertung leitet/koordiniert"]
[null,"Organisation"]
[null,"Kontaktinformationen"]
[null,"Bereitschaft, Ergebnisse zu teilen oder als Beispiel/Fallstudie von UNDRR und Partnern verwendet zu werden:"]
[]
[null,"Akteurs-Informationen"]
[null,"Bitte führen Sie alle Akteure auf, die diese Bewertung unterstützt haben"]

{"sheet":"Results","index":2,"n_rows":357,"n_cols":13,"rows_kept":357,"cut":false,"hidden":false,"merged":[[211,2,211,5],[194,2,194,5],[195,2,195,5],[202,2,202,5],[203,2,203,5],[210,2,210,5],[177,2,177,5],[178,2,178,5],[179,2,179,5],[188,2,188,5],[189,2,189,5],[180,2,180,5],[181,2,181,5],[182,2,182,5],[172,2,172,5],[173,2,173,5],[174,2,174,5],[175,2,175,5],[176,2,176,5],[167,2,167,5],[168,2,168,5],[169,2,169,5],[170,2,170,5],[171,2,171,5],[162,2,162,5],[163,2,163,5],[164,2,164,5],[165,2,165,5],[166,2,166,5],[157,2,157,5],[158,2,158,5],[159,2,159,5],[160,2,160,5],[161,2,161,5],[156,2,156,5],[128,2,128,5],[137,2,137,5],[138,2,138,5],[139,2,139,5],[140,2,140,5],[153,2,153,5],[136,2,136,5],[131,1,131,6],[133,2,133,5],[134,2,134,5],[135,2,135,5],[102,2,102,5],[103,2,103,5],[104,2,104,5],[122,2,122,5],[123,2,123,5],[73,2,73,5],[74,2,74,5],[75,2,75,5],[86,2,86,5],[87,2,87,5],[89,2,89,5],[90,2,90,5],[91,2,91,5],[118,2,118,5],[114,1,114,6],[116,2,116,5],[117,2,117,5],[119,2,119,5],[120,2,120,5],[121,2,121,5],[42,2,42,5],[54,2,54,5],[70,2,70,5],[71,2,71,5],[72,2,72,5],[37,2,37,5],[38,2,38,5],[39,2,39,5],[40,2,40,5],[41,2,41,5],[34,2,34,5],[35,2,35,5],[36,2,36,5],[150,2,150,5],[151,2,151,5],[152,2,152,5],[49,2,49,5],[50,2,50,5],[51,2,51,5],[52,2,52,5],[53,2,53,5],[66,2,66,5],[67,2,67,5],[68,2,68,5],[69,2,69,5],[101,2,101,5],[97,1,97,6],[82,2,82,5],[83,2,83,5],[84,2,84,5],[85,2,85,5],[99,2,99,5],[100,2,100,5],[88,2,88,5],[124,2,124,5],[125,2,125,5],[126,2,126,5],[127,2,127,5],[223,1,223,3],[185,1,185,6],[187,2,187,5],[196,2,196,5],[197,2,197,5],[198,2,198,5],[199,2,199,5],[200,2,200,5],[201,2,201,5],[206,1,206,6],[208,2,208,5],[209,2,209,5],[190,2,190,5],[191,2,191,5],[192,2,192,5],[193,2,193,5],[141,2,141,5],[142,2,142,5],[154,2,154,5],[155,2,155,5]]}
[]
[]
[]
[]
[]
[]
[]
[]
[]
[]
[]
[]
[]
[]
[]
[]
[]
[]
[]
[]
[]
[]
[]
[]
[]
[]
[]
[]
[]
[]
[]
[]
[null,"Essential 01: Resilienz in Entscheidungsprozessen verankern"]
[]
[null,{"$f":"C240","v":"1.1.1"},{"$f":"E240","v":"Risikobetrachtung bei der Planung"},null,null,null,{"$f":"F240","v":0}]
[null,"1.1.2",{"$f":"E241","v":"Beratung bei der Planung"},null,null,null,0]
[null,"1.1.3","Überprüfung der strategischen Pläne",null,null,null,0]
[null,"1.2.1",{"$f":"E243","v":"Planung und Vorbereitung vor dem Ereignis"},null,null,null,0]
[null,"1.2.2",{"$f":"E244","v":"Koordinierung der Ereignisreaktion"},null,null,null,0]
[null,"1.2.3",{"$f":"E245","v":"Kommunale Ressourcen für die Verwaltung der Orga-nisation, Koordination und Beteiligung"},null,null,null,0]
[null,"1.2.4",{"$f":"E246","v":"Identifizierung von physischen/ materiellen Ressourcen"},null,null,null,0]
[null,"1.3.1",{"$f":"E247","v":"Integration der Resilienz gegenüber Katastrophen mit anderen Initiativen"},null,null,null,0]
[null,{"$f":"C248","v":"1.4.1"},{"$f":"E248","v":"Umfang, in den Resilienzdaten einer Kommune öffentlich zugänglich gemacht / ausgetauscht werden"},null,null,null,{"$f":"F248","v":0}]
[]
[]
[]
[]
[null,"Essential 02: Aktuelle und zukünftige Risikoszenarien identifizieren, verstehen und nutzen"]
[]
[null,{"$f":"C249","v":"2.1.1"},{"$f":"E249","v":"Kenntnis der Gefahren (auch Risiken oder Schocks und Belastungen genannt), denen die Kommune ausgesetzt ist, und deren Eintrittswahr-scheinlichkeit"},null,null,null,{"$f":"F249","v":0}]
[null,{"$f":"C250","v":"2.2.1"},{"$f":"E250","v":"Wissen über Exposition und Vulnerabilität"},null,null,null,{"$f":"F250","v":0}]
[null,"2.2.2","Schätzung von Schäden und Verlusten",null,null,null,0]
[null,"2.3.1","Verständnis der kritischen Vermögenswerte und der Verbindungen untereinander",null,null,null,0]
[null,"2.4.1","Gefahrenkarten",null,null,null,0]
[null,"2.5.1",{"$f":"E254","v":"Aktualisierungs-prozess"},null,null,null,0]
[]
[]
[]
[]
[]
[]
[]
[]
[]
[null,"Essential 03: Finanzielle Leistungsfähigkeit für Resilienz stärken"]
[]
[null,{"$f":"C255","v":"3.1.1"},{"$f":"E255","v":"Bewusstsein und Kenntnis aller möglichen Finanzierungs- und Förderungs-methoden, soweit erforderlich. Die Kommune bemüht sich aktiv um Finanzierung und Förderung, soweit erforderlich."},null,null,null,{"$f":"F255","v":0}]
[null,{"$f":"C256","v":"3.2.1"},{"$f":"E256","v":"Angemessenheit der Finanz-planung für alle notwendigen Maßnahmen für die Resilienz gegenüber Katastrophen"},null,null,null,{"$f":"F256","v":0}]
[null,"3.2.2","Kapitalfinan-zierung für langfristige technische und andere Arbeiten, die die in den Grundprinzipien 2 und 8 genannten Szenarien und kritischen Anlagen betreffen",null,null,null,0]
[null,"3.2.3","Operative Finanzierung zur Deckung sämtlicher operativer Kosten von Maßnahmen zur Verbesserung der Resilienz gegenüber Katastrophen",null,null,null,0]
[null,"3.2.4","Notfallfonds für den Wiederaufbau nach einer Katastrophe (kann auch als „Fonds für schlechte Zeiten\" bezeichnet werden)",null,null,null,0]
[null,"3.3.1","Versicherungs-schutz für Wohngebäude",null,null,null,0]
[null,{"$f":"C261","v":"3.3.2"},"Versicherungs-schutz für sonstige Gebäude und Vermögenswerte, inkl. Infrastruktur",null,null,null,0]
[null,{"$f":"C262","v":"3.4.1"},"Anreize für Unternehmen und Organisationen zur Verbesserung der Resilienz gegenüber Katastrophen – Katastrophenpläne, Räumlichkeiten usw.",null,null,null,0]
[null,{"$f":"C263","v":"3.4.2"},"Anreize für Non-Profit-Organisationen zur Verbesserung der Resilienz gegenüber Katastrophen - Katastrophenpläne, Räumlichkeiten usw.",null,null,null,0]
[null,{"$f":"C264","v":"3.4.3"},"Anreize für Hauseigentümer und -eigentümerinnen zur Verbesserung der Resilienz gegenüber Katastrophen - Katastrophenpläne, Räumlichkeiten usw.",null,null,null,0]
[]
[]
[]
[]
[null,"Essential 04: Eine resiliente Stadtentwicklung verfolgen"]
[]
[null,{"$f":"C265","v":"4.1.1"},{"$f":"E265","v":"Potentielle Vertreibung der Bevölkerung"},null,null,null,{"$f":"F265","v":0}]
[null,"4.1.2","Gefährdete Wirtschaftstätigkeit",null,null,null,0]
[null,"4.1.2.1","Gefährdete Wirtschaftstätigkeit",null,null,null,0]
[null,"4.1.3","Gefährdete landwirtschaftliche Flächen",null,null,null,0]
[null,"4.2.1","Städtebauliche Lösungen, die die Resilienz stärken",null,null,null,0]
[null,"4.3.1","Vorhandensein von Bauvorschriften, die auf die in Grundprinzip 2 genannten Risiken ausgerichtet sind.",null,null,null,0]
[null,"4.3.2","Aktualisierungen der Bauvorschriften",null,null,null,0]
[null,"4.3.3","Standards für nachhaltige Gebäudeplanung",null,null,null,0]
[null,"4.4.1","Anwendung der Flächennutzungsplanung",null,null,null,0]
[null,"4.4.2","Anwendung der Bauvorschriften",null,null,null,0]
[]
[]
[]
[]
[]
[null,"Essential 05: Natürliche Puffer sichern, um die Schutzfunktion natürlicher Ökosysteme zu verbessern."]
[]
[null,{"$f":"C275","v":"5.1.1"},{"$f":"E275","v":"Bewusstsein für die Rolle, die Ökosystem-leistungen für die Resilienz gegenüber Katastrophen der Kommune spielen können"},null,null,null,{"$f":"F275","v":0}]
[null,{"$f":"C276","v":"5.1.2"},{"$f":"E276","v":"Gesundheit der Ökosysteme"},null,null,null,{"$f":"F276","v":0}]
[null,"5.2.1","Auswirkungen der Flächennutzung und anderer politischer Maßnahmen auf Ökosystem-leistungen",null,null,null,0]
[null,"5.2.2",{"$f":"E278","v":"Grüne und blaue Infrastruktur wird routinemäßig in kommunale Projekte integriert"},null,null,null,0]
[null,"5.3.1","Identifizierung von kritischen Umweltgütern",null,null,null,0]
[null,"5.3.2","Grenzüber-schreitende Abkommen",null,null,null,0]
[]
[]
[]
[]
[]
[]
[]
[]
[]
[null,"Essential 06: Institutionelle Leistungsfähigkeit für Resilienz stärken"]
[]
[null,{"$f":"C281","v":"6.1.1"},{"$f":"E281","v":"Verfügbarkeit von Fähigkeiten und Erfahrungen im Bereich Resilienz gegenüber Katastrophen - Risikoermittlung, Risikominderung, Planung, Reaktion und Reaktion nach dem Ereignis"},null,null,null,{"$f":"F281","v":0}]
[null,{"$f":"C282","v":"6.1.2"},{"$f":"E282","v":"Verbindungen zum Privatsektor"},null,null,null,{"$f":"F282","v":0}]
[null,"6.1.3","Beteiligung des Versicherungs-sektors",null,null,null,0]
[null,"6.1.4","Verbindungen zur Zivilgesellschaft",null,null,null,0]
[null,"6.2.1","Sensibilisierung der Öffentlichkeit durch Aufklärungs-material bzw. -botschaften",null,null,null,0]
[null,"6.2.1.1","Sensibilisierung der Öffentlichkeit durch Aufklärungs-material bzw. -botschaften",null,null,null,0]
[null,"6.3.1",{"$f":"E287","v":"Ausmaß, in dem Daten über die Resilienz der Kommune mit anderen Organisationen geteilt werden, die mit der Resilienz der Kommune zu tun haben"},null,null,null,0]
[null,"6.3.2","Ausmaß, in dem Daten über die Resilienz der Kommune mit Organisationen der Gemeinschaft und der Öffentlichkeit geteilt werden",null,null,null,0]
[null,"6.4.1","Verfügbarkeit und Inanspruchnahme von Schulungen zum Thema Risiko und Resilienz ",null,null,null,0]
[null,"6.4.1.1","Verfügbarkeit und Inanspruchnahme von Schulungen zum Thema Risiko und Resilienz ",null,null,null,0]
[null,"6.4.2","System/Prozess für die Aktualisierung von Schulungen",null,null,null,0]
[null,"6.5.1",{"$f":"E292","v":"Zugänglichkeit der allgemeinen und beruflichen Bildung für alle Sprachgruppen in der Kommune"},null,null,null,0]
[null,"6.6.1","Bemühung, aus den Erfahrungen anderer Kommunen, Staaten und Ländern (und Unternehmen) zu lernen, um die Resilienz zu erhöhen",null,null,null,0]
[]
[]
[null,"Essential 07:  Gesellschaftliche Kapazitäten für Resilienz verstehen und stärken"]
[]
[null,{"$f":"C294","v":"7.1.1"},{"$f":"E294","v":"Abdeckung von Gemeinschafts- oder „Basis\"-Organisationen in der gesamten Kommune"},null,null,null,{"$f":"F294","v":0}]
[null,{"$f":"C295","v":"7.1.2"},{"$f":"E295","v":"Effektivität des Gemeinschafts-netzes"},null,null,null,{"$f":"F295","v":0}]
[null,"7.1.2.1","Effektivität des Gemeinschafts-netzes",null,null,null,0]
[null,"7.2.1","Soziale Verbundenheit und nachbarschaft-licher Zusammen-halt",null,null,null,0]
[null,"7.2.2",{"$f":"E298","v":"Einbeziehung gefährdeter Gruppen der Bevölkerung"},null,null,null,0]
[null,"7.3.1","Ausmaß, in dem Arbeitgebende als Kommunikations-kanal gegenüber ihren Arbeitnehmenden wirken",null,null,null,0]
[null,"7.3.2","Planung der Betriebskontinui-tät",null,null,null,0]
[null,"7.4.1","Häufigkeit der Einbeziehung",null,null,null,0]
[null,"7.4.2","Einsatz von „Beteiligungs-systemen\" per Mobiltelefon und E-Mail, damit die Bürgerinnen und Bürger vor und nach einer Katastrophe Informationen erhalten und weitergeben können",null,null,null,0]
[null,"7.4.3","Validierung der Wirksamkeit von Bildung",null,null,null,0]
[]
[]
[]
[]
[]
[null,"Essential 08: Resilienz von Infrastrukturen stärken"]
[]
[null,{"$f":"C304","v":"8.1.1"},{"$f":"E304","v":"Eignung physischer Schutzmaßnahmen (Ökosysteme können einen natürlichen Puffer bieten - siehe Grundprinzip 5)"},null,null,null,{"$f":"F304","v":0}]
[null,"8.1.2",{"$f":"E305","v":"Effektivität der Instandhaltung"},null,null,null,{"$f":"F305","v":0}]
[null,"8.2.1","Dauer des zu erwartenden Versorgungsausfalls",null,null,null,0]
[null,"8.2.2","Dauer des zu erwartenden Versorgungs-ausfalls für kritische Einrichtungen (z.B. für Krankenhäuser oder andere kritische Einrichtungen), die durch einen Ausfall der Wasserver-sorgung oder Abwasserent-sorgung gefährdet sind",null,null,null,0]
[null,"8.2.3",{"$f":"E308","v":"Kosten der Wiederher-stellung der Versorgung"},null,null,null,0]
[null,"8.3.1","Dauer des zu erwartenden Versorgungsausfalls",null,null,null,0]
[null,"8.3.2","Dauer des zu erwartenden Versorgungsaus-falls für kritische Einrichtungen, die durch einen Energieausfall gefährdet sind",null,null,null,0]
[null,"8.3.3","Kosten der Wiederher-stellung der Versorgung",null,null,null,0]
[null,"8.4.1","Sicherheit und Stabilität des Gas-systems (falls zutreffend)",null,null,null,{"$f":"IF(I312=TRUE,0,F312)","v":0}]
[null,"8.4.2","Dauer des zu erwartenden Versorgungs-ausfalls",null,null,null,{"$f":"IF(I313=TRUE,0,F313)","v":0}]
[null,"8.4.3","Dauer des zu erwartenden Versorgungs-ausfalls für kritische Einrichtungen, die durch einen Ausfall der Gas-versorgung gefährdet sind",null,null,null,0]
[null,"8.4.4","Kosten der Wiederherstellung der Gasversorgung",null,null,null,0]
[null,"8.5.1","Straßenverkehr – Drohender Versorgungs-ausfall",null,null,null,0]
[null,"8.5.2","Straßenverkehr - Erhalt der kritischen Zufahrts- und Evakuierungs-wege",null,null,null,0]
[null,"8.5.3","Bahnverkehr (falls zutreffend) – Drohender Versorgungs-ausfall im Bahnverkehr ",null,null,null,{"$f":"IF(I318=TRUE,0,F318)","v":0}]
[null,"8.5.4","Luftverkehr (falls zutreffend) – Drohender Versorgungs-ausfall Flughafen",null,null,null,{"$f":"IF(I319=TRUE,0,F319)","v":0}]
[null,"8.5.5","Binnen- und Seeschifffahrt (falls zutreffend) – Drohender Versorgungs-ausfall Hafen",null,null,null,0]
[null,"8.5.6","Andere öffentliche Verkehrsmittel (falls zutreffend) – Drohender Versorgungs-ausfall",null,null,null,0]
[null,"8.5.7","Kosten der Wiederherstellung (alle Verkehrswege)",null,null,null,0]
[null,"8.6.1","Dauer des zu erwartenden Versorgungs-ausfalls",null,null,null,0]
[null,"8.6.2","Dauer des zu erwartenden Versorgungsaus-falls für kritische Einrichtungen, die durch einen Ausfall der Kommunikations-systeme gefährdet sind",null,null,null,0]
[null,"8.6.3","Kosten der Wieder-herstellung",null,null,null,0]
[null,"8.7.1","Strukturelle Sicherheit und Resilienz gegenüber Katastrophen von Einrichtungen des Gesundheits-wesens und Notfallein-richtungen (Personal/Erst-helfende - siehe Grundprinzip 9)",null,null,null,0]
[null,"8.7.1.1","Strukturelle Sicherheit und Resilienz gegenüber Katastrophen von Einrichtungen des Gesundheits-wesens und Notfallein-richtungen (Personal/Erst-helfende - siehe Grundprinzip 9)",null,null,null,0]
[null,"8.7.2","Gesundheits-akten und -daten",null,null,null,0]
[null,"8.7.3","Verfügbarkeit von medizinischer Notfall-versorgung einschließlich Einrichtungen und medizinischer Notversorgung für akute Bedürfnisse",null,null,null,0]
[null,"8.8.1","Strukturelle Sicherheit von Bildungs-einrichtungen",null,null,null,0]
[null,"8.8.2","Unterrichtsausfall",null,null,null,0]
[null,"8.8.3","Bildungsdaten",null,null,null,0]
[null,"8.9.1","Resilienz gegenüber Katastrophen des Strafvollzugs-systems",null,null,null,0]
[null,"8.10.1",{"$f":"E334","v":"Sicherstellung der Kontinuität aller kritischen Verwaltungs-funktionen"},null,null,null,0]
[null,"8.11.1","Sicherstellung der Kontinuität von Computer-systemen und -daten, die für die Aufrechterhaltung der Staats- und Regierungs-funktionen entscheidend sind",null,null,null,0]
[null,"8.11.2","Sicherstellung der Kontinuität von Computersystemen und -daten, die für eine der oben genannten Infrastrukturen kritisch sind",null,null,null,0]
[]
[]
[null,"Essential 09: Effektive Katastrophenbewältigung sicherstellen"]
[]
[null,{"$f":"C337","v":"9.1.1"},{"$f":"E337","v":"Vorhandensein und Wirksamkeit von Frühwarnsystemen "},null,null,null,{"$f":"F337","v":0}]
[null,{"$f":"C338","v":"9.1.1.1"},{"$f":"E338","v":"Reichweite der Warnung"},null,null,null,{"$f":"F338","v":0}]
[null,"9.2.1","Vorhandensein von Notfallplänen, die professionelle Einsatzkräfte und kommunale Organisationen einbeziehen (Für Maßnahmen nach dem Ereignis - siehe Grundprinzip 10)",null,null,null,0]
[null,"9.3.1","Zusätzliche Kapazität der Polizei zur Unterstützung der Ersthelfenden",null,null,null,0]
[null,"9.3.2","Definition des Bedarfs an weiteren Ersthelfenden und anderem Personal sowie deren Verfügbarkeit",null,null,null,0]
[null,"9.4.1","Festlegung des Ausrüstungs- und Versorgungsbedarfs sowie der Verfügbarkeit von Ausrüstung",null,null,null,0]
[null,"9.4.1.1","Festlegung des Ausrüstungs- und Versorgungsbedarfs sowie der Verfügbarkeit von Ausrüstung",null,null,null,0]
[null,"9.5.1","Prognostizierte Aufrechtherhaltung der Lebensmittel-versorgung",null,null,null,0]
[null,"9.5.2","Voraussichtliche Fähigkeit, den Bedarf für Unterkünfte/sichere Orte zu decken",null,null,null,0]
[null,"9.5.2.1",{"$f":"E346","v":"Voraussichtliche Fähigkeit, den Bedarf für Unterkünfte/sichere Orte zu decken"},null,null,null,0]
[null,"9.5.3",{"$f":"E347","v":"Fähigkeit, den voraussichtlichen Bedarf an Grundversorgungs-mitteln zu decken"},null,null,null,0]
[null,"9.5.4","Voraussichtliche Verfügbarkeit von Treibstoff",null,null,null,0]
[null,"9.6.1","Interoperabilität kritischer Systeme und Verfahren mit benachbarten Kommunen/Staaten und anderen Regierungsebenen",null,null,null,0]
[null,"9.6.2","Krisenstab",null,null,null,0]
[null,"9.6.3","Koordinierung der Wiederherstellung nach dem Ereignis",null,null,null,0]
[null,"9.7.1",{"$f":"E352","v":"Übungen und Proben - sowohl für die Öffentlichkeit als auch für Fachleute"},null,null,null,0]
[null,{"$f":"C353","v":"9.7.2"},"Effektivität von Übungen und Schulungen",null,null,null,0]
[]
[]
[null,"Essential 10: Wiederherstellung und besseren Wiederaufbau nach Katastrophen beschleunigen"]
[]
[null,{"$f":"C354","v":"10.1.1"},{"$f":"E354","v":"Planung für die Wiederherstellung nach dem Ereignis und den wirtschaftlichen Neustart"},null,null,null,{"$f":"F354","v":0}]
[null,{"$f":"C355","v":"10.1.2"},{"$f":"E355","v":"Ausmaß der Konsultation der Interessengruppen zu den Plänen für die Wiederherstellung und den Neustart nach einem Ereignis"},null,null,null,{"$f":"F355","v":0}]
[null,"10.1.3",{"$f":"E356","v":"Schattenfinanz-regelungen für die Bearbeitung der eingehenden Hilfe und die Auszahlung der Mittel"},null,null,null,0]
[null,"10.2.1","Lernschleifen",null,null,null,0]
[]
[]
[]
[]
[]
[]
[]
[]
[]
[]
[]
[null,{"$f":"TODAY()","v":"2023-08-02"}]
[]
[]
[null,null,"Label","Name",null,"Essential","TotalScore","MaxScore","Label"]
[null,null,"S1","1. Resilienz in Entscheidungsprozessen verankern",null,"E1",{"$f":"SUMIFS($F$240:$F$1219,$B$240:$B$1219,F228)","v":0},{"$f":"COUNTIFS($B$240:$B$357,F228)*5","v":45},"01",null,{"$f":"SUM(G228:G237)","v":0},{"$f":"K228/K229","v":0},{"$f":"CONCATENATE(SUM(G228:G237),\" / \",SUM(H228:H237))","v":"0 / 590"}]
[null,null,"S2","2. Aktuelle und zukünftige Risikoszenarien identifizieren, verstehen und nutzen",null,"E2",{"$f":"SUMIFS($F$240:$F$1219,$B$240:$B$1219,F229)","v":0},{"$f":"COUNTIFS($B$240:$B$357,F229)*5","v":30},"02",null,{"$f":"SUM(H228:H237)","v":590},{"$f":"1-L228","v":1}]
[null,null,"S3","3. Finanzielle Leistungsfähigkeit für Resilienz stärken",null,"E3",{"$f":"SUMIFS($F$240:$F$1219,$B$240:$B$1219,F230)","v":0},50,"03"]
[null,null,"S4","4. Eine resiliente Stadtentwicklung verfolgen",null,"E4",0,50,"04"]
[null,null,"S5","5. Natürliche Puffer sichern, um die Schutzfunktion natürlicher Ökosysteme zu verbessern.",null,"E5",0,30,"05"]
[null,null,"S6","6. Institutionelle Leistungsfähigkeit für Resilienz stärken",null,"E6",0,65,"06"]
[null,null,"S7","7. Gesellschaftliche Kapazitäten für Resilienz verstehen und stärken",null,"E7",0,50,"07"]
[null,null,"S8","8. Resilienz von Infrastrukturen stärken",null,"E8",{"$f":"SUMIFS($F$240:$F$1219,$B$240:$B$1219,F235)-SUMIFS($F$240:$F$1219,$B$240:$B$1219,F235,$I$240:$I$1219,TRUE)","v":0},{"$f":"(COUNTIFS($B$240:$B$357,F235)-COUNTIFS(I312:I321,TRUE))*5","v":165},"08","Note: This row has different formulas to discount questions that are N/A"]
[null,null,"S9","9. Effektive Katastrophenbewältigung sicherstellen",null,"E9",0,85,"09"]
[null,null,"S10","10. Wiederherstellung und besseren Wiederaufbau nach Katastrophen beschleunigen",null,"E10",0,20,"10"]
[]
[null,"Section","Ref",null,"Question","SelectedScore","ThisScore"]
[null,"E1","1.1.1",null,"Risikobetrachtung bei der Planung",{"$f":"IF(G240=\"\",0,IF(G240=0,0,6-G240))","v":0},{"$f":"OFFSET('E01'!$E$1,MATCH(C240,'E01'!G:G,0)+3,0)","v":0}]
[null,"E1","1.1.2",null,"Beratung bei der Planung",{"$f":"IF(G241=\"\",0,IF(G241=0,0,6-G241))","v":0},{"$f":"OFFSET('E01'!$E$1,MATCH(C241,'E01'!G:G,0)+3,0)","v":0}]
[null,"E1","1.1.3",null,"Überprüfung der strategischen Pläne",0,{"$f":"OFFSET('E01'!$E$1,MATCH(C242,'E01'!G:G,0)+3,0)","v":0}]
[null,"E1","1.2.1",null,"Planung und Vorbereitung vor dem Ereignis",0,{"$f":"OFFSET('E01'!$E$1,MATCH(C243,'E01'!G:G,0)+3,0)","v":0}]
[null,"E1","1.2.2",null,"Koordinierung der Ereignisreaktion",0,{"$f":"OFFSET('E01'!$E$1,MATCH(C244,'E01'!G:G,0)+3,0)","v":0}]
[null,"E1","1.2.3",null,"Kommunale Ressourcen für die Verwaltung der Orga-nisation, Koordination und Beteiligung",0,{"$f":"OFFSET('E01'!$E$1,MATCH(C245,'E01'!G:G,0)+3,0)","v":0}]
[null,"E1","1.2.4",null,"Identifizierung von physischen/ materiellen Ressourcen",0,{"$f":"OFFSET('E01'!$E$1,MATCH(C246,'E01'!G:G,0)+3,0)","v":0}]
[null,"E1","1.3.1",null,"Integration der Resilienz gegenüber Katastrophen mit anderen Initiativen",0,{"$f":"OFFSET('E01'!$E$1,MATCH(C247,'E01'!G:G,0)+3,0)","v":0}]
[null,"E1","1.4.1",null,"Umfang, in den Resilienzdaten einer Kommune öffentlich zugänglich gemacht / ausgetauscht werden",0,{"$f":"OFFSET('E01'!$E$1,MATCH(C248,'E01'!G:G,0)+3,0)","v":0}]
[null,"E2","2.1.1",null,"Kenntnis der Gefahren (auch Risiken oder Schocks und Belastungen genannt), denen die Kommune ausgesetzt ist, und deren Eintrittswahr-scheinlichkeit",0,{"$f":"OFFSET('E02'!$E$1,MATCH(C249,'E02'!G:G,0)+3,0)","v":0}]
[null,"E2","2.2.1",null,"Wissen über Exposition und Vulnerabilität",0,{"$f":"OFFSET('E02'!$E$1,MATCH(C250,'E02'!G:G,0)+3,0)","v":0}]
[null,"E2","2.2.2",null,"Schätzung von Schäden und Verlusten",0,{"$f":"OFFSET('E02'!$E$1,MATCH(C251,'E02'!G:G,0)+3,0)","v":0}]
[null,"E2","2.3.1",null,"Verständnis der kritischen Vermögenswerte und der Verbindungen untereinander",0,{"$f":"OFFSET('E02'!$E$1,MATCH(C252,'E02'!G:G,0)+3,0)","v":0}]
[null,"E2","2.4.1",null,"Gefahrenkarten",0,{"$f":"OFFSET('E02'!$E$1,MATCH(C253,'E02'!G:G,0)+3,0)","v":0}]
[null,"E2","2.5.1",null,"Aktualisierungs-prozess",0,{"$f":"OFFSET('E02'!$E$1,MATCH(C254,'E02'!G:G,0)+3,0)","v":0}]
[null,"E3","3.1.1",null,"Bewusstsein und Kenntnis aller möglichen Finanzierungs- und Förderungs-methoden, soweit erforderlich. Die Kommune bemüht sich aktiv um Finanzierung und Förderung, soweit erforderlich.",0,{"$f":"OFFSET('E03'!$E$1,MATCH(C255,'E03'!G:G,0)+3,0)","v":0}]
[null,"E3","3.2.1",null,"Angemessenheit der Finanz-planung für alle notwendigen Maßnahmen für die Resilienz gegenüber Katastrophen",0,{"$f":"OFFSET('E03'!$E$1,MATCH(C256,'E03'!G:G,0)+3,0)","v":0}]
[null,"E3","3.2.2",null,"Kapitalfinan-zierung für langfristige technische und andere Arbeiten, die die in den Grundprinzipien 2 und 8 genannten Szenarien und kritischen Anlagen betreffen",0,{"$f":"OFFSET('E03'!$E$1,MATCH(C257,'E03'!G:G,0)+3,0)","v":0}]
[null,"E3","3.2.3",null,"Operative Finanzierung zur Deckung sämtlicher operativer Kosten von Maßnahmen zur Verbesserung der Resilienz gegenüber Katastrophen",0,{"$f":"OFFSET('E03'!$E$1,MATCH(C258,'E03'!G:G,0)+3,0)","v":0}]
[null,"E3","3.2.4",null,"Notfallfonds für den Wiederaufbau nach einer Katastrophe (kann auch als „Fonds für schlechte Zeiten\" bezeichnet werden)",0,{"$f":"OFFSET('E03'!$E$1,MATCH(C259,'E03'!G:G,0)+3,0)","v":0}]
[null,"E3","3.3.1",null,"Versicherungs-schutz für Wohngebäude",0,{"$f":"OFFSET('E03'!$E$1,MATCH(C260,'E03'!G:G,0)+3,0)","v":0}]
[null,"E3","3.3.2",null,"Versicherungs-schutz für sonstige Gebäude und Vermögenswerte, inkl. Infrastruktur",0,{"$f":"OFFSET('E03'!$E$1,MATCH(C261,'E03'!G:G,0)+3,0)","v":0}]
[null,"E3","3.4.1",null,"Anreize für Unternehmen und Organisationen zur Verbesserung der Resilienz gegenüber Katastrophen – Katastrophenpläne, Räumlichkeiten usw.",0,{"$f":"OFFSET('E03'!$E$1,MATCH(C262,'E03'!G:G,0)+3,0)","v":0}]
[null,"E3","3.4.2",null,"Anreize für Non-Profit-Organisationen zur Verbesserung der Resilienz gegenüber Katastrophen - Katastrophenpläne, Räumlichkeiten usw.",0,{"$f":"OFFSET('E03'!$E$1,MATCH(C263,'E03'!G:G,0)+3,0)","v":0}]
[null,"E3","3.4.3",null,"Anreize für Hauseigentümer und -eigentümerinnen zur Verbesserung der Resilienz gegenüber Katastrophen - Katastrophenpläne, Räumlichkeiten usw.",0,{"$f":"OFFSET('E03'!$E$1,MATCH(C264,'E03'!G:G,0)+3,0)","v":0}]
[null,"E4","4.1.1",null,"Potentielle Vertreibung der Bevölkerung",0,{"$f":"OFFSET('E04'!$E$1,MATCH(C265,'E04'!G:G,0)+3,0)","v":0}]
[null,"E4","4.1.2",null,"Gefährdete Wirtschaftstätigkeit",0,{"$f":"OFFSET('E04'!$E$1,MATCH(C266,'E04'!G:G,0)+3,0)","v":0}]
[null,"E4","4.1.2.1",null,"Gefährdete Wirtschaftstätigkeit",0,{"$f":"OFFSET('E04'!$E$1,MATCH(C267,'E04'!G:G,0)+3,0)","v":0}]
[null,"E4","4.1.3",null,"Gefährdete landwirtschaftliche Flächen",0,{"$f":"OFFSET('E04'!$E$1,MATCH(C268,'E04'!G:G,0)+3,0)","v":0}]
[null,"E4","4.2.1",null,"Städtebauliche Lösungen, die die Resilienz stärken",0,{"$f":"OFFSET('E04'!$E$1,MATCH(C269,'E04'!G:G,0)+3,0)","v":0}]
[null,"E4","4.3.1",null,"Vorhandensein von Bauvorschriften, die auf die in Grundprinzip 2 genannten Risiken ausgerichtet sind.",0,{"$f":"OFFSET('E04'!$E$1,MATCH(C270,'E04'!G:G,0)+3,0)","v":0}]
[null,"E4","4.3.2",null,"Aktualisierungen der Bauvorschriften",0,{"$f":"OFFSET('E04'!$E$1,MATCH(C271,'E04'!G:G,0)+3,0)","v":0}]
[null,"E4","4.3.3",null,"Standards für nachhaltige Gebäudeplanung",0,{"$f":"OFFSET('E04'!$E$1,MATCH(C272,'E04'!G:G,0)+3,0)","v":0}]
[null,"E4","4.4.1",null,"Anwendung der Flächennutzungsplanung",0,{"$f":"OFFSET('E04'!$E$1,MATCH(C273,'E04'!G:G,0)+3,0)","v":0}]
[null,"E4","4.4.2",null,"Anwendung der Bauvorschriften",0,{"$f":"OFFSET('E04'!$E$1,MATCH(C274,'E04'!G:G,0)+3,0)","v":0}]
[null,"E5","5.1.1",null,"Bewusstsein für die Rolle, die Ökosystem-leistungen für die Resilienz gegenüber Katastrophen der Kommune spielen können",0,{"$f":"OFFSET('E05'!$E$1,MATCH(C275,'E05'!G:G,0)+3,0)","v":0}]
[null,"E5","5.1.2",null,"Gesundheit der Ökosysteme",0,{"$f":"OFFSET('E05'!$E$1,MATCH(C276,'E05'!G:G,0)+3,0)","v":0}]
[null,"E5","5.2.1",null,"Auswirkungen der Flächennutzung und anderer politischer Maßnahmen auf Ökosystem-leistungen",0,{"$f":"OFFSET('E05'!$E$1,MATCH(C277,'E05'!G:G,0)+3,0)","v":0}]
[null,"E5","5.2.2",null,"Grüne und blaue Infrastruktur wird routinemäßig in kommunale Projekte integriert",0,{"$f":"OFFSET('E05'!$E$1,MATCH(C278,'E05'!G:G,0)+3,0)","v":0}]
[null,"E5","5.3.1",null,"Identifizierung von kritischen Umweltgütern",0,{"$f":"OFFSET('E05'!$E$1,MATCH(C279,'E05'!G:G,0)+3,0)","v":0}]
[null,"E5","5.3.2",null,"Grenzüber-schreitende Abkommen",0,{"$f":"OFFSET('E05'!$E$1,MATCH(C280,'E05'!G:G,0)+3,0)","v":0}]
[null,"E6","6.1.1",null,"Verfügbarkeit von Fähigkeiten und Erfahrungen im Bereich Resilienz gegenüber Katastrophen - Risikoermittlung, Risikominderung, Planung, Reaktion und Reaktion nach dem Ereignis",0,{"$f":"OFFSET('E06'!$E$1,MATCH(C281,'E06'!G:G,0)+3,0)","v":0}]
[null,"E6","6.1.2",null,"Verbindungen zum Privatsektor",0,{"$f":"OFFSET('E06'!$E$1,MATCH(C282,'E06'!G:G,0)+3,0)","v":0}]
[null,"E6","6.1.3",null,"Beteiligung des Versicherungs-sektors",0,{"$f":"OFFSET('E06'!$E$1,MATCH(C283,'E06'!G:G,0)+3,0)","v":0}]
[null,"E6","6.1.4",null,"Verbindungen zur Zivilgesellschaft",0,{"$f":"OFFSET('E06'!$E$1,MATCH(C284,'E06'!G:G,0)+3,0)","v":0}]
[null,"E6","6.2.1",null,"Sensibilisierung der Öffentlichkeit durch Aufklärungs-material bzw. -botschaften",0,{"$f":"OFFSET('E06'!$E$1,MATCH(C285,'E06'!G:G,0)+3,0)","v":0}]
[null,"E6","6.2.1.1",null,"Sensibilisierung der Öffentlichkeit durch Aufklärungs-material bzw. -botschaften",0,{"$f":"OFFSET('E06'!$E$1,MATCH(C286,'E06'!G:G,0)+3,0)","v":0}]
[null,"E6","6.3.1",null,"Ausmaß, in dem Daten über die Resilienz der Kommune mit anderen Organisationen geteilt werden, die mit der Resilienz der Kommune zu tun haben",0,{"$f":"OFFSET('E06'!$E$1,MATCH(C287,'E06'!G:G,0)+3,0)","v":0}]
[null,"E6","6.3.2",null,"Ausmaß, in dem Daten über die Resilienz der Kommune mit Organisationen der Gemeinschaft und der Öffentlichkeit geteilt werden",0,{"$f":"OFFSET('E06'!$E$1,MATCH(C288,'E06'!G:G,0)+3,0)","v":0}]
[null,"E6","6.4.1",null,"Verfügbarkeit und Inanspruchnahme von Schulungen zum Thema Risiko und Resilienz ",0,{"$f":"OFFSET('E06'!$E$1,MATCH(C289,'E06'!G:G,0)+3,0)","v":0}]
[null,"E6","6.4.1.1",null,"Verfügbarkeit und Inanspruchnahme von Schulungen zum Thema Risiko und Resilienz ",0,{"$f":"OFFSET('E06'!$E$1,MATCH(C290,'E06'!G:G,0)+3,0)","v":0}]
[null,"E6","6.4.2",null,"System/Prozess für die Aktualisierung von Schulungen",0,{"$f":"OFFSET('E06'!$E$1,MATCH(C291,'E06'!G:G,0)+3,0)","v":0}]
[null,"E6","6.5.1",null,"Zugänglichkeit der allgemeinen und beruflichen Bildung für alle Sprachgruppen in der Kommune",0,{"$f":"OFFSET('E06'!$E$1,MATCH(C292,'E06'!G:G,0)+3,0)","v":0}]
[null,"E6","6.6.1",null,"Bemühung, aus den Erfahrungen anderer Kommunen, Staaten und Ländern (und Unternehmen) zu lernen, um die Resilienz zu erhöhen",0,{"$f":"OFFSET('E06'!$E$1,MATCH(C293,'E06'!G:G,0)+3,0)","v":0}]
[null,"E7","7.1.1",null,"Abdeckung von Gemeinschafts- oder „Basis\"-Organisationen in der gesamten Kommune",0,{"$f":"OFFSET('E07'!$E$1,MATCH(C294,'E07'!G:G,0)+3,0)","v":0}]
[null,"E7","7.1.2",null,"Effektivität des Gemeinschafts-netzes",0,{"$f":"OFFSET('E07'!$E$1,MATCH(C295,'E07'!G:G,0)+3,0)","v":0}]
[null,"E7","7.1.2.1",null,"Effektivität des Gemeinschafts-netzes",0,{"$f":"OFFSET('E07'!$E$1,MATCH(C296,'E07'!G:G,0)+3,0)","v":0}]
[null,"E7","7.2.1",null,"Soziale Verbundenheit und nachbarschaft-licher Zusammen-halt",0,{"$f":"OFFSET('E07'!$E$1,MATCH(C297,'E07'!G:G,0)+3,0)","v":0}]
[null,"E7","7.2.2",null,"Einbeziehung gefährdeter Gruppen der Bevölkerung",0,{"$f":"OFFSET('E07'!$E$1,MATCH(C298,'E07'!G:G,0)+3,0)","v":0}]
[null,"E7","7.3.1",null,"Ausmaß, in dem Arbeitgebende als Kommunikations-kanal gegenüber ihren Arbeitnehmenden wirken",0,{"$f":"OFFSET('E07'!$E$1,MATCH(C299,'E07'!G:G,0)+3,0)","v":0}]
[null,"E7","7.3.2",null,"Planung der Betriebskontinui-tät",0,{"$f":"OFFSET('E07'!$E$1,MATCH(C300,'E07'!G:G,0)+3,0)","v":0}]
[null,"E7","7.4.1",null,"Häufigkeit der Einbeziehung",0,{"$f":"OFFSET('E07'!$E$1,MATCH(C301,'E07'!G:G,0)+3,0)","v":0}]
[null,"E7","7.4.2",null,"Einsatz von „Beteiligungs-systemen\" per Mobiltelefon und E-Mail, damit die Bürgerinnen und Bürger vor und nach einer Katastrophe Informationen erhalten und weitergeben können",0,{"$f":"OFFSET('E07'!$E$1,MATCH(C302,'E07'!G:G,0)+3,0)","v":0}]
[null,"E7","7.4.3",null,"Validierung der Wirksamkeit von Bildung",0,{"$f":"OFFSET('E07'!$E$1,MATCH(C303,'E07'!G:G,0)+3,0)","v":0}]
[null,"E8","8.1.1",null,"Eignung physischer Schutzmaßnahmen (Ökosysteme können einen natürlichen Puffer bieten - siehe Grundprinzip 5)",0,{"$f":"OFFSET('E08'!$E$1,MATCH(C304,'E08'!G:G,0)+3,0)","v":0}]
[null,"E8","8.1.2",null,"Effektivität der Instandhaltung",{"$f":"IF(G305=\"\",0,IF(G305=0,0,6-G305))","v":0},{"$f":"OFFSET('E08'!$E$1,MATCH(C305,'E08'!G:G,0)+3,0)","v":0}]
[null,"E8","8.2.1",null,"Dauer des zu erwartenden Versorgungsausfalls",0,{"$f":"OFFSET('E08'!$E$1,MATCH(C306,'E08'!G:G,0)+3,0)","v":0}]
[null,"E8","8.2.2",null,"Dauer des zu erwartenden Versorgungs-ausfalls für kritische Einrichtungen (z.B. für Krankenhäuser oder andere kritische Einrichtungen), die durch einen Ausfall der Wasserver-sorgung oder Abwasserent-sorgung gefährdet sind",0,{"$f":"OFFSET('E08'!$E$1,MATCH(C307,'E08'!G:G,0)+3,0)","v":0}]
[null,"E8","8.2.3",null,"Kosten der Wiederher-stellung der Versorgung",0,{"$f":"OFFSET('E08'!$E$1,MATCH(C308,'E08'!G:G,0)+3,0)","v":0}]
[null,"E8","8.3.1",null,"Dauer des zu erwartenden Versorgungsausfalls",0,{"$f":"OFFSET('E08'!$E$1,MATCH(C309,'E08'!G:G,0)+3,0)","v":0}]
[null,"E8","8.3.2",null,"Dauer des zu erwartenden Versorgungsaus-falls für kritische Einrichtungen, die durch einen Energieausfall gefährdet sind",0,{"$f":"OFFSET('E08'!$E$1,MATCH(C310,'E08'!G:G,0)+3,0)","v":0}]
[null,"E8","8.3.3",null,"Kosten der Wiederher-stellung der Versorgung",0,{"$f":"OFFSET('E08'!$E$1,MATCH(C311,'E08'!G:G,0)+3,0)","v":0}]
[null,"E8","8.4.1",null,"Sicherheit und Stabilität des Gas-systems (falls zutreffend)",0,{"$f":"OFFSET('E08'!$E$1,MATCH(C312,'E08'!G:G,0)+3,0)","v":0},"NA?",{"$f":"OFFSET('E08'!$E$1,MATCH(C312,'E08'!G:G,0)-1,0)","v":0}]
[null,"E8","8.4.2",null,"Dauer des zu erwartenden Versorgungs-ausfalls",0,{"$f":"OFFSET('E08'!$E$1,MATCH(C313,'E08'!G:G,0)+3,0)","v":0},"NA?",{"$f":"OFFSET('E08'!$E$1,MATCH(C313,'E08'!G:G,0)-1,0)","v":0}]
[null,"E8","8.4.3",null,"Dauer des zu erwartenden Versorgungs-ausfalls für kritische Einrichtungen, die durch einen Ausfall der Gas-versorgung gefährdet sind",0,{"$f":"OFFSET('E08'!$E$1,MATCH(C314,'E08'!G:G,0)+3,0)","v":0},"NA?",{"$f":"OFFSET('E08'!$E$1,MATCH(C314,'E08'!G:G,0)-1,0)","v":0}]
[null,"E8","8.4.4",null,"Kosten der Wiederherstellung der Gasversorgung",0,{"$f":"OFFSET('E08'!$E$1,MATCH(C315,'E08'!G:G,0)+3,0)","v":0},"NA?",{"$f":"OFFSET('E08'!$E$1,MATCH(C315,'E08'!G:G,0)-1,0)","v":0}]
[null,"E8","8.5.1",null,"Straßenverkehr – Drohender Versorgungs-ausfall",0,{"$f":"OFFSET('E08'!$E$1,MATCH(C316,'E08'!G:G,0)+3,0)","v":0}]
[null,"E8","8.5.2",null,"Straßenverkehr - Erhalt der kritischen Zufahrts- und Evakuierungs-wege",0,{"$f":"OFFSET('E08'!$E$1,MATCH(C317,'E08'!G:G,0)+3,0)","v":0}]
[null,"E8","8.5.3",null,"Bahnverkehr (falls zutreffend) – Drohender Versorgungs-ausfall im Bahnverkehr ",0,{"$f":"OFFSET('E08'!$E$1,MATCH(C318,'E08'!G:G,0)+3,0)","v":0},"NA?",{"$f":"OFFSET('E08'!$E$1,MATCH(C318,'E08'!G:G,0)-1,0)","v":0}]
[null,"E8","8.5.4",null,"Luftverkehr (falls zutreffend) – Drohender Versorgungs-ausfall Flughafen",0,{"$f":"OFFSET('E08'!$E$1,MATCH(C319,'E08'!G:G,0)+3,0)","v":0},"NA?",{"$f":"OFFSET('E08'!$E$1,MATCH(C319,'E08'!G:G,0)-1,0)","v":0}]
[null,"E8","8.5.5",null,"Binnen- und Seeschifffahrt (falls zutreffend) – Drohender Versorgungs-ausfall Hafen",0,{"$f":"OFFSET('E08'!$E$1,MATCH(C320,'E08'!G:G,0)+3,0)","v":0},"NA?",{"$f":"OFFSET('E08'!$E$1,MATCH(C320,'E08'!G:G,0)-1,0)","v":0}]
[null,"E8","8.5.6",null,"Andere öffentliche Verkehrsmittel (falls zutreffend) – Drohender Versorgungs-ausfall",0,{"$f":"OFFSET('E08'!$E$1,MATCH(C321,'E08'!G:G,0)+3,0)","v":0},"NA?",{"$f":"OFFSET('E08'!$E$1,MATCH(C321,'E08'!G:G,0)-1,0)","v":0}]
[null,"E8","8.5.7",null,"Kosten der Wiederherstellung (alle Verkehrswege)",0,{"$f":"OFFSET('E08'!$E$1,MATCH(C322,'E08'!G:G,0)+3,0)","v":0}]
[null,"E8","8.6.1",null,"Dauer des zu erwartenden Versorgungs-ausfalls",0,{"$f":"OFFSET('E08'!$E$1,MATCH(C323,'E08'!G:G,0)+3,0)","v":0}]
[null,"E8","8.6.2",null,"Dauer des zu erwartenden Versorgungsaus-falls für kritische Einrichtungen, die durch einen Ausfall der Kommunikations-systeme gefährdet sind",0,{"$f":"OFFSET('E08'!$E$1,MATCH(C324,'E08'!G:G,0)+3,0)","v":0}]
[null,"E8","8.6.3",null,"Kosten der Wieder-herstellung",0,{"$f":"OFFSET('E08'!$E$1,MATCH(C325,'E08'!G:G,0)+3,0)","v":0}]
[null,"E8","8.7.1",null,"Strukturelle Sicherheit und Resilienz gegenüber Katastrophen von Einrichtungen des Gesundheits-wesens und Notfallein-richtungen (Personal/Erst-helfende - siehe Grundprinzip 9)",0,{"$f":"OFFSET('E08'!$E$1,MATCH(C326,'E08'!G:G,0)+3,0)","v":0}]
[null,"E8","8.7.1.1",null,"Strukturelle Sicherheit und Resilienz gegenüber Katastrophen von Einrichtungen des Gesundheits-wesens und Notfallein-richtungen (Personal/Erst-helfende - siehe Grundprinzip 9)",0,{"$f":"OFFSET('E08'!$E$1,MATCH(C327,'E08'!G:G,0)+3,0)","v":0}]
[null,"E8","8.7.2",null,"Gesundheits-akten und -daten",0,{"$f":"OFFSET('E08'!$E$1,MATCH(C328,'E08'!G:G,0)+3,0)","v":0}]
[null,"E8","8.7.3",null,"Verfügbarkeit von medizinischer Notfall-versorgung einschließlich Einrichtungen und medizinischer Notversorgung für akute Bedürfnisse",0,{"$f":"OFFSET('E08'!$E$1,MATCH(C329,'E08'!G:G,0)+3,0)","v":0}]
[null,"E8","8.8.1",null,"Strukturelle Sicherheit von Bildungs-einrichtungen",0,{"$f":"OFFSET('E08'!$E$1,MATCH(C330,'E08'!G:G,0)+3,0)","v":0}]
[null,"E8","8.8.2",null,"Unterrichtsausfall",0,{"$f":"OFFSET('E08'!$E$1,MATCH(C331,'E08'!G:G,0)+3,0)","v":0}]
[null,"E8","8.8.3",null,"Bildungsdaten",0,{"$f":"OFFSET('E08'!$E$1,MATCH(C332,'E08'!G:G,0)+3,0)","v":0}]
[null,"E8","8.9.1",null,"Resilienz gegenüber Katastrophen des Strafvollzugs-systems",0,{"$f":"OFFSET('E08'!$E$1,MATCH(C333,'E08'!G:G,0)+3,0)","v":0}]
[null,"E8","8.10.1",null,"Sicherstellung der Kontinuität aller kritischen Verwaltungs-funktionen",0,{"$f":"OFFSET('E08'!$E$1,MATCH(C334,'E08'!G:G,0)+3,0)","v":0}]
[null,"E8","8.11.1",null,"Sicherstellung der Kontinuität von Computer-systemen und -daten, die für die Aufrechterhaltung der Staats- und Regierungs-funktionen entscheidend sind",0,{"$f":"OFFSET('E08'!$E$1,MATCH(C335,'E08'!G:G,0)+3,0)","v":0}]
[null,"E8","8.11.2",null,"Sicherstellung der Kontinuität von Computersystemen und -daten, die für eine der oben genannten Infrastrukturen kritisch sind",0,{"$f":"OFFSET('E08'!$E$1,MATCH(C336,'E08'!G:G,0)+3,0)","v":0}]
[null,"E9","9.1.1",null,"Vorhandensein und Wirksamkeit von Frühwarnsystemen ",0,{"$f":"OFFSET('E09'!$E$1,MATCH(C337,'E09'!G:G,0)+3,0)","v":0}]
[null,"E9","9.1.1.1",null,"Reichweite der Warnung",0,{"$f":"OFFSET('E09'!$E$1,MATCH(C338,'E09'!G:G,0)+3,0)","v":0}]
[null,"E9","9.2.1",null,"Vorhandensein von Notfallplänen, die professionelle Einsatzkräfte und kommunale Organisationen einbeziehen (Für Maßnahmen nach dem Ereignis - siehe Grundprinzip 10)",0,{"$f":"OFFSET('E09'!$E$1,MATCH(C339,'E09'!G:G,0)+3,0)","v":0}]
[null,"E9","9.3.1",null,"Zusätzliche Kapazität der Polizei zur Unterstützung der Ersthelfenden",0,{"$f":"OFFSET('E09'!$E$1,MATCH(C340,'E09'!G:G,0)+3,0)","v":0}]
[null,"E9","9.3.2",null,"Definition des Bedarfs an weiteren Ersthelfenden und anderem Personal sowie deren Verfügbarkeit",0,{"$f":"OFFSET('E09'!$E$1,MATCH(C341,'E09'!G:G,0)+3,0)","v":0}]
[null,"E9","9.4.1",null,"Festlegung des Ausrüstungs- und Versorgungsbedarfs sowie der Verfügbarkeit von Ausrüstung",0,{"$f":"OFFSET('E09'!$E$1,MATCH(C342,'E09'!G:G,0)+3,0)","v":0}]
[null,"E9","9.4.1.1",null,"Festlegung des Ausrüstungs- und Versorgungsbedarfs sowie der Verfügbarkeit von Ausrüstung",0,{"$f":"OFFSET('E09'!$E$1,MATCH(C343,'E09'!G:G,0)+3,0)","v":0}]
[null,"E9","9.5.1",null,"Prognostizierte Aufrechtherhaltung der Lebensmittel-versorgung",0,{"$f":"OFFSET('E09'!$E$1,MATCH(C344,'E09'!G:G,0)+3,0)","v":0}]
[null,"E9","9.5.2",null,"Voraussichtliche Fähigkeit, den Bedarf für Unterkünfte/sichere Orte zu decken",0,{"$f":"OFFSET('E09'!$E$1,MATCH(C345,'E09'!G:G,0)+3,0)","v":0}]
[null,"E9","9.5.2.1",null,"Voraussichtliche Fähigkeit, den Bedarf für Unterkünfte/sichere Orte zu decken",0,{"$f":"OFFSET('E09'!$E$1,MATCH(C346,'E09'!G:G,0)+3,0)","v":0}]
[null,"E9","9.5.3",null,"Fähigkeit, den voraussichtlichen Bedarf an Grundversorgungs-mitteln zu decken",0,{"$f":"OFFSET('E09'!$E$1,MATCH(C347,'E09'!G:G,0)+3,0)","v":0}]
[null,"E9","9.5.4",null,"Voraussichtliche Verfügbarkeit von Treibstoff",0,{"$f":"OFFSET('E09'!$E$1,MATCH(C348,'E09'!G:G,0)+3,0)","v":0}]
[null,"E9","9.6.1",null,"Interoperabilität kritischer Systeme und Verfahren mit benachbarten Kommunen/Staaten und anderen Regierungsebenen",0,{"$f":"OFFSET('E09'!$E$1,MATCH(C349,'E09'!G:G,0)+3,0)","v":0}]
[null,"E9","9.6.2",null,"Krisenstab",0,{"$f":"OFFSET('E09'!$E$1,MATCH(C350,'E09'!G:G,0)+3,0)","v":0}]
[null,"E9","9.6.3",null,"Koordinierung der Wiederherstellung nach dem Ereignis",0,{"$f":"OFFSET('E09'!$E$1,MATCH(C351,'E09'!G:G,0)+3,0)","v":0}]
[null,"E9","9.7.1",null,"Übungen und Proben - sowohl für die Öffentlichkeit als auch für Fachleute",0,{"$f":"OFFSET('E09'!$E$1,MATCH(C352,'E09'!G:G,0)+3,0)","v":0}]
[null,"E9","9.7.2",null,"Effektivität von Übungen und Schulungen",0,{"$f":"OFFSET('E09'!$E$1,MATCH(C353,'E09'!G:G,0)+3,0)","v":0}]
[null,"E10","10.1.1",null,"Planung für die Wiederherstellung nach dem Ereignis und den wirtschaftlichen Neustart",0,{"$f":"OFFSET('E10'!$E$1,MATCH(C354,'E10'!G:G,0)+3,0)","v":0}]
[null,"E10","10.1.2",null,"Ausmaß der Konsultation der Interessengruppen zu den Plänen für die Wiederherstellung und den Neustart nach einem Ereignis",0,{"$f":"OFFSET('E10'!$E$1,MATCH(C355,'E10'!G:G,0)+3,0)","v":0}]
[null,"E10","10.1.3",null,"Schattenfinanz-regelungen für die Bearbeitung der eingehenden Hilfe und die Auszahlung der Mittel",0,{"$f":"OFFSET('E10'!$E$1,MATCH(C356,'E10'!G:G,0)+3,0)","v":0}]
[null,"E10","10.2.1",null,"Lernschleifen",0,{"$f":"OFFSET('E10'!$E$1,MATCH(C357,'E10'!G:G,0)+3,0)","v":0}]

{"sheet":"E01","index":3,"n_rows":664,"n_cols":7,"rows_kept":664,"cut":false,"hidden":false,"merged":[[33,2,33,3],[18,2,18,3],[6,2,6,3],[5,2,5,3],[7,2,7,3],[8,2,13,3],[19,2,19,3],[20,2,20,3],[21,2,26,3],[31,2,31,3],[32,2,32,3],[34,2,39,3],[46,2,46,3],[47,2,47,3],[48,2,48,3],[49,2,54,3],[59,2,59,3],[60,2,60,3],[61,2,61,3],[62,2,67,3],[72,2,72,3],[73,2,73,3],[74,2,74,3],[75,2,80,3],[85,2,85,3],[86,2,86,3],[87,2,87,3],[88,2,93,3],[100,2,100,3],[101,2,101,3],[102,2,102,3],[103,2,108,3],[115,2,115,3],[116,2,116,3],[117,2,117,3],[118,2,123,3]]}
[]
[null,null,null,null,null,null,""]
[null,"1.1 - Planung",null,null,null,null,"1.1"]
[null,null,null,null,null,null,""]
[null,"1.1.1 - Risikobetrachtung bei der Planung",null,null,null,null,"1.1.1"]
[null,"Frage / Beurteilungsbereich","Kommentare",null,null,null,""]
[null,null,null,null,null,null,""]
[null,"Empfohlene – nicht verbindliche – Bewertungsskala","Stellen Sie Nachweise bereit (Erklärungen etc.)",null,null,null,""]
[null,null,null,null,null,{"$f":"IF(E9=1,TRUE,FALSE)","v":false},""]
[null,null,null,null,null,{"$f":"IF(E9=2,TRUE,FALSE)","v":false},""]
[null,null,null,null,null,{"$f":"IF(E9=3,TRUE,FALSE)","v":false},""]
[null,null,null,null,null,{"$f":"IF(E9=4,TRUE,FALSE)","v":false},""]
[null,null,null,null,null,{"$f":"IF(E9=5,TRUE,FALSE)","v":false},""]
[null,null,null,null,null,{"$f":"IF(E9=6,TRUE,FALSE)","v":false},""]
[null,"Maßnahmen um maximale Resilienz zu erreichen","Verantwortliche Stelle","Zeitraum",null,null,""]
[null,null,null,null,null,null,""]
[null,null,null,null,null,null,""]
[null,"1.1.2 - Beratung bei der Planung",null,null,null,null,"1.1.2"]
[null,"Frage / Beurteilungsbereich","Kommentare",null,null,null,""]
[null,null,null,null,null,null,""]
[null,"Empfohlene – nicht verbindliche – Bewertungsskala","Stellen Sie Nachweise bereit (Erklärungen etc.)",null,null,null,""]
[null,null,null,null,null,{"$f":"IF(E22=1,TRUE,FALSE)","v":false},""]
[null,null,null,null,null,{"$f":"IF(E22=2,TRUE,FALSE)","v":false},""]
[null,null,null,null,null,{"$f":"IF(E22=3,TRUE,FALSE)","v":false},""]
[null,null,null,null,null,{"$f":"IF(E22=4,TRUE,FALSE)","v":false},""]
[null,null,null,null,null,{"$f":"IF(E22=5,TRUE,FALSE)","v":false},""]
[null,null,null,null,null,{"$f":"IF(E22=6,TRUE,FALSE)","v":false},""]
[null,"Maßnahmen um maximale Resilienz zu erreichen","Verantwortliche Stelle","Zeitraum",null,null,""]
[null,null,null,null,null,null,""]
[null,null,null,null,null,null,""]
[null,"1.1.3 - Review of strategic plans",null,null,null,null,"1.1.3"]
[null,"Frage / Beurteilungsbereich","Kommentare",null,null,null,""]
[null,null,null,null,null,null,""]
[null,"Empfohlene – nicht verbindliche – Bewertungsskala","Stellen Sie Nachweise bereit (Erklärungen etc.)",null,null,null,""]
[null,null,null,null,null,{"$f":"IF(E35=1,TRUE,FALSE)","v":false},""]
[null,null,null,null,null,{"$f":"IF(E35=2,TRUE,FALSE)","v":false},""]
[null,null,null,null,null,{"$f":"IF(E35=3,TRUE,FALSE)","v":false},""]
[null,null,null,null,null,{"$f":"IF(E35=4,TRUE,FALSE)","v":false},""]
[null,null,null,null,null,{"$f":"IF(E35=5,TRUE,FALSE)","v":false},""]
[null,null,null,null,null,{"$f":"IF(E35=6,TRUE,FALSE)","v":false},""]
[null,"Maßnahmen um maximale Resilienz zu erreichen","Verantwortliche Stelle","Zeitraum",null,null,""]
[null,null,null,null,null,null,""]
[null,null,null,null,null,null,""]
[null,"1.2 - Organisation, Koordination und Beteiligung",null,null,null,null,"1.2"]
[null,null,null,null,null,null,""]
[null,"1.2.1 - Planung und Vorbereitung vor dem Ereignis",null,null,null,null,"1.2.1"]
[null,"Frage / Beurteilungsbereich","Kommentare",null,null,null,""]
[null,null,null,null,null,null,""]
[null,"Empfohlene – nicht verbindliche – Bewertungsskala","Stellen Sie Nachweise bereit (Erklärungen etc.)",null,null,null,""]
[null,null,null,null,null,{"$f":"IF(E50=1,TRUE,FALSE)","v":false},""]
[null,null,null,null,null,{"$f":"IF(E50=2,TRUE,FALSE)","v":false},""]
[null,null,null,null,null,{"$f":"IF(E50=3,TRUE,FALSE)","v":false},""]
[null,null,null,null,null,{"$f":"IF(E50=4,TRUE,FALSE)","v":false},""]
[null,null,null,null,null,{"$f":"IF(E50=5,TRUE,FALSE)","v":false},""]
[null,null,null,null,null,{"$f":"IF(E50=6,TRUE,FALSE)","v":false},""]
[null,"Maßnahmen um maximale Resilienz zu erreichen","Verantwortliche Stelle","Zeitraum",null,null,""]
[null,null,null,null,null,null,""]
[null,null,null,null,null,null,""]
[null,"1.2.2 - Koordinierung der Ereignisreaktion",null,null,null,null,"1.2.2"]
[null,"Frage / Beurteilungsbereich","Kommentare",null,null,null,""]
[null,null,null,null,null,null,""]
[null,"Empfohlene – nicht verbindliche – Bewertungsskala","Stellen Sie Nachweise bereit (Erklärungen etc.)",null,null,null,""]
[null,null,null,null,null,{"$f":"IF(E63=1,TRUE,FALSE)","v":false},""]
[null,null,null,null,null,{"$f":"IF(E63=2,TRUE,FALSE)","v":false},""]
[null,null,null,null,null,{"$f":"IF(E63=3,TRUE,FALSE)","v":false},""]
[null,null,null,null,null,{"$f":"IF(E63=4,TRUE,FALSE)","v":false},""]
[null,null,null,null,null,{"$f":"IF(E63=5,TRUE,FALSE)","v":false},""]
[null,null,null,null,null,{"$f":"IF(E63=6,TRUE,FALSE)","v":false},""]
[null,"Maßnahmen um maximale Resilienz zu erreichen","Verantwortliche Stelle","Zeitraum",null,null,""]
[null,null,null,null,null,null,""]
[null,null,null,null,null,null,""]
[null,"1.2.3 - Kommunale Ressourcen für die Verwaltung der Orga-nisation, Koordination und Beteiligung",null,null,null,null,"1.2.3"]
[null,"Frage / Beurteilungsbereich","Kommentare",null,null,null,""]
[null,null,null,null,null,null,""]
[null,"Empfohlene – nicht verbindliche – Bewertungsskala","Stellen Sie Nachweise bereit (Erklärungen etc.)",null,null,null,""]
[null,null,null,null,null,{"$f":"IF(E76=1,TRUE,FALSE)","v":false},""]
[null,null,null,null,null,{"$f":"IF(E76=2,TRUE,FALSE)","v":false},""]
[null,null,null,null,null,{"$f":"IF(E76=3,TRUE,FALSE)","v":false},""]
[null,null,null,null,null,{"$f":"IF(E76=4,TRUE,FALSE)","v":false},""]
[null,null,null,null,null,{"$f":"IF(E76=5,TRUE,FALSE)","v":false},""]
[null,null,null,null,null,{"$f":"IF(E76=6,TRUE,FALSE)","v":false},""]
[null,"Maßnahmen um maximale Resilienz zu erreichen","Verantwortliche Stelle","Zeitraum",null,null,""]
[null,null,null,null,null,null,""]
[null,null,null,null,null,null,""]
[null,"1.2.4 - Identifizierung von physischen/ materiellen Ressourcen",null,null,null,null,"1.2.4"]
[null,"Frage / Beurteilungsbereich","Kommentare",null,null,null,""]
[null,null,null,null,null,null,""]
[null,"Empfohlene – nicht verbindliche – Bewertungsskala","Stellen Sie Nachweise bereit (Erklärungen etc.)",null,null,null,""]
[null,null,null,null,null,{"$f":"IF(E89=1,TRUE,FALSE)","v":false},""]
[null,null,null,null,null,{"$f":"IF(E89=2,TRUE,FALSE)","v":false},""]
[null,null,null,null,null,{"$f":"IF(E89=3,TRUE,FALSE)","v":false},""]
[null,null,null,null,null,{"$f":"IF(E89=4,TRUE,FALSE)","v":false},""]
[null,null,null,null,null,{"$f":"IF(E89=5,TRUE,FALSE)","v":false},""]
[null,null,null,null,null,{"$f":"IF(E89=6,TRUE,FALSE)","v":false},""]
[null,"Maßnahmen um maximale Resilienz zu erreichen","Verantwortliche Stelle","Zeitraum",null,null,""]
[null,null,null,null,null,null,""]
[null,null,null,null,null,null,""]
[null,"1.3 - Integration",null,null,null,null,"1.3"]
[null,null,null,null,null,null,""]
[null,"1.3.1 - Integration der Resilienz gegenüber Katastrophen mit anderen Initiativen",null,null,null,null,"1.3.1"]
[null,"Frage / Beurteilungsbereich","Kommentare",null,null,null,""]
[null,null,null,null,null,null,""]
[null,"Empfohlene – nicht verbindliche – Bewertungsskala","Stellen Sie Nachweise bereit (Erklärungen etc.)",null,null,null,""]
[null,null,null,null,null,{"$f":"IF(E104=1,TRUE,FALSE)","v":false},""]
[null,null,null,null,null,{"$f":"IF(E104=2,TRUE,FALSE)","v":false},""]
[null,null,null,null,null,{"$f":"IF(E104=3,TRUE,FALSE)","v":false},""]
[null,null,null,null,null,{"$f":"IF(E104=4,TRUE,FALSE)","v":false},""]
[null,null,null,null,null,{"$f":"IF(E104=5,TRUE,FALSE)","v":false},""]
[null,null,null,null,null,{"$f":"IF(E104=6,TRUE,FALSE)","v":false},""]
[null,"Maßnahmen um maximale Resilienz zu erreichen","Verantwortliche Stelle","Zeitraum",null,null,""]
[null,null,null,null,null,null,""]
[null,null,null,null,null,null,""]
[null,"1.4 - Datenerfassung, -veröffentlichung und -weitergabe",null,null,null,null,"1.4"]
[null,null,null,null,null,null,""]
[null,"1.4.1 - Umfang, in den Resilienzdaten einer Kommune öffentlich zugänglich gemacht / ausgetauscht werden",null,null,null,null,"1.4.1"]
[null,"Frage / Beurteilungsbereich","Kommentare",null,null,null,""]
[null,null,null,null,null,null,""]
[null,"Empfohlene – nicht verbindliche – Bewertungsskala","Stellen Sie Nachweise bereit (Erklärungen etc.)",null,null,null,""]
[null,null,null,null,null,{"$f":"IF(E119=1,TRUE,FALSE)","v":false},""]
[null,null,null,null,null,{"$f":"IF(E119=2,TRUE,FALSE)","v":false},""]
[null,null,null,null,null,{"$f":"IF(E119=3,TRUE,FALSE)","v":false},""]
[null,null,null,null,null,{"$f":"IF(E119=4,TRUE,FALSE)","v":false},""]
[null,null,null,null,null,{"$f":"IF(E119=5,TRUE,FALSE)","v":false},""]
[null,null,null,null,null,{"$f":"IF(E119=6,TRUE,FALSE)","v":false},""]
[null,"Maßnahmen um maximale Resilienz zu erreichen","Verantwortliche Stelle","Zeitraum",null,null,""]
[null,null,null,null,null,null,""]
[null,null,null,null,null,null,""]
[null,null,null,null,null,null,""]
[null,null,null,null,null,null,""]
[null,null,null,null,null,null,""]
[null,null,null,null,null,null,""]
[null,null,null,null,null,null,""]
[null,null,null,null,null,null,""]
[null,null,null,null,null,null,""]
[null,null,null,null,null,null,""]
[null,null,null,null,null,null,""]
[null,null,null,null,null,null,""]
[null,null,null,null,null,null,""]
[null,null,null,null,null,null,""]
[null,null,null,null,null,null,""]
[null,null,null,null,null,null,""]
[null,null,null,null,null,null,""]
[null,null,null,null,null,null,""]
[null,null,null,null,null,null,""]
[null,null,null,null,null,null,""]
[null,null,null,null,null,null,""]
[null,null,null,null,null,null,""]
[null,null,null,null,null,null,""]
[null,null,null,null,null,null,""]
[null,null,null,null,null,null,""]
[null,null,null,null,null,null,""]
[null,null,null,null,null,null,""]
[null,null,null,null,null,null,""]
[null,null,null,null,null,null,""]
[null,null,null,null,null,null,""]
[null,null,null,null,null,null,""]
[null,null,null,null,null,null,""]
[null,null,null,null,null,null,""]
[null,null,null,null,null,null,""]
[null,null,null,null,null,null,""]
[null,null,null,null,null,null,""]
[null,null,null,null,null,null,""]
[null,null,null,null,null,null,""]
[null,null,null,null,null,null,""]
[null,null,null,null,null,null,""]
[null,null,null,null,null,null,""]
[null,null,null,null,null,null,""]
[null,null,null,null,null,null,""]
[null,null,null,null,null,null,""]
[null,null,null,null,null,null,""]
[null,null,null,null,null,null,""]
[null,null,null,null,null,null,""]
[null,null,null,null,null,null,""]
[null,null,null,null,null,null,""]
[null,null,null,null,null,null,""]
[null,null,null,null,null,null,""]
[null,null,null,null,null,null,""]
[null,null,null,null,null,null,""]
[null,null,null,null,null,null,""]
[null,null,null,null,null,null,""]
[null,null,null,null,null,null,""]
[null,null,null,null,null,null,""]
[null,null,null,null,null,null,""]
[null,null,null,null,null,null,""]
[null,null,null,null,null,null,""]
[null,null,null,null,null,null,""]
[null,null,null,null,null,null,""]
[null,null,null,null,null,null,""]
[null,null,null,null,null,null,""]
[null,null,null,null,null,null,""]
[null,null,null,null,null,null,""]
[null,null,null,null,null,null,""]
[null,null,null,null,null,null,""]
[null,null,null,null,null,null,""]
[null,null,null,null,null,null,""]
[null,null,null,null,null,null,""]
[null,null,null,null,null,null,""]
[null,null,null,null,null,null,""]
[null,null,null,null,null,null,""]
[null,null,null,null,null,null,""]
[null,null,null,null,null,null,""]
[null,null,null,null,null,null,""]
[null,null,null,null,null,null,""]
[null,null,null,null,null,null,""]
[null,null,null,null,null,null,""]
[null,null,null,null,null,null,""]
[null,null,null,null,null,null,""]
[null,null,null,null,null,null,""]
[null,null,null,null,null,null,""]
[null,null,null,null,null,null,""]
[null,null,null,null,null,null,""]
[null,null,null,null,null,null,""]
[null,null,null,null,null,null,""]
[null,null,null,null,null,null,""]
[null,null,null,null,null,null,""]
[null,null,null,null,null,null,""]
[null,null,null,null,null,null,""]
[null,null,null,null,null,null,""]
[null,null,null,null,null,null,""]
[null,null,null,null,null,null,""]
[null,null,null,null,null,null,""]
[null,null,null,null,null,null,""]
[null,null,null,null,null,null,""]
[null,null,null,null,null,null,""]
[null,null,null,null,null,null,""]
[null,null,null,null,null,null,""]
[null,null,null,null,null,null,""]
[null,null,null,null,null,null,""]
[null,null,null,null,null,null,""]
[null,null,null,null,null,null,""]
[null,null,null,null,null,null,""]
[null,null,null,null,null,null,""]
[null,null,null,null,null,null,""]
[null,null,null,null,null,null,""]
[null,null,null,null,null,null,""]
[null,null,null,null,null,null,""]
[null,null,null,null,null,null,""]
[null,null,null,null,null,null,""]
[null,null,null,null,null,null,""]
[null,null,null,null,null,null,""]
[null,null,null,null,null,null,""]
[null,null,null,null,null,null,""]
[null,null,null,null,null,null,""]
[null,null,null,null,null,null,""]
[null,null,null,null,null,null,""]
[null,null,null,null,null,null,""]
[null,null,null,null,null,null,""]
[null,null,null,null,null,null,""]
[null,null,null,null,null,null,""]
[null,null,null,null,null,null,""]
[null,null,null,null,null,null,""]
[null,null,null,null,null,null,""]
[null,null,null,null,null,null,""]
[null,null,null,null,null,null,""]
[null,null,null,null,null,null,""]
[null,null,null,null,null,null,""]
[null,null,null,null,null,null,""]
[null,null,null,null,null,null,""]
[null,null,null,null,null,null,""]
[null,null,null,null,null,null,""]
[null,null,null,null,null,null,""]
[null,null,null,null,null,null,""]
[null,null,null,null,null,null,""]
[null,null,null,null,null,null,""]
[null,null,null,null,null,null,""]
[null,null,null,null,null,null,""]
[null,null,null,null,null,null,""]
[null,null,null,null,null,null,""]
[null,null,null,null,null,null,""]
[null,null,null,null,null,null,""]
[null,null,null,null,null,null,""]
[null,null,null,null,null,null,""]
[null,null,null,null,null,null,""]
[null,null,null,null,null,null,""]
[null,null,null,null,null,null,""]
[null,null,null,null,null,null,""]
[null,null,null,null,null,null,""]
[null,null,null,null,null,null,""]
[null,null,null,null,null,null,""]
[null,null,null,null,null,null,""]
[null,null,null,null,null,null,""]
[null,null,null,null,null,null,""]
[null,null,null,null,null,null,""]
[null,null,null,null,null,null,""]
[null,null,null,null,null,null,""]
[null,null,null,null,null,null,""]
[null,null,null,null,null,null,""]
[null,null,null,null,null,null,""]
[null,null,null,null,null,null,""]
[null,null,null,null,null,null,""]
[null,null,null,null,null,null,""]
[null,null,null,null,null,null,""]
[null,null,null,null,null,null,""]
[null,null,null,null,null,null,""]
[null,null,null,null,null,null,""]
[null,null,null,null,null,null,""]
[null,null,null,null,null,null,""]
[null,null,null,null,null,null,""]
[null,null,null,null,null,null,""]
[null,null,null,null,null,null,""]
[null,null,null,null,null,null,""]
[null,null,null,null,null,null,""]
[null,null,null,null,null,null,""]
[null,null,null,null,null,null,""]
[null,null,null,null,null,null,""]
[null,null,null,null,null,null,""]
[null,null,null,null,null,null,""]
[null,null,null,null,null,null,""]
[null,null,null,null,null,null,""]
[null,null,null,null,null,null,""]
[null,null,null,null,null,null,""]
[null,null,null,null,null,null,""]
[null,null,null,null,null,null,""]
[null,null,null,null,null,null,""]
[null,null,null,null,null,null,""]
[null,null,null,null,null,null,""]
[null,null,null,null,null,null,""]
[null,null,null,null,null,null,""]
[null,null,null,null,null,null,""]
[null,null,null,null,null,null,""]
[null,null,null,null,null,null,""]
[null,null,null,null,null,null,""]
[null,null,null,null,null,null,""]
[null,null,null,null,null,null,""]
[null,null,null,null,null,null,""]
[null,null,null,null,null,null,""]
[null,null,null,null,null,null,""]
[null,null,null,null,null,null,""]
[null,null,null,null,null,null,""]
[null,null,null,null,null,null,""]
[null,null,null,null,null,null,""]
[null,null,null,null,null,null,""]
[null,null,null,null,null,null,""]
[null,null,null,null,null,null,""]
[null,null,null,null,null,null,""]
[null,null,null,null,null,null,""]
[null,null,null,null,null,null,""]
[null,null,null,null,null,null,""]
[null,null,null,null,null,null,""]
[null,null,null,null,null,null,""]
[null,null,null,null,null,null,""]
[null,null,null,null,null,null,""]
[null,null,null,null,null,null,""]
[null,null,null,null,null,null,""]
[null,null,null,null,null,null,""]
[null,null,null,null,null,null,""]
[null,null,null,null,null,null,""]
[null,null,null,null,null,null,""]
[null,null,null,null,null,null,""]
[null,null,null,null,null,null,""]
[null,null,null,null,null,null,""]
[null,null,null,null,null,null,""]
[null,null,null,null,null,null,""]
[null,null,null,null,null,null,""]
[null,null,null,null,null,null,""]
[null,null,null,null,null,null,""]
[null,null,null,null,null,null,""]
[null,null,null,null,null,null,""]
[null,null,null,null,null,null,""]
[null,null,null,null,null,null,""]
[null,null,null,null,null,null,""]
[null,null,null,null,null,null,""]
[null,null,null,null,null,null,""]
[null,null,null,null,null,null,""]
[null,null,null,null,null,null,""]
[null,null,null,null,null,null,""]
[null,null,null,null,null,null,""]
[null,null,null,null,null,null,""]
[null,null,null,null,null,null,""]
[null,null,null,null,null,null,""]
[null,null,null,null,null,null,""]
[null,null,null,null,null,null,""]
[null,null,null,null,null,null,""]
[null,null,null,null,null,null,""]
[null,null,null,null,null,null,""]
[null,null,null,null,null,null,""]
[null,null,null,null,null,null,""]
[null,null,null,null,null,null,""]
[null,null,null,null,null,null,""]
[null,null,null,null,null,null,""]
[null,null,null,null,null,null,""]
[null,null,null,null,null,null,""]
[null,null,null,null,null,null,""]
[null,null,null,null,null,null,""]
[null,null,null,null,null,null,""]
[null,null,null,null,null,null,""]
[null,null,null,null,null,null,""]
[null,null,null,null,null,null,""]
[null,null,null,null,null,null,""]
[null,null,null,null,null,null,""]
[null,null,null,null,null,null,""]
[null,null,null,null,null,null,""]
[null,null,null,null,null,null,""]
[null,null,null,null,null,null,""]
[null,null,null,null,null,null,""]
[null,null,null,null,null,null,""]
[null,null,null,null,null,null,""]
[null,null,null,null,null,null,""]
[null,null,null,null,null,null,""]
[null,null,null,null,null,null,""]
[null,null,null,null,null,null,""]
[null,null,null,null,null,null,""]
[null,null,null,null,null,null,""]
[null,null,null,null,null,null,""]
[null,null,null,null,null,null,""]
[null,null,null,null,null,null,""]
[null,null,null,null,null,null,""]
[null,null,null,null,null,null,""]
[null,null,null,null,null,null,""]
[null,null,null,null,null,null,""]
[null,null,null,null,null,null,""]
[null,null,null,null,null,null,""]
[null,null,null,null,null,null,""]
[null,null,null,null,null,null,""]
[null,null,null,null,null,null,""]
[null,null,null,null,null,null,""]
[null,null,null,null,null,null,""]
[null,null,null,null,null,null,""]
[null,null,null,null,null,null,""]
[null,null,null,null,null,null,""]
[null,null,null,null,null,null,""]
[null,null,null,null,null,null,""]
[null,null,null,null,null,null,""]
[null,null,null,null,null,null,""]
[null,null,null,null,null,null,""]
[null,null,null,null,null,null,""]
[null,null,null,null,null,null,""]
[null,null,null,null,null,null,""]
[null,null,null,null,null,null,""]
[null,null,null,null,null,null,""]
[null,null,null,null,null,null,""]
[null,null,null,null,null,null,""]
[null,null,null,null,null,null,""]
[null,null,null,null,null,null,""]
[null,null,null,null,null,null,""]
[null,null,null,null,null,null,""]
[null,null,null,null,null,null,""]
[null,null,null,null,null,null,""]
[null,null,null,null,null,null,""]
[null,null,null,null,null,null,""]
[null,null,null,null,null,null,""]
[null,null,null,null,null,null,""]
[null,null,null,null,null,null,""]
[null,null,null,null,null,null,""]
[null,null,null,null,null,null,""]
[null,null,null,null,null,null,""]
[null,null,null,null,null,null,""]
[null,null,null,null,null,null,""]
[null,null,null,null,null,null,""]
[null,null,null,null,null,null,""]
[null,null,null,null,null,null,""]
[null,null,null,null,null,null,""]
[null,null,null,null,null,null,""]
[null,null,null,null,null,null,""]
[null,null,null,null,null,null,""]
[null,null,null,null,null,null,""]
[null,null,null,null,null,null,""]
[null,null,null,null,null,null,""]
[null,null,null,null,null,null,""]
[null,null,null,null,null,null,""]
[null,null,null,null,null,null,""]
[null,null,null,null,null,null,""]
[null,null,null,null,null,null,""]
[null,null,null,null,null,null,""]
[null,null,null,null,null,null,""]
[null,null,null,null,null,null,""]
[null,null,null,null,null,null,""]
[null,null,null,null,null,null,""]
[null,null,null,null,null,null,""]
[null,null,null,null,null,null,""]
[null,null,null,null,null,null,""]
[null,null,null,null,null,null,""]
[null,null,null,null,null,null,""]
[null,null,null,null,null,null,""]
[null,null,null,null,null,null,""]
[null,null,null,null,null,null,""]
[null,null,null,null,null,null,""]
[null,null,null,null,null,null,""]
[null,null,null,null,null,null,""]
[null,null,null,null,null,null,""]
[null,null,null,null,null,null,""]
[null,null,null,null,null,null,""]
[null,null,null,null,null,null,""]
[null,null,null,null,null,null,""]
[null,null,null,null,null,null,""]
[null,null,null,null,null,null,""]
[null,null,null,null,null,null,""]
[null,null,null,null,null,null,""]
[null,null,null,null,null,null,""]
[null,null,null,null,null,null,""]
[null,null,null,null,null,null,""]
[null,null,null,null,null,null,""]
[null,null,null,null,null,null,""]
[null,null,null,null,null,null,""]
[null,null,null,null,null,null,""]
[null,null,null,null,null,null,""]
[null,null,null,null,null,null,""]
[null,null,null,null,null,null,""]
[null,null,null,null,null,null,""]
[null,null,null,null,null,null,""]
[null,null,null,null,null,null,""]
[null,null,null,null,null,null,""]
[null,null,null,null,null,null,""]
[null,null,null,null,null,null,""]
[null,null,null,null,null,null,""]
[null,null,null,null,null,null,""]
[null,null,null,null,null,null,""]
[null,null,null,null,null,null,""]
[null,null,null,null,null,null,""]
[null,null,null,null,null,null,""]
[null,null,null,null,null,null,""]
[null,null,null,null,null,null,""]
[null,null,null,null,null,null,""]
[null,null,null,null,null,null,""]
[null,null,null,null,null,null,""]
[null,null,null,null,null,null,""]
[null,null,null,null,null,null,""]
[null,null,null,null,null,null,""]
[null,null,null,null,null,null,""]
[null,null,null,null,null,null,""]
[null,null,null,null,null,null,""]
[null,null,null,null,null,null,""]
[null,null,null,null,null,null,""]
[null,null,null,null,null,null,""]
[null,null,null,null,null,null,""]
[null,null,null,null,null,null,""]
[null,null,null,null,null,null,""]
[null,null,null,null,null,null,""]
[null,null,null,null,null,null,""]
[null,null,null,null,null,null,""]
[null,null,null,null,null,null,""]
[null,null,null,null,null,null,""]
[null,null,null,null,null,null,""]
[null,null,null,null,null,null,""]
[null,null,null,null,null,null,""]
[null,null,null,null,null,null,""]
[null,null,null,null,null,null,""]
[null,null,null,null,null,null,""]
[null,null,null,null,null,null,""]
[null,null,null,null,null,null,""]
[null,null,null,null,null,null,""]
[null,null,null,null,null,null,""]
[null,null,null,null,null,null,""]
[null,null,null,null,null,null,""]
[null,null,null,null,null,null,""]
[null,null,null,null,null,null,""]
[null,null,null,null,null,null,""]
[null,null,null,null,null,null,""]
[null,null,null,null,null,null,""]
[null,null,null,null,null,null,""]
[null,null,null,null,null,null,""]
[null,null,null,null,null,null,""]
[null,null,null,null,null,null,""]
[null,null,null,null,null,null,""]
[null,null,null,null,null,null,""]
[null,null,null,null,null,null,""]
[null,null,null,null,null,null,""]
[null,null,null,null,null,null,""]
[null,null,null,null,null,null,""]
[null,null,null,null,null,null,""]
[null,null,null,null,null,null,""]
[null,null,null,null,null,null,""]
[null,null,null,null,null,null,""]
[null,null,null,null,null,null,""]
[null,null,null,null,null,null,""]
[null,null,null,null,null,null,""]
[null,null,null,null,null,null,""]
[null,null,null,null,null,null,""]
[null,null,null,null,null,null,""]
[null,null,null,null,null,null,""]
[null,null,null,null,null,null,""]
[null,null,null,null,null,null,""]
[null,null,null,null,null,null,""]
[null,null,null,null,null,null,""]
[null,null,null,null,null,null,""]
[null,null,null,null,null,null,""]
[null,null,null,null,null,null,""]
[null,null,null,null,null,null,""]
[null,null,null,null,null,null,""]
[null,null,null,null,null,null,""]
[null,null,null,null,null,null,""]
[null,null,null,null,null,null,""]
[null,null,null,null,null,null,""]
[null,null,null,null,null,null,""]
[null,null,null,null,null,null,""]
[null,null,null,null,null,null,""]
[null,null,null,null,null,null,""]
[null,null,null,null,null,null,""]
[null,null,null,null,null,null,""]
[null,null,null,null,null,null,""]
[null,null,null,null,null,null,""]
[null,null,null,null,null,null,""]
[null,null,null,null,null,null,""]
[null,null,null,null,null,null,""]
[null,null,null,null,null,null,""]
[null,null,null,null,null,null,""]
[null,null,null,null,null,null,""]
[null,null,null,null,null,null,""]
[null,null,null,null,null,null,""]
[null,null,null,null,null,null,""]
[null,null,null,null,null,null,""]
[null,null,null,null,null,null,""]
[null,null,null,null,null,null,""]
[null,null,null,null,null,null,""]
[null,null,null,null,null,null,""]
[null,null,null,null,null,null,""]
[null,null,null,null,null,null,""]
[null,null,null,null,null,null,""]
[null,null,null,null,null,null,""]
[null,null,null,null,null,null,""]
[null,null,null,null,null,null,""]
[null,null,null,null,null,null,""]
[null,null,null,null,null,null,""]
[null,null,null,null,null,null,""]
[null,null,null,null,null,null,""]
[null,null,null,null,null,null,""]
[null,null,null,null,null,null,""]
[null,null,null,null,null,null,""]
[null,null,null,null,null,null,""]
[null,null,null,null,null,null,""]
[null,null,null,null,null,null,""]
[null,null,null,null,null,null,""]
[null,null,null,null,null,null,""]
[null,null,null,null,null,null,""]
[null,null,null,null,null,null,""]
[null,null,null,null,null,null,""]
[null,null,null,null,null,null,""]
[null,null,null,null,null,null,""]
[null,null,null,null,null,null,""]
[null,null,null,null,null,null,""]
[null,null,null,null,null,null,""]
[null,null,null,null,null,null,""]
[null,null,null,null,null,null,""]
[null,null,null,null,null,null,""]
[null,null,null,null,null,null,""]
[null,null,null,null,null,null,""]
[null,null,null,null,null,null,""]
[null,null,null,null,null,null,""]
[null,null,null,null,null,null,""]
[null,null,null,null,null,null,""]
[null,null,null,null,null,null,""]
[null,null,null,null,null,null,""]
[null,null,null,null,null,null,""]
[null,null,null,null,null,null,""]
[null,null,null,null,null,null,""]
[null,null,null,null,null,null,""]
[null,null,null,null,null,null,""]
[null,null,null,null,null,null,""]
[null,null,null,null,null,null,""]
[null,null,null,null,null,null,""]
[null,null,null,null,null,null,""]
[null,null,null,null,null,null,""]
[null,null,null,null,null,null,""]
[null,null,null,null,null,null,""]
[null,null,null,null,null,null,""]
[null,null,null,null,null,null,""]
[null,null,null,null,null,null,""]
[null,null,null,null,null,null,""]
[null,null,null,null,null,null,""]
[null,null,null,null,null,null,""]
[null,null,null,null,null,null,""]
[null,null,null,null,null,null,""]
[null,null,null,null,null,null,""]
[null,null,null,null,null,null,""]

{"sheet":"E02","index":4,"n_rows":664,"n_cols":7,"rows_kept":664,"cut":false,"hidden":false,"merged":[[35,2,35,3],[36,2,41,3],[48,2,48,3],[49,2,49,3],[50,2,50,3],[21,2,21,3],[22,2,22,3],[23,2,28,3],[33,2,33,3],[34,2,34,3],[5,2,5,3],[6,2,6,3],[7,2,7,3],[8,2,13,3],[20,2,20,3],[78,2,78,3],[79,2,79,3],[80,2,80,3],[81,2,86,3],[51,2,56,3],[63,2,63,3],[64,2,64,3],[65,2,65,3],[66,2,71,3]]}
[]
[null,null,null,null,null,null,""]
[null,"2.1 - Gefährdungsbeurteilung",null,null,null,null,"2.1"]
[null,null,null,null,null,null,""]
[null,"2.1.1 -Kenntnis der Gefahren (auch Risiken oder Schocks und Belastungen genannt), denen die Kommune ausgesetzt ist, und deren Eintrittswahr-scheinlichkeit",null,null,null,null,"2.1.1"]
[null,"Frage / Beurteilungsbereich","Kommentare",null,null,null,""]
[null,null,null,null,null,null,""]
[null,"Empfohlene – nicht verbindliche – Bewertungsskala","Stellen Sie Nachweise bereit (Erklärungen etc.)",null,null,null,""]
[null,null,null,null,null,{"$f":"IF(E9=1,TRUE,FALSE)","v":false},""]
[null,null,null,null,null,{"$f":"IF(E9=2,TRUE,FALSE)","v":false},""]
[null,null,null,null,null,{"$f":"IF(E9=3,TRUE,FALSE)","v":false},""]
[null,null,null,null,null,{"$f":"IF(E9=4,TRUE,FALSE)","v":false},""]
[null,null,null,null,null,{"$f":"IF(E9=5,TRUE,FALSE)","v":false},""]
[null,null,null,null,null,{"$f":"IF(E9=6,TRUE,FALSE)","v":false},""]
[null,"Maßnahmen um maximale Resilienz zu erreichen","Verantwortliche Stelle","Zeitraum",null,null,""]
[null,null,null,null,null,null,""]
[null,null,null,null,null,null,""]
[null,"2.2 - Wissen über Exposition und Folgen",null,null,null,null,"2.2"]
[null,null,null,null,null,null,""]
[null,"2.2.1 - Wissen über Exposition und Vulnerabilität",null,null,null,null,"2.2.1"]
[null,"Frage / Beurteilungsbereich","Kommentare",null,null,null,""]
[null,null,null,null,null,null,""]
[null,"Empfohlene – nicht verbindliche – Bewertungsskala","Stellen Sie Nachweise bereit (Erklärungen etc.)",null,null,null,""]
[null,null,null,null,null,{"$f":"IF(E24=1,TRUE,FALSE)","v":false},""]
[null,null,null,null,null,{"$f":"IF(E24=2,TRUE,FALSE)","v":false},""]
[null,null,null,null,null,{"$f":"IF(E24=3,TRUE,FALSE)","v":false},""]
[null,null,null,null,null,{"$f":"IF(E24=4,TRUE,FALSE)","v":false},""]
[null,null,null,null,null,{"$f":"IF(E24=5,TRUE,FALSE)","v":false},""]
[null,null,null,null,null,{"$f":"IF(E24=6,TRUE,FALSE)","v":false},""]
[null,"Maßnahmen um maximale Resilienz zu erreichen","Verantwortliche Stelle","Zeitraum",null,null,""]
[null,null,null,null,null,null,""]
[null,null,null,null,null,null,""]
[null,"2.2.2 - Schätzung von Schäden und Verlusten",null,null,null,null,"2.2.2"]
[null,"Frage / Beurteilungsbereich","Kommentare",null,null,null,""]
[null,null,null,null,null,null,""]
[null,"Empfohlene – nicht verbindliche – Bewertungsskala","Stellen Sie Nachweise bereit (Erklärungen etc.)",null,null,null,""]
[null,null,null,null,null,{"$f":"IF(E37=1,TRUE,FALSE)","v":false},""]
[null,null,null,null,null,{"$f":"IF(E37=2,TRUE,FALSE)","v":false},""]
[null,null,null,null,null,{"$f":"IF(E37=3,TRUE,FALSE)","v":false},""]
[null,null,null,null,null,{"$f":"IF(E37=4,TRUE,FALSE)","v":false},""]
[null,null,null,null,null,{"$f":"IF(E37=5,TRUE,FALSE)","v":false},""]
[null,null,null,null,null,{"$f":"IF(E37=6,TRUE,FALSE)","v":false},""]
[null,"Maßnahmen um maximale Resilienz zu erreichen","Verantwortliche Stelle","Zeitraum",null,null,""]
[null,null,null,null,null,null,""]
[null,null,null,null,null,null,""]
[null,"2.3 - Kaskadierende Auswirkungen oder Interdependenzen",null,null,null,null,"2.3"]
[null,null,null,null,null,null,""]
[null,"2.3.1 - Verständnis der kritischen Vermögenswerte und der Verbindungen untereinander",null,null,null,null,"2.3.1"]
[null,"Frage / Beurteilungsbereich","Kommentare",null,null,null,""]
[null,null,null,null,null,null,""]
[null,"Empfohlene – nicht verbindliche – Bewertungsskala","Stellen Sie Nachweise bereit (Erklärungen etc.)",null,null,null,""]
[null,null,null,null,null,{"$f":"IF(E52=1,TRUE,FALSE)","v":false},""]
[null,null,null,null,null,{"$f":"IF(E52=2,TRUE,FALSE)","v":false},""]
[null,null,null,null,null,{"$f":"IF(E52=3,TRUE,FALSE)","v":false},""]
[null,null,null,null,null,{"$f":"IF(E52=4,TRUE,FALSE)","v":false},""]
[null,null,null,null,null,{"$f":"IF(E52=5,TRUE,FALSE)","v":false},""]
[null,null,null,null,null,{"$f":"IF(E52=6,TRUE,FALSE)","v":false},""]
[null,"Maßnahmen um maximale Resilienz zu erreichen","Verantwortliche Stelle","Zeitraum",null,null,""]
[null,null,null,null,null,null,""]
[null,null,null,null,null,null,""]
[null,"2.4 - Gefahrenkarten",null,null,null,null,"2.4"]
[null,null,null,null,null,null,""]
[null,"2.4.1 - Gefahrenkarten",null,null,null,null,"2.4.1"]
[null,"Frage / Beurteilungsbereich","Kommentare",null,null,null,""]
[null,null,null,null,null,null,""]
[null,"Empfohlene – nicht verbindliche – Bewertungsskala","Stellen Sie Nachweise bereit (Erklärungen etc.)",null,null,null,""]
[null,null,null,null,null,{"$f":"IF(E67=1,TRUE,FALSE)","v":false},""]
[null,null,null,null,null,{"$f":"IF(E67=2,TRUE,FALSE)","v":false},""]
[null,null,null,null,null,{"$f":"IF(E67=3,TRUE,FALSE)","v":false},""]
[null,null,null,null,null,{"$f":"IF(E67=4,TRUE,FALSE)","v":false},""]
[null,null,null,null,null,{"$f":"IF(E67=5,TRUE,FALSE)","v":false},""]
[null,null,null,null,null,{"$f":"IF(E67=6,TRUE,FALSE)","v":false},""]
[null,"Maßnahmen um maximale Resilienz zu erreichen","Verantwortliche Stelle","Zeitraum",null,null,""]
[null,null,null,null,null,null,""]
[null,null,null,null,null,null,""]
[null,"2.5 - Aktualisierung der Informationen über Szenarien, Risiken, Vulnerabilitäten und Expositionen",null,null,null,null,"2.5"]
[null,null,null,null,null,null,""]
[null,"2.5.1 - Aktualisierungs-prozess",null,null,null,null,"2.5.1"]
[null,"Frage / Beurteilungsbereich","Kommentare",null,null,null,""]
[null,null,null,null,null,null,""]
[null,"Empfohlene – nicht verbindliche – Bewertungsskala","Stellen Sie Nachweise bereit (Erklärungen etc.)",null,null,null,""]
[null,null,null,null,null,{"$f":"IF(E82=1,TRUE,FALSE)","v":false},""]
[null,null,null,null,null,{"$f":"IF(E82=2,TRUE,FALSE)","v":false},""]
[null,null,null,null,null,{"$f":"IF(E82=3,TRUE,FALSE)","v":false},""]
[null,null,null,null,null,{"$f":"IF(E82=4,TRUE,FALSE)","v":false},""]
[null,null,null,null,null,{"$f":"IF(E82=5,TRUE,FALSE)","v":false},""]
[null,null,null,null,null,{"$f":"IF(E82=6,TRUE,FALSE)","v":false},""]
[null,"Maßnahmen um maximale Resilienz zu erreichen","Verantwortliche Stelle","Zeitraum",null,null,""]
[null,null,null,null,null,null,""]
[null,null,null,null,null,null,""]
[null,null,null,null,null,null,""]
[null,null,null,null,null,null,""]
[null,null,null,null,null,null,""]
[null,null,null,null,null,null,""]
[null,null,null,null,null,null,""]
[null,null,null,null,null,null,""]
[null,null,null,null,null,null,""]
[null,null,null,null,null,null,""]
[null,null,null,null,null,null,""]
[null,null,null,null,null,null,""]
[null,null,null,null,null,null,""]
[null,null,null,null,null,null,""]
[null,null,null,null,null,null,""]
[null,null,null,null,null,null,""]
[null,null,null,null,null,null,""]
[null,null,null,null,null,null,""]
[null,null,null,null,null,null,""]
[null,null,null,null,null,null,""]
[null,null,null,null,null,null,""]
[null,null,null,null,null,null,""]
[null,null,null,null,null,null,""]
[null,null,null,null,null,null,""]
[null,null,null,null,null,null,""]
[null,null,null,null,null,null,""]
[null,null,null,null,null,null,""]
[null,null,null,null,null,null,""]
[null,null,null,null,null,null,""]
[null,null,null,null,null,null,""]
[null,null,null,null,null,null,""]
[null,null,null,null,null,null,""]
[null,null,null,null,null,null,""]
[null,null,null,null,null,null,""]
[null,null,null,null,null,null,""]
[null,null,null,null,null,null,""]
[null,null,null,null,null,null,""]
[null,null,null,null,null,null,""]
[null,null,null,null,null,null,""]
[null,null,null,null,null,null,""]
[null,null,null,null,null,null,""]
[null,null,null,null,null,null,""]
[null,null,null,null,null,null,""]
[null,null,null,null,null,null,""]
[null,null,null,null,null,null,""]
[null,null,null,null,null,null,""]
[null,null,null,null,null,null,""]
[null,null,null,null,null,null,""]
[null,null,null,null,null,null,""]
[null,null,null,null,null,null,""]
[null,null,null,null,null,null,""]
[null,null,null,null,null,null,""]
[null,null,null,null,null,null,""]
[null,null,null,null,null,null,""]
[null,null,null,null,null,null,""]
[null,null,null,null,null,null,""]
[null,null,null,null,null,null,""]
[null,null,null,null,null,null,""]
[null,null,null,null,null,null,""]
[null,null,null,null,null,null,""]
[null,null,null,null,null,null,""]
[null,null,null,null,null,null,""]
[null,null,null,null,null,null,""]
[null,null,null,null,null,null,""]
[null,null,null,null,null,null,""]
[null,null,null,null,null,null,""]
[null,null,null,null,null,null,""]
[null,null,null,null,null,null,""]
[null,null,null,null,null,null,""]
[null,null,null,null,null,null,""]
[null,null,null,null,null,null,""]
[null,null,null,null,null,null,""]
[null,null,null,null,null,null,""]
[null,null,null,null,null,null,""]
[null,null,null,null,null,null,""]
[null,null,null,null,null,null,""]
[null,null,null,null,null,null,""]
[null,null,null,null,null,null,""]
[null,null,null,null,null,null,""]
[null,null,null,null,null,null,""]
[null,null,null,null,null,null,""]
[null,null,null,null,null,null,""]
[null,null,null,null,null,null,""]
[null,null,null,null,null,null,""]
[null,null,null,null,null,null,""]
[null,null,null,null,null,null,""]
[null,null,null,null,null,null,""]
[null,null,null,null,null,null,""]
[null,null,null,null,null,null,""]
[null,null,null,null,null,null,""]
[null,null,null,null,null,null,""]
[null,null,null,null,null,null,""]
[null,null,null,null,null,null,""]
[null,null,null,null,null,null,""]
[null,null,null,null,null,null,""]
[null,null,null,null,null,null,""]
[null,null,null,null,null,null,""]
[null,null,null,null,null,null,""]
[null,null,null,null,null,null,""]
[null,null,null,null,null,null,""]
[null,null,null,null,null,null,""]
[null,null,null,null,null,null,""]
[null,null,null,null,null,null,""]
[null,null,null,null,null,null,""]
[null,null,null,null,null,null,""]
[null,null,null,null,null,null,""]
[null,null,null,null,null,null,""]
[null,null,null,null,null,null,""]
[null,null,null,null,null,null,""]
[null,null,null,null,null,null,""]
[null,null,null,null,null,null,""]
[null,null,null,null,null,null,""]
[null,null,null,null,null,null,""]
[null,null,null,null,null,null,""]
[null,null,null,null,null,null,""]
[null,null,null,null,null,null,""]
[null,null,null,null,null,null,""]
[null,null,null,null,null,null,""]
[null,null,null,null,null,null,""]
[null,null,null,null,null,null,""]
[null,null,null,null,null,null,""]
[null,null,null,null,null,null,""]
[null,null,null,null,null,null,""]
[null,null,null,null,null,null,""]
[null,null,null,null,null,null,""]
[null,null,null,null,null,null,""]
[null,null,null,null,null,null,""]
[null,null,null,null,null,null,""]
[null,null,null,null,null,null,""]
[null,null,null,null,null,null,""]
[null,null,null,null,null,null,""]
[null,null,null,null,null,null,""]
[null,null,null,null,null,null,""]
[null,null,null,null,null,null,""]
[null,null,null,null,null,null,""]
[null,null,null,null,null,null,""]
[null,null,null,null,null,null,""]
[null,null,null,null,null,null,""]
[null,null,null,null,null,null,""]
[null,null,null,null,null,null,""]
[null,null,null,null,null,null,""]
[null,null,null,null,null,null,""]
[null,null,null,null,null,null,""]
[null,null,null,null,null,null,""]
[null,null,null,null,null,null,""]
[null,null,null,null,null,null,""]
[null,null,null,null,null,null,""]
[null,null,null,null,null,null,""]
[null,null,null,null,null,null,""]
[null,null,null,null,null,null,""]
[null,null,null,null,null,null,""]
[null,null,null,null,null,null,""]
[null,null,null,null,null,null,""]
[null,null,null,null,null,null,""]
[null,null,null,null,null,null,""]
[null,null,null,null,null,null,""]
[null,null,null,null,null,null,""]
[null,null,null,null,null,null,""]
[null,null,null,null,null,null,""]
[null,null,null,null,null,null,""]
[null,null,null,null,null,null,""]
[null,null,null,null,null,null,""]
[null,null,null,null,null,null,""]
[null,null,null,null,null,null,""]
[null,null,null,null,null,null,""]
[null,null,null,null,null,null,""]
[null,null,null,null,null,null,""]
[null,null,null,null,null,null,""]
[null,null,null,null,null,null,""]
[null,null,null,null,null,null,""]
[null,null,null,null,null,null,""]
[null,null,null,null,null,null,""]
[null,null,null,null,null,null,""]
[null,null,null,null,null,null,""]
[null,null,null,null,null,null,""]
[null,null,null,null,null,null,""]
[null,null,null,null,null,null,""]
[null,null,null,null,null,null,""]
[null,null,null,null,null,null,""]
[null,null,null,null,null,null,""]
[null,null,null,null,null,null,""]
[null,null,null,null,null,null,""]
[null,null,null,null,null,null,""]
[null,null,null,null,null,null,""]
[null,null,null,null,null,null,""]
[null,null,null,null,null,null,""]
[null,null,null,null,null,null,""]
[null,null,null,null,null,null,""]
[null,null,null,null,null,null,""]
[null,null,null,null,null,null,""]
[null,null,null,null,null,null,""]
[null,null,null,null,null,null,""]
[null,null,null,null,null,null,""]
[null,null,null,null,null,null,""]
[null,null,null,null,null,null,""]
[null,null,null,null,null,null,""]
[null,null,null,null,null,null,""]
[null,null,null,null,null,null,""]
[null,null,null,null,null,null,""]
[null,null,null,null,null,null,""]
[null,null,null,null,null,null,""]
[null,null,null,null,null,null,""]
[null,null,null,null,null,null,""]
[null,null,null,null,null,null,""]
[null,null,null,null,null,null,""]
[null,null,null,null,null,null,""]
[null,null,null,null,null,null,""]
[null,null,null,null,null,null,""]
[null,null,null,null,null,null,""]
[null,null,null,null,null,null,""]
[null,null,null,null,null,null,""]
[null,null,null,null,null,null,""]
[null,null,null,null,null,null,""]
[null,null,null,null,null,null,""]
[null,null,null,null,null,null,""]
[null,null,null,null,null,null,""]
[null,null,null,null,null,null,""]
[null,null,null,null,null,null,""]
[null,null,null,null,null,null,""]
[null,null,null,null,null,null,""]
[null,null,null,null,null,null,""]
[null,null,null,null,null,null,""]
[null,null,null,null,null,null,""]
[null,null,null,null,null,null,""]
[null,null,null,null,null,null,""]
[null,null,null,null,null,null,""]
[null,null,null,null,null,null,""]
[null,null,null,null,null,null,""]
[null,null,null,null,null,null,""]
[null,null,null,null,null,null,""]
[null,null,null,null,null,null,""]
[null,null,null,null,null,null,""]
[null,null,null,null,null,null,""]
[null,null,null,null,null,null,""]
[null,null,null,null,null,null,""]
[null,null,null,null,null,null,""]
[null,null,null,null,null,null,""]
[null,null,null,null,null,null,""]
[null,null,null,null,null,null,""]
[null,null,null,null,null,null,""]
[null,null,null,null,null,null,""]
[null,null,null,null,null,null,""]
[null,null,null,null,null,null,""]
[null,null,null,null,null,null,""]
[null,null,null,null,null,null,""]
[null,null,null,null,null,null,""]
[null,null,null,null,null,null,""]
[null,null,null,null,null,null,""]
[null,null,null,null,null,null,""]
[null,null,null,null,null,null,""]
[null,null,null,null,null,null,""]
[null,null,null,null,null,null,""]
[null,null,null,null,null,null,""]
[null,null,null,null,null,null,""]
[null,null,null,null,null,null,""]
[null,null,null,null,null,null,""]
[null,null,null,null,null,null,""]
[null,null,null,null,null,null,""]
[null,null,null,null,null,null,""]
[null,null,null,null,null,null,""]
[null,null,null,null,null,null,""]
[null,null,null,null,null,null,""]
[null,null,null,null,null,null,""]
[null,null,null,null,null,null,""]
[null,null,null,null,null,null,""]
[null,null,null,null,null,null,""]
[null,null,null,null,null,null,""]
[null,null,null,null,null,null,""]
[null,null,null,null,null,null,""]
[null,null,null,null,null,null,""]
[null,null,null,null,null,null,""]
[null,null,null,null,null,null,""]
[null,null,null,null,null,null,""]
[null,null,null,null,null,null,""]
[null,null,null,null,null,null,""]
[null,null,null,null,null,null,""]
[null,null,null,null,null,null,""]
[null,null,null,null,null,null,""]
[null,null,null,null,null,null,""]
[null,null,null,null,null,null,""]
[null,null,null,null,null,null,""]
[null,null,null,null,null,null,""]
[null,null,null,null,null,null,""]
[null,null,null,null,null,null,""]
[null,null,null,null,null,null,""]
[null,null,null,null,null,null,""]
[null,null,null,null,null,null,""]
[null,null,null,null,null,null,""]
[null,null,null,null,null,null,""]
[null,null,null,null,null,null,""]
[null,null,null,null,null,null,""]
[null,null,null,null,null,null,""]
[null,null,null,null,null,null,""]
[null,null,null,null,null,null,""]
[null,null,null,null,null,null,""]
[null,null,null,null,null,null,""]
[null,null,null,null,null,null,""]
[null,null,null,null,null,null,""]
[null,null,null,null,null,null,""]
[null,null,null,null,null,null,""]
[null,null,null,null,null,null,""]
[null,null,null,null,null,null,""]
[null,null,null,null,null,null,""]
[null,null,null,null,null,null,""]
[null,null,null,null,null,null,""]
[null,null,null,null,null,null,""]
[null,null,null,null,null,null,""]
[null,null,null,null,null,null,""]
[null,null,null,null,null,null,""]
[null,null,null,null,null,null,""]
[null,null,null,null,null,null,""]
[null,null,null,null,null,null,""]
[null,null,null,null,null,null,""]
[null,null,null,null,null,null,""]
[null,null,null,null,null,null,""]
[null,null,null,null,null,null,""]
[null,null,null,null,null,null,""]
[null,null,null,null,null,null,""]
[null,null,null,null,null,null,""]
[null,null,null,null,null,null,""]
[null,null,null,null,null,null,""]
[null,null,null,null,null,null,""]
[null,null,null,null,null,null,""]
[null,null,null,null,null,null,""]
[null,null,null,null,null,null,""]
[null,null,null,null,null,null,""]
[null,null,null,null,null,null,""]
[null,null,null,null,null,null,""]
[null,null,null,null,null,null,""]
[null,null,null,null,null,null,""]
[null,null,null,null,null,null,""]
[null,null,null,null,null,null,""]
[null,null,null,null,null,null,""]
[null,null,null,null,null,null,""]
[null,null,null,null,null,null,""]
[null,null,null,null,null,null,""]
[null,null,null,null,null,null,""]
[null,null,null,null,null,null,""]
[null,null,null,null,null,null,""]
[null,null,null,null,null,null,""]
[null,null,null,null,null,null,""]
[null,null,null,null,null,null,""]
[null,null,null,null,null,null,""]
[null,null,null,null,null,null,""]
[null,null,null,null,null,null,""]
[null,null,null,null,null,null,""]
[null,null,null,null,null,null,""]
[null,null,null,null,null,null,""]
[null,null,null,null,null,null,""]
[null,null,null,null,null,null,""]
[null,null,null,null,null,null,""]
[null,null,null,null,null,null,""]
[null,null,null,null,null,null,""]
[null,null,null,null,null,null,""]
[null,null,null,null,null,null,""]
[null,null,null,null,null,null,""]
[null,null,null,null,null,null,""]
[null,null,null,null,null,null,""]
[null,null,null,null,null,null,""]
[null,null,null,null,null,null,""]
[null,null,null,null,null,null,""]
[null,null,null,null,null,null,""]
[null,null,null,null,null,null,""]
[null,null,null,null,null,null,""]
[null,null,null,null,null,null,""]
[null,null,null,null,null,null,""]
[null,null,null,null,null,null,""]
[null,null,null,null,null,null,""]
[null,null,null,null,null,null,""]
[null,null,null,null,null,null,""]
[null,null,null,null,null,null,""]
[null,null,null,null,null,null,""]
[null,null,null,null,null,null,""]
[null,null,null,null,null,null,""]
[null,null,null,null,null,null,""]
[null,null,null,null,null,null,""]
[null,null,null,null,null,null,""]
[null,null,null,null,null,null,""]
[null,null,null,null,null,null,""]
[null,null,null,null,null,null,""]
[null,null,null,null,null,null,""]
[null,null,null,null,null,null,""]
[null,null,null,null,null,null,""]
[null,null,null,null,null,null,""]
[null,null,null,null,null,null,""]
[null,null,null,null,null,null,""]
[null,null,null,null,null,null,""]
[null,null,null,null,null,null,""]
[null,null,null,null,null,null,""]
[null,null,null,null,null,null,""]
[null,null,null,null,null,null,""]
[null,null,null,null,null,null,""]
[null,null,null,null,null,null,""]
[null,null,null,null,null,null,""]
[null,null,null,null,null,null,""]
[null,null,null,null,null,null,""]
[null,null,null,null,null,null,""]
[null,null,null,null,null,null,""]
[null,null,null,null,null,null,""]
[null,null,null,null,null,null,""]
[null,null,null,null,null,null,""]
[null,null,null,null,null,null,""]
[null,null,null,null,null,null,""]
[null,null,null,null,null,null,""]
[null,null,null,null,null,null,""]
[null,null,null,null,null,null,""]
[null,null,null,null,null,null,""]
[null,null,null,null,null,null,""]
[null,null,null,null,null,null,""]
[null,null,null,null,null,null,""]
[null,null,null,null,null,null,""]
[null,null,null,null,null,null,""]
[null,null,null,null,null,null,""]
[null,null,null,null,null,null,""]
[null,null,null,null,null,null,""]
[null,null,null,null,null,null,""]
[null,null,null,null,null,null,""]
[null,null,null,null,null,null,""]
[null,null,null,null,null,null,""]
[null,null,null,null,null,null,""]
[null,null,null,null,null,null,""]
[null,null,null,null,null,null,""]
[null,null,null,null,null,null,""]
[null,null,null,null,null,null,""]
[null,null,null,null,null,null,""]
[null,null,null,null,null,null,""]
[null,null,null,null,null,null,""]
[null,null,null,null,null,null,""]
[null,null,null,null,null,null,""]
[null,null,null,null,null,null,""]
[null,null,null,null,null,null,""]
[null,null,null,null,null,null,""]
[null,null,null,null,null,null,""]
[null,null,null,null,null,null,""]
[null,null,null,null,null,null,""]
[null,null,null,null,null,null,""]
[null,null,null,null,null,null,""]
[null,null,null,null,null,null,""]
[null,null,null,null,null,null,""]
[null,null,null,null,null,null,""]
[null,null,null,null,null,null,""]
[null,null,null,null,null,null,""]
[null,null,null,null,null,null,""]
[null,null,null,null,null,null,""]
[null,null,null,null,null,null,""]
[null,null,null,null,null,null,""]
[null,null,null,null,null,null,""]
[null,null,null,null,null,null,""]
[null,null,null,null,null,null,""]
[null,null,null,null,null,null,""]
[null,null,null,null,null,null,""]
[null,null,null,null,null,null,""]
[null,null,null,null,null,null,""]
[null,null,null,null,null,null,""]
[null,null,null,null,null,null,""]
[null,null,null,null,null,null,""]
[null,null,null,null,null,null,""]
[null,null,null,null,null,null,""]
[null,null,null,null,null,null,""]
[null,null,null,null,null,null,""]
[null,null,null,null,null,null,""]
[null,null,null,null,null,null,""]
[null,null,null,null,null,null,""]
[null,null,null,null,null,null,""]
[null,null,null,null,null,null,""]
[null,null,null,null,null,null,""]
[null,null,null,null,null,null,""]
[null,null,null,null,null,null,""]
[null,null,null,null,null,null,""]
[null,null,null,null,null,null,""]
[null,null,null,null,null,null,""]
[null,null,null,null,null,null,""]
[null,null,null,null,null,null,""]
[null,null,null,null,null,null,""]
[null,null,null,null,null,null,""]
[null,null,null,null,null,null,""]
[null,null,null,null,null,null,""]
[null,null,null,null,null,null,""]
[null,null,null,null,null,null,""]
[null,null,null,null,null,null,""]
[null,null,null,null,null,null,""]
[null,null,null,null,null,null,""]
[null,null,null,null,null,null,""]
[null,null,null,null,null,null,""]
[null,null,null,null,null,null,""]
[null,null,null,null,null,null,""]
[null,null,null,null,null,null,""]
[null,null,null,null,null,null,""]
[null,null,null,null,null,null,""]
[null,null,null,null,null,null,""]
[null,null,null,null,null,null,""]
[null,null,null,null,null,null,""]
[null,null,null,null,null,null,""]
[null,null,null,null,null,null,""]
[null,null,null,null,null,null,""]
[null,null,null,null,null,null,""]
[null,null,null,null,null,null,""]
[null,null,null,null,null,null,""]
[null,null,null,null,null,null,""]
[null,null,null,null,null,null,""]
[null,null,null,null,null,null,""]
[null,null,null,null,null,null,""]
[null,null,null,null,null,null,""]
[null,null,null,null,null,null,""]
[null,null,null,null,null,null,""]
[null,null,null,null,null,null,""]
[null,null,null,null,null,null,""]
[null,null,null,null,null,null,""]
[null,null,null,null,null,null,""]
[null,null,null,null,null,null,""]
[null,null,null,null,null,null,""]
[null,null,null,null,null,null,""]
[null,null,null,null,null,null,""]
[null,null,null,null,null,null,""]
[null,null,null,null,null,null,""]
[null,null,null,null,null,null,""]
[null,null,null,null,null,null,""]
[null,null,null,null,null,null,""]
[null,null,null,null,null,null,""]
[null,null,null,null,null,null,""]
[null,null,null,null,null,null,""]
[null,null,null,null,null,null,""]
[null,null,null,null,null,null,""]
[null,null,null,null,null,null,""]
[null,null,null,null,null,null,""]
[null,null,null,null,null,null,""]
[null,null,null,null,null,null,""]
[null,null,null,null,null,null,""]
[null,null,null,null,null,null,""]
[null,null,null,null,null,null,""]
[null,null,null,null,null,null,""]
[null,null,null,null,null,null,""]
[null,null,null,null,null,null,""]
[null,null,null,null,null,null,""]
[null,null,null,null,null,null,""]
[null,null,null,null,null,null,""]
[null,null,null,null,null,null,""]
[null,null,null,null,null,null,""]
[null,null,null,null,null,null,""]
[null,null,null,null,null,null,""]
[null,null,null,null,null,null,""]
[null,null,null,null,null,null,""]
[null,null,null,null,null,null,""]
[null,null,null,null,null,null,""]
[null,null,null,null,null,null,""]
[null,null,null,null,null,null,""]
[null,null,null,null,null,null,""]
[null,null,null,null,null,null,""]
[null,null,null,null,null,null,""]
[null,null,null,null,null,null,""]
[null,null,null,null,null,null,""]
[null,null,null,null,null,null,""]
[null,null,null,null,null,null,""]
[null,null,null,null,null,null,""]
[null,null,null,null,null,null,""]
[null,null,null,null,null,null,""]
[null,null,null,null,null,null,""]
[null,null,null,null,null,null,""]
[null,null,null,null,null,null,""]
[null,null,null,null,null,null,""]
[null,null,null,null,null,null,""]
[null,null,null,null,null,null,""]
[null,null,null,null,null,null,""]
[null,null,null,null,null,null,""]
[null,null,null,null,null,null,""]
[null,null,null,null,null,null,""]
[null,null,null,null,null,null,""]
[null,null,null,null,null,null,""]
[null,null,null,null,null,null,""]
[null,null,null,null,null,null,""]
[null,null,null,null,null,null,""]
[null,null,null,null,null,null,""]
[null,null,null,null,null,null,""]
[null,null,null,null,null,null,""]
[null,null,null,null,null,null,""]
[null,null,null,null,null,null,""]

{"sheet":"E03","index":5,"n_rows":664,"n_cols":7,"rows_kept":664,"cut":false,"hidden":false,"merged":[[20,2,20,3],[21,2,21,3],[22,2,22,3],[23,2,28,3],[33,2,33,3],[5,2,5,3],[6,2,6,3],[7,2,7,3],[8,2,13,3],[4,1,4,3],[35,2,35,3],[36,2,41,3],[32,1,32,3],[45,1,45,3],[46,2,46,3],[34,2,34,3],[47,2,47,3],[48,2,48,3],[49,2,54,3],[58,1,58,3],[59,2,59,3],[60,2,60,3],[61,2,61,3],[62,2,67,3],[73,1,73,3],[74,2,74,3],[75,2,75,3],[76,2,76,3],[77,2,82,3],[86,1,86,3],[87,2,87,3],[88,2,88,3],[89,2,89,3],[90,2,95,3],[101,1,101,3],[102,2,102,3],[103,2,103,3],[104,2,104,3],[105,2,110,3],[114,1,114,3],[115,2,115,3],[129,2,129,3],[130,2,130,3],[131,2,136,3],[116,2,116,3],[117,2,117,3],[118,2,123,3],[127,1,127,3],[128,2,128,3]]}
[]
[null,null,null,null,null,null,""]
[null,"3.1 - Kenntnisse aneignen, um Anreize in gezielte Investitionen in die Katastrophenvorsorge schaffen zu können",null,null,null,null,"3.1"]
[null,null,null,null,null,null,""]
[null,"3.1.1 - Bewusstsein und Kenntnis aller möglichen Finanzierungs- und Förderungs-methoden, soweit erforderlich. Die Kommune bemüht sich aktiv um Finanzierung und Förderung, soweit erforderlich.\nHinweis: Bei ausreichender Finanzierung kann auf diese Bewertungskriterien verzichtet werden.",null,null,null,null,"3.1.1"]
[null,"Frage / Beurteilungsbereich","Kommentare",null,null,null,""]
[null,null,null,null,null,null,""]
[null,"Empfohlene – nicht verbindliche - Messskala","Stellen Sie Nachweise bereit (Erklärungen etc.)",null,null,null,""]
[null,null,null,null,null,{"$f":"IF(E9=1,TRUE,FALSE)","v":false},""]
[null,null,null,null,null,{"$f":"IF(E9=2,TRUE,FALSE)","v":false},""]
[null,null,null,null,null,{"$f":"IF(E9=3,TRUE,FALSE)","v":false},""]
[null,null,null,null,null,{"$f":"IF(E9=4,TRUE,FALSE)","v":false},""]
[null,null,null,null,null,{"$f":"IF(E9=5,TRUE,FALSE)","v":false},""]
[null,null,null,null,null,{"$f":"IF(E9=6,TRUE,FALSE)","v":false},""]
[null,"Maßnahmen um maximale Resilienz zu erreichen","Zuständige Einrichtung","Zeitraum",null,null,""]
[null,null,null,null,null,null,""]
[null,null,null,null,null,null,""]
[null,"3.2 - Budgets für die Resilienz im Rahmen des kommunalen Haushaltsplans, einschließlich Mittel für Notfälle",null,null,null,null,"3.2"]
[null,null,null,null,null,null,""]
[null,"3.2.1 - Angemessenheit der Finanz-planung für alle notwendigen Maßnahmen für die Resilienz gegenüber Katastrophen",null,null,null,null,"3.2.1"]
[null,"Frage / Beurteilungsbereich","Kommentare",null,null,null,""]
[null,null,null,null,null,null,""]
[null,"Empfohlene – nicht verbindliche – Bewertungsskala","Stellen Sie Nachweise bereit (Erklärungen etc.)",null,null,null,""]
[null,null,null,null,null,{"$f":"IF(E24=1,TRUE,FALSE)","v":false},""]
[null,null,null,null,null,{"$f":"IF(E24=2,TRUE,FALSE)","v":false},""]
[null,null,null,null,null,{"$f":"IF(E24=3,TRUE,FALSE)","v":false},""]
[null,null,null,null,null,{"$f":"IF(E24=4,TRUE,FALSE)","v":false},""]
[null,null,null,null,null,{"$f":"IF(E24=5,TRUE,FALSE)","v":false},""]
[null,null,null,null,null,{"$f":"IF(E24=6,TRUE,FALSE)","v":false},""]
[null,"Maßnahmen um maximale Resilienz zu erreichen","Verantwortliche Stelle","Zeitraum",null,null,""]
[null,null,null,null,null,null,""]
[null,null,null,null,null,null,""]
[null,"3.2.2 - Capital funding for long run engineering and other works that address scenarios and critical assets identified in Essentials 2 and 8",null,null,null,null,"3.2.2"]
[null,"Frage / Beurteilungsbereich","Kommentare",null,null,null,""]
[null,null,null,null,null,null,""]
[null,"Empfohlene – nicht verbindliche – Bewertungsskala","Stellen Sie Nachweise bereit (Erklärungen etc.)",null,null,null,""]
[null,null,null,null,null,{"$f":"IF(E37=1,TRUE,FALSE)","v":false},""]
[null,null,null,null,null,{"$f":"IF(E37=2,TRUE,FALSE)","v":false},""]
[null,null,null,null,null,{"$f":"IF(E37=3,TRUE,FALSE)","v":false},""]
[null,null,null,null,null,{"$f":"IF(E37=4,TRUE,FALSE)","v":false},""]
[null,null,null,null,null,{"$f":"IF(E37=5,TRUE,FALSE)","v":false},""]
[null,null,null,null,null,{"$f":"IF(E37=6,TRUE,FALSE)","v":false},""]
[null,"Maßnahmen um maximale Resilienz zu erreichen","Verantwortliche Stelle","Zeitraum",null,null,""]
[null,null,null,null,null,null,""]
[null,null,null,null,null,null,""]
[null,"3.2.3 - Operating funding to meet all operating costs of disaster resilience activities",null,null,null,null,"3.2.3"]
[null,"Frage / Beurteilungsbereich","Kommentare",null,null,null,""]
[null,null,null,null,null,null,""]
[null,"Empfohlene – nicht verbindliche – Bewertungsskala","Stellen Sie Nachweise bereit (Erklärungen etc.)",null,null,null,""]
[null,null,null,null,null,{"$f":"IF(E50=1,TRUE,FALSE)","v":false},""]
[null,null,null,null,null,{"$f":"IF(E50=2,TRUE,FALSE)","v":false},""]
[null,null,null,null,null,{"$f":"IF(E50=3,TRUE,FALSE)","v":false},""]
[null,null,null,null,null,{"$f":"IF(E50=4,TRUE,FALSE)","v":false},""]
[null,null,null,null,null,{"$f":"IF(E50=5,TRUE,FALSE)","v":false},""]
[null,null,null,null,null,{"$f":"IF(E50=6,TRUE,FALSE)","v":false},""]
[null,"Maßnahmen um maximale Resilienz zu erreichen","Verantwortliche Stelle","Zeitraum",null,null,""]
[null,null,null,null,null,null,""]
[null,null,null,null,null,null,""]
[null,"3.2.4 - Notfallfonds für den Wiederaufbau nach einer Katastrophe (kann auch als „Fonds für schlechte Zeiten\" bezeichnet werden)",null,null,null,null,"3.2.4"]
[null,"QFrage / Beurteilungsbereich","Kommentare",null,null,null,""]
[null,null,null,null,null,null,""]
[null,"Empfohlene – nicht verbindliche – Bewertungsskala","Stellen Sie Nachweise bereit (Erklärungen etc.)",null,null,null,""]
[null,null,null,null,null,{"$f":"IF(E63=1,TRUE,FALSE)","v":false},""]
[null,null,null,null,null,{"$f":"IF(E63=2,TRUE,FALSE)","v":false},""]
[null,null,null,null,null,{"$f":"IF(E63=3,TRUE,FALSE)","v":false},""]
[null,null,null,null,null,{"$f":"IF(E63=4,TRUE,FALSE)","v":false},""]
[null,null,null,null,null,{"$f":"IF(E63=5,TRUE,FALSE)","v":false},""]
[null,null,null,null,null,{"$f":"IF(E63=6,TRUE,FALSE)","v":false},""]
[null,"Maßnahmen um maximale Resilienz zu erreichen","Verantwortliche Stelle","Zeitraum",null,null,""]
[null,null,null,null,null,null,""]
[null,null,null,null,null,null,""]
[null,"3.3 - Versicherung",null,null,null,null,"3.3"]
[null,null,null,null,null,null,""]
[null,"3.3.1 - Versicherungs-schutz für Wohngebäude",null,null,null,null,"3.3.1"]
[null,"Frage / Beurteilungsbereich","Kommentare",null,null,null,""]
[null,null,null,null,null,null,""]
[null,"Empfohlene – nicht verbindliche – Bewertungsskala","Stellen Sie Nachweise bereit (Erklärungen etc.)",null,null,null,""]
[null,null,null,null,null,{"$f":"IF(E78=1,TRUE,FALSE)","v":false},""]
[null,null,null,null,null,{"$f":"IF(E78=2,TRUE,FALSE)","v":false},""]
[null,null,null,null,null,{"$f":"IF(E78=3,TRUE,FALSE)","v":false},""]
[null,null,null,null,null,{"$f":"IF(E78=4,TRUE,FALSE)","v":false},""]
[null,null,null,null,null,{"$f":"IF(E78=5,TRUE,FALSE)","v":false},""]
[null,null,null,null,null,{"$f":"IF(E78=6,TRUE,FALSE)","v":false},""]
[null,"Maßnahmen um maximale Resilienz zu erreichen","Verantwortliche Stelle","Zeitraum",null,null,""]
[null,null,null,null,null,null,""]
[null,null,null,null,null,null,""]
[null,"3.3.2 - Versicherungs-schutz für sonstige Gebäude und Vermögenswerte, inkl. Infrastruktur",null,null,null,null,"3.3.2"]
[null,"Frage / Beurteilungsbereich","Kommentare",null,null,null,""]
[null,null,null,null,null,null,""]
[null,"Empfohlene – nicht verbindliche – Bewertungsskala","Stellen Sie Nachweise bereit (Erklärungen etc.)",null,null,null,""]
[null,null,null,null,null,{"$f":"IF(E91=1,TRUE,FALSE)","v":false},""]
[null,null,null,null,null,{"$f":"IF(E91=2,TRUE,FALSE)","v":false},""]
[null,null,null,null,null,{"$f":"IF(E91=3,TRUE,FALSE)","v":false},""]
[null,null,null,null,null,{"$f":"IF(E91=4,TRUE,FALSE)","v":false},""]
[null,null,null,null,null,{"$f":"IF(E91=5,TRUE,FALSE)","v":false},""]
[null,null,null,null,null,{"$f":"IF(E91=6,TRUE,FALSE)","v":false},""]
[null,"Maßnahmen um maximale Resilienz zu erreichen","Verantwortliche Stelle","Zeitraum",null,null,""]
[null,null,null,null,null,null,""]
[null,null,null,null,null,null,""]
[null,"3.4 - Anreize und Finanzierung für Unternehmen, kommunale Organisationen sowie Bürgerinnen und Bürger. ",null,null,null,null,"3.4"]
[null,null,null,null,null,null,""]
[null,"3.4.1 - Anreize für Unternehmen und Organisationen zur Verbesserung der Resilienz gegenüber Katastrophen – Katastrophenpläne, Räumlichkeiten usw.",null,null,null,null,"3.4.1"]
[null,"Frage / Beurteilungsbereich","Kommentare",null,null,null,""]
[null,null,null,null,null,null,""]
[null,"Empfohlene – nicht verbindliche – Bewertungsskala","Stellen Sie Nachweise bereit (Erklärungen etc.)",null,null,null,""]
[null,null,null,null,null,{"$f":"IF(E106=1,TRUE,FALSE)","v":false},""]
[null,null,null,null,null,{"$f":"IF(E106=2,TRUE,FALSE)","v":false},""]
[null,null,null,null,null,{"$f":"IF(E106=3,TRUE,FALSE)","v":false},""]
[null,null,null,null,null,{"$f":"IF(E106=4,TRUE,FALSE)","v":false},""]
[null,null,null,null,null,{"$f":"IF(E106=5,TRUE,FALSE)","v":false},""]
[null,null,null,null,null,{"$f":"IF(E106=6,TRUE,FALSE)","v":false},""]
[null,"Maßnahmen um maximale Resilienz zu erreichen","Verantwortliche Stelle","Zeitraum",null,null,""]
[null,null,null,null,null,null,""]
[null,null,null,null,null,null,""]
[null,"3.4.2 - Incentives to non-profit organizations to improve disaster resilience – disaster plans, premises etc",null,null,null,null,"3.4.2"]
[null,"Frage / Beurteilungsbereich","Kommentare",null,null,null,""]
[null,null,null,null,null,null,""]
[null,"Empfohlene – nicht verbindliche – Bewertungsskala","Stellen Sie Nachweise bereit (Erklärungen etc.)",null,null,null,""]
[null,null,null,null,null,{"$f":"IF(E119=1,TRUE,FALSE)","v":false},""]
[null,null,null,null,null,{"$f":"IF(E119=2,TRUE,FALSE)","v":false},""]
[null,null,null,null,null,{"$f":"IF(E119=3,TRUE,FALSE)","v":false},""]
[null,null,null,null,null,{"$f":"IF(E119=4,TRUE,FALSE)","v":false},""]
[null,null,null,null,null,{"$f":"IF(E119=5,TRUE,FALSE)","v":false},""]
[null,null,null,null,null,{"$f":"IF(E119=6,TRUE,FALSE)","v":false},""]
[null,"Maßnahmen um maximale Resilienz zu erreichen","Verantwortliche Stelle","Zeitraum",null,null,""]
[null,null,null,null,null,null,""]
[null,null,null,null,null,null,""]
[null,"3.4.3 - Anreize für Hauseigentümer und -eigentümerinnen zur Verbesserung der Resilienz gegenüber Katastrophen - Katastrophenpläne, Räumlichkeiten usw.",null,null,null,null,"3.4.3"]
[null,"Frage / Beurteilungsbereich","Kommentare",null,null,null,""]
[null,null,null,null,null,null,""]
[null,"Empfohlene – nicht verbindliche – Bewertungsskala","Stellen Sie Nachweise bereit (Erklärungen etc.)",null,null,null,""]
[null,null,null,null,null,{"$f":"IF(E132=1,TRUE,FALSE)","v":false},""]
[null,null,null,null,null,{"$f":"IF(E132=2,TRUE,FALSE)","v":false},""]
[null,null,null,null,null,{"$f":"IF(E132=3,TRUE,FALSE)","v":false},""]
[null,null,null,null,null,{"$f":"IF(E132=4,TRUE,FALSE)","v":false},""]
[null,null,null,null,null,{"$f":"IF(E132=5,TRUE,FALSE)","v":false},""]
[null,null,null,null,null,{"$f":"IF(E132=6,TRUE,FALSE)","v":false},""]
[null,"Maßnahmen um maximale Resilienz zu erreichen","Verantwortliche Stelle","Zeitraum",null,null,""]
[null,null,null,null,null,null,""]
[null,null,null,null,null,null,""]
[null,null,null,null,null,null,""]
[null,null,null,null,null,null,""]
[null,null,null,null,null,null,""]
[null,null,null,null,null,null,""]
[null,null,null,null,null,null,""]
[null,null,null,null,null,null,""]
[null,null,null,null,null,null,""]
[null,null,null,null,null,null,""]
[null,null,null,null,null,null,""]
[null,null,null,null,null,null,""]
[null,null,null,null,null,null,""]
[null,null,null,null,null,null,""]
[null,null,null,null,null,null,""]
[null,null,null,null,null,null,""]
[null,null,null,null,null,null,""]
[null,null,null,null,null,null,""]
[null,null,null,null,null,null,""]
[null,null,null,null,null,null,""]
[null,null,null,null,null,null,""]
[null,null,null,null,null,null,""]
[null,null,null,null,null,null,""]
[null,null,null,null,null,null,""]
[null,null,null,null,null,null,""]
[null,null,null,null,null,null,""]
[null,null,null,null,null,null,""]
[null,null,null,null,null,null,""]
[null,null,null,null,null,null,""]
[null,null,null,null,null,null,""]
[null,null,null,null,null,null,""]
[null,null,null,null,null,null,""]
[null,null,null,null,null,null,""]
[null,null,null,null,null,null,""]
[null,null,null,null,null,null,""]
[null,null,null,null,null,null,""]
[null,null,null,null,null,null,""]
[null,null,null,null,null,null,""]
[null,null,null,null,null,null,""]
[null,null,null,null,null,null,""]
[null,null,null,null,null,null,""]
[null,null,null,null,null,null,""]
[null,null,null,null,null,null,""]
[null,null,null,null,null,null,""]
[null,null,null,null,null,null,""]
[null,null,null,null,null,null,""]
[null,null,null,null,null,null,""]
[null,null,null,null,null,null,""]
[null,null,null,null,null,null,""]
[null,null,null,null,null,null,""]
[null,null,null,null,null,null,""]
[null,null,null,null,null,null,""]
[null,null,null,null,null,null,""]
[null,null,null,null,null,null,""]
[null,null,null,null,null,null,""]
[null,null,null,null,null,null,""]
[null,null,null,null,null,null,""]
[null,null,null,null,null,null,""]
[null,null,null,null,null,null,""]
[null,null,null,null,null,null,""]
[null,null,null,null,null,null,""]
[null,null,null,null,null,null,""]
[null,null,null,null,null,null,""]
[null,null,null,null,null,null,""]
[null,null,null,null,null,null,""]
[null,null,null,null,null,null,""]
[null,null,null,null,null,null,""]
[null,null,null,null,null,null,""]
[null,null,null,null,null,null,""]
[null,null,null,null,null,null,""]
[null,null,null,null,null,null,""]
[null,null,null,null,null,null,""]
[null,null,null,null,null,null,""]
[null,null,null,null,null,null,""]
[null,null,null,null,null,null,""]
[null,null,null,null,null,null,""]
[null,null,null,null,null,null,""]
[null,null,null,null,null,null,""]
[null,null,null,null,null,null,""]
[null,null,null,null,null,null,""]
[null,null,null,null,null,null,""]
[null,null,null,null,null,null,""]
[null,null,null,null,null,null,""]
[null,null,null,null,null,null,""]
[null,null,null,null,null,null,""]
[null,null,null,null,null,null,""]
[null,null,null,null,null,null,""]
[null,null,null,null,null,null,""]
[null,null,null,null,null,null,""]
[null,null,null,null,null,null,""]
[null,null,null,null,null,null,""]
[null,null,null,null,null,null,""]
[null,null,null,null,null,null,""]
[null,null,null,null,null,null,""]
[null,null,null,null,null,null,""]
[null,null,null,null,null,null,""]
[null,null,null,null,null,null,""]
[null,null,null,null,null,null,""]
[null,null,null,null,null,null,""]
[null,null,null,null,null,null,""]
[null,null,null,null,null,null,""]
[null,null,null,null,null,null,""]
[null,null,null,null,null,null,""]
[null,null,null,null,null,null,""]
[null,null,null,null,null,null,""]
[null,null,null,null,null,null,""]
[null,null,null,null,null,null,""]
[null,null,null,null,null,null,""]
[null,null,null,null,null,null,""]
[null,null,null,null,null,null,""]
[null,null,null,null,null,null,""]
[null,null,null,null,null,null,""]
[null,null,null,null,null,null,""]
[null,null,null,null,null,null,""]
[null,null,null,null,null,null,""]
[null,null,null,null,null,null,""]
[null,null,null,null,null,null,""]
[null,null,null,null,null,null,""]
[null,null,null,null,null,null,""]
[null,null,null,null,null,null,""]
[null,null,null,null,null,null,""]
[null,null,null,null,null,null,""]
[null,null,null,null,null,null,""]
[null,null,null,null,null,null,""]
[null,null,null,null,null,null,""]
[null,null,null,null,null,null,""]
[null,null,null,null,null,null,""]
[null,null,null,null,null,null,""]
[null,null,null,null,null,null,""]
[null,null,null,null,null,null,""]
[null,null,null,null,null,null,""]
[null,null,null,null,null,null,""]
[null,null,null,null,null,null,""]
[null,null,null,null,null,null,""]
[null,null,null,null,null,null,""]
[null,null,null,null,null,null,""]
[null,null,null,null,null,null,""]
[null,null,null,null,null,null,""]
[null,null,null,null,null,null,""]
[null,null,null,null,null,null,""]
[null,null,null,null,null,null,""]
[null,null,null,null,null,null,""]
[null,null,null,null,null,null,""]
[null,null,null,null,null,null,""]
[null,null,null,null,null,null,""]
[null,null,null,null,null,null,""]
[null,null,null,null,null,null,""]
[null,null,null,null,null,null,""]
[null,null,null,null,null,null,""]
[null,null,null,null,null,null,""]
[null,null,null,null,null,null,""]
[null,null,null,null,null,null,""]
[null,null,null,null,null,null,""]
[null,null,null,null,null,null,""]
[null,null,null,null,null,null,""]
[null,null,null,null,null,null,""]
[null,null,null,null,null,null,""]
[null,null,null,null,null,null,""]
[null,null,null,null,null,null,""]
[null,null,null,null,null,null,""]
[null,null,null,null,null,null,""]
[null,null,null,null,null,null,""]
[null,null,null,null,null,null,""]
[null,null,null,null,null,null,""]
[null,null,null,null,null,null,""]
[null,null,null,null,null,null,""]
[null,null,null,null,null,null,""]
[null,null,null,null,null,null,""]
[null,null,null,null,null,null,""]
[null,null,null,null,null,null,""]
[null,null,null,null,null,null,""]
[null,null,null,null,null,null,""]
[null,null,null,null,null,null,""]
[null,null,null,null,null,null,""]
[null,null,null,null,null,null,""]
[null,null,null,null,null,null,""]
[null,null,null,null,null,null,""]
[null,null,null,null,null,null,""]
[null,null,null,null,null,null,""]
[null,null,null,null,null,null,""]
[null,null,null,null,null,null,""]
[null,null,null,null,null,null,""]
[null,null,null,null,null,null,""]
[null,null,null,null,null,null,""]
[null,null,null,null,null,null,""]
[null,null,null,null,null,null,""]
[null,null,null,null,null,null,""]
[null,null,null,null,null,null,""]
[null,null,null,null,null,null,""]
[null,null,null,null,null,null,""]
[null,null,null,null,null,null,""]
[null,null,null,null,null,null,""]
[null,null,null,null,null,null,""]
[null,null,null,null,null,null,""]
[null,null,null,null,null,null,""]
[null,null,null,null,null,null,""]
[null,null,null,null,null,null,""]
[null,null,null,null,null,null,""]
[null,null,null,null,null,null,""]
[null,null,null,null,null,null,""]
[null,null,null,null,null,null,""]
[null,null,null,null,null,null,""]
[null,null,null,null,null,null,""]
[null,null,null,null,null,null,""]
[null,null,null,null,null,null,""]
[null,null,null,null,null,null,""]
[null,null,null,null,null,null,""]
[null,null,null,null,null,null,""]
[null,null,null,null,null,null,""]
[null,null,null,null,null,null,""]
[null,null,null,null,null,null,""]
[null,null,null,null,null,null,""]
[null,null,null,null,null,null,""]
[null,null,null,null,null,null,""]
[null,null,null,null,null,null,""]
[null,null,null,null,null,null,""]
[null,null,null,null,null,null,""]
[null,null,null,null,null,null,""]
[null,null,null,null,null,null,""]
[null,null,null,null,null,null,""]
[null,null,null,null,null,null,""]
[null,null,null,null,null,null,""]
[null,null,null,null,null,null,""]
[null,null,null,null,null,null,""]
[null,null,null,null,null,null,""]
[null,null,null,null,null,null,""]
[null,null,null,null,null,null,""]
[null,null,null,null,null,null,""]
[null,null,null,null,null,null,""]
[null,null,null,null,null,null,""]
[null,null,null,null,null,null,""]
[null,null,null,null,null,null,""]
[null,null,null,null,null,null,""]
[null,null,null,null,null,null,""]
[null,null,null,null,null,null,""]
[null,null,null,null,null,null,""]
[null,null,null,null,null,null,""]
[null,null,null,null,null,null,""]
[null,null,null,null,null,null,""]
[null,null,null,null,null,null,""]
[null,null,null,null,null,null,""]
[null,null,null,null,null,null,""]
[null,null,null,null,null,null,""]
[null,null,null,null,null,null,""]
[null,null,null,null,null,null,""]
[null,null,null,null,null,null,""]
[null,null,null,null,null,null,""]
[null,null,null,null,null,null,""]
[null,null,null,null,null,null,""]
[null,null,null,null,null,null,""]
[null,null,null,null,null,null,""]
[null,null,null,null,null,null,""]
[null,null,null,null,null,null,""]
[null,null,null,null,null,null,""]
[null,null,null,null,null,null,""]
[null,null,null,null,null,null,""]
[null,null,null,null,null,null,""]
[null,null,null,null,null,null,""]
[null,null,null,null,null,null,""]
[null,null,null,null,null,null,""]
[null,null,null,null,null,null,""]
[null,null,null,null,null,null,""]
[null,null,null,null,null,null,""]
[null,null,null,null,null,null,""]
[null,null,null,null,null,null,""]
[null,null,null,null,null,null,""]
[null,null,null,null,null,null,""]
[null,null,null,null,null,null,""]
[null,null,null,null,null,null,""]
[null,null,null,null,null,null,""]
[null,null,null,null,null,null,""]
[null,null,null,null,null,null,""]
[null,null,null,null,null,null,""]
[null,null,null,null,null,null,""]
[null,null,null,null,null,null,""]
[null,null,null,null,null,null,""]
[null,null,null,null,null,null,""]
[null,null,null,null,null,null,""]
[null,null,null,null,null,null,""]
[null,null,null,null,null,null,""]
[null,null,null,null,null,null,""]
[null,null,null,null,null,null,""]
[null,null,null,null,null,null,""]
[null,null,null,null,null,null,""]
[null,null,null,null,null,null,""]
[null,null,null,null,null,null,""]
[null,null,null,null,null,null,""]
[null,null,null,null,null,null,""]
[null,null,null,null,null,null,""]
[null,null,null,null,null,null,""]
[null,null,null,null,null,null,""]
[null,null,null,null,null,null,""]
[null,null,null,null,null,null,""]
[null,null,null,null,null,null,""]
[null,null,null,null,null,null,""]
[null,null,null,null,null,null,""]
[null,null,null,null,null,null,""]
[null,null,null,null,null,null,""]
[null,null,null,null,null,null,""]
[null,null,null,null,null,null,""]
[null,null,null,null,null,null,""]
[null,null,null,null,null,null,""]
[null,null,null,null,null,null,""]
[null,null,null,null,null,null,""]
[null,null,null,null,null,null,""]
[null,null,null,null,null,null,""]
[null,null,null,null,null,null,""]
[null,null,null,null,null,null,""]
[null,null,null,null,null,null,""]
[null,null,null,null,null,null,""]
[null,null,null,null,null,null,""]
[null,null,null,null,null,null,""]
[null,null,null,null,null,null,""]
[null,null,null,null,null,null,""]
[null,null,null,null,null,null,""]
[null,null,null,null,null,null,""]
[null,null,null,null,null,null,""]
[null,null,null,null,null,null,""]
[null,null,null,null,null,null,""]
[null,null,null,null,null,null,""]
[null,null,null,null,null,null,""]
[null,null,null,null,null,null,""]
[null,null,null,null,null,null,""]
[null,null,null,null,null,null,""]
[null,null,null,null,null,null,""]
[null,null,null,null,null,null,""]
[null,null,null,null,null,null,""]
[null,null,null,null,null,null,""]
[null,null,null,null,null,null,""]
[null,null,null,null,null,null,""]
[null,null,null,null,null,null,""]
[null,null,null,null,null,null,""]
[null,null,null,null,null,null,""]
[null,null,null,null,null,null,""]
[null,null,null,null,null,null,""]
[null,null,null,null,null,null,""]
[null,null,null,null,null,null,""]
[null,null,null,null,null,null,""]
[null,null,null,null,null,null,""]
[null,null,null,null,null,null,""]
[null,null,null,null,null,null,""]
[null,null,null,null,null,null,""]
[null,null,null,null,null,null,""]
[null,null,null,null,null,null,""]
[null,null,null,null,null,null,""]
[null,null,null,null,null,null,""]
[null,null,null,null,null,null,""]
[null,null,null,null,null,null,""]
[null,null,null,null,null,null,""]
[null,null,null,null,null,null,""]
[null,null,null,null,null,null,""]
[null,null,null,null,null,null,""]
[null,null,null,null,null,null,""]
[null,null,null,null,null,null,""]
[null,null,null,null,null,null,""]
[null,null,null,null,null,null,""]
[null,null,null,null,null,null,""]
[null,null,null,null,null,null,""]
[null,null,null,null,null,null,""]
[null,null,null,null,null,null,""]
[null,null,null,null,null,null,""]
[null,null,null,null,null,null,""]
[null,null,null,null,null,null,""]
[null,null,null,null,null,null,""]
[null,null,null,null,null,null,""]
[null,null,null,null,null,null,""]
[null,null,null,null,null,null,""]
[null,null,null,null,null,null,""]
[null,null,null,null,null,null,""]
[null,null,null,null,null,null,""]
[null,null,null,null,null,null,""]
[null,null,null,null,null,null,""]
[null,null,null,null,null,null,""]
[null,null,null,null,null,null,""]
[null,null,null,null,null,null,""]
[null,null,null,null,null,null,""]
[null,null,null,null,null,null,""]
[null,null,null,null,null,null,""]
[null,null,null,null,null,null,""]
[null,null,null,null,null,null,""]
[null,null,null,null,null,null,""]
[null,null,null,null,null,null,""]
[null,null,null,null,null,null,""]
[null,null,null,null,null,null,""]
[null,null,null,null,null,null,""]
[null,null,null,null,null,null,""]
[null,null,null,null,null,null,""]
[null,null,null,null,null,null,""]
[null,null,null,null,null,null,""]
[null,null,null,null,null,null,""]
[null,null,null,null,null,null,""]
[null,null,null,null,null,null,""]
[null,null,null,null,null,null,""]
[null,null,null,null,null,null,""]
[null,null,null,null,null,null,""]
[null,null,null,null,null,null,""]
[null,null,null,null,null,null,""]
[null,null,null,null,null,null,""]
[null,null,null,null,null,null,""]
[null,null,null,null,null,null,""]
[null,null,null,null,null,null,""]
[null,null,null,null,null,null,""]
[null,null,null,null,null,null,""]
[null,null,null,null,null,null,""]
[null,null,null,null,null,null,""]
[null,null,null,null,null,null,""]
[null,null,null,null,null,null,""]
[null,null,null,null,null,null,""]
[null,null,null,null,null,null,""]
[null,null,null,null,null,null,""]
[null,null,null,null,null,null,""]
[null,null,null,null,null,null,""]
[null,null,null,null,null,null,""]
[null,null,null,null,null,null,""]
[null,null,null,null,null,null,""]
[null,null,null,null,null,null,""]
[null,null,null,null,null,null,""]
[null,null,null,null,null,null,""]
[null,null,null,null,null,null,""]
[null,null,null,null,null,null,""]
[null,null,null,null,null,null,""]
[null,null,null,null,null,null,""]
[null,null,null,null,null,null,""]
[null,null,null,null,null,null,""]
[null,null,null,null,null,null,""]
[null,null,null,null,null,null,""]
[null,null,null,null,null,null,""]
[null,null,null,null,null,null,""]
[null,null,null,null,null,null,""]
[null,null,null,null,null,null,""]
[null,null,null,null,null,null,""]
[null,null,null,null,null,null,""]
[null,null,null,null,null,null,""]
[null,null,null,null,null,null,""]
[null,null,null,null,null,null,""]
[null,null,null,null,null,null,""]
[null,null,null,null,null,null,""]
[null,null,null,null,null,null,""]
[null,null,null,null,null,null,""]
[null,null,null,null,null,null,""]
[null,null,null,null,null,null,""]
[null,null,null,null,null,null,""]
[null,null,null,null,null,null,""]
[null,null,null,null,null,null,""]
[null,null,null,null,null,null,""]
[null,null,null,null,null,null,""]
[null,null,null,null,null,null,""]
[null,null,null,null,null,null,""]
[null,null,null,null,null,null,""]
[null,null,null,null,null,null,""]
[null,null,null,null,null,null,""]
[null,null,null,null,null,null,""]
[null,null,null,null,null,null,""]
[null,null,null,null,null,null,""]
[null,null,null,null,null,null,""]
[null,null,null,null,null,null,""]
[null,null,null,null,null,null,""]
[null,null,null,null,null,null,""]
[null,null,null,null,null,null,""]
[null,null,null,null,null,null,""]
[null,null,null,null,null,null,""]
[null,null,null,null,null,null,""]
[null,null,null,null,null,null,""]
[null,null,null,null,null,null,""]
[null,null,null,null,null,null,""]
[null,null,null,null,null,null,""]
[null,null,null,null,null,null,""]
[null,null,null,null,null,null,""]
[null,null,null,null,null,null,""]
[null,null,null,null,null,null,""]
[null,null,null,null,null,null,""]
[null,null,null,null,null,null,""]
[null,null,null,null,null,null,""]
[null,null,null,null,null,null,""]
[null,null,null,null,null,null,""]
[null,null,null,null,null,null,""]
[null,null,null,null,null,null,""]
[null,null,null,null,null,null,""]
[null,null,null,null,null,null,""]
[null,null,null,null,null,null,""]
[null,null,null,null,null,null,""]
[null,null,null,null,null,null,""]
[null,null,null,null,null,null,""]
[null,null,null,null,null,null,""]
[null,null,null,null,null,null,""]
[null,null,null,null,null,null,""]
[null,null,null,null,null,null,""]
[null,null,null,null,null,null,""]
[null,null,null,null,null,null,""]
[null,null,null,null,null,null,""]
[null,null,null,null,null,null,""]
[null,null,null,null,null,null,""]
[null,null,null,null,null,null,""]
[null,null,null,null,null,null,""]
[null,null,null,null,null,null,""]
[null,null,null,null,null,null,""]
[null,null,null,null,null,null,""]
[null,null,null,null,null,null,""]
[null,null,null,null,null,null,""]
[null,null,null,null,null,null,""]
[null,null,null,null,null,null,""]
[null,null,null,null,null,null,""]
[null,null,null,null,null,null,""]
[null,null,null,null,null,null,""]
[null,null,null,null,null,null,""]
[null,null,null,null,null,null,""]
[null,null,null,null,null,null,""]
[null,null,null,null,null,null,""]
[null,null,null,null,null,null,""]
[null,null,null,null,null,null,""]
[null,null,null,null,null,null,""]
[null,null,null,null,null,null,""]
[null,null,null,null,null,null,""]
[null,null,null,null,null,null,""]
[null,null,null,null,null,null,""]
[null,null,null,null,null,null,""]
[null,null,null,null,null,null,""]
[null,null,null,null,null,null,""]
[null,null,null,null,null,null,""]
[null,null,null,null,null,null,""]
[null,null,null,null,null,null,""]
[null,null,null,null,null,null,""]
[null,null,null,null,null,null,""]
[null,null,null,null,null,null,""]
[null,null,null,null,null,null,""]
[null,null,null,null,null,null,""]

{"sheet":"E04","index":6,"n_rows":664,"n_cols":7,"rows_kept":664,"cut":false,"hidden":false,"merged":[[30,1,30,3],[17,1,17,3],[18,2,18,3],[19,2,19,3],[20,2,20,3],[21,2,26,3],[5,2,5,3],[4,1,4,3],[6,2,6,3],[7,2,7,3],[8,2,13,3],[31,2,31,3],[32,2,32,3],[33,2,33,3],[34,2,39,3],[43,1,43,3],[44,2,44,3],[45,2,45,3],[46,2,46,3],[47,2,52,3],[58,1,58,3],[59,2,59,3],[60,2,60,3],[61,2,61,3],[62,2,67,3],[73,1,73,3],[74,2,74,3],[75,2,75,3],[76,2,76,3],[77,2,82,3],[86,1,86,3],[87,2,87,3],[88,2,88,3],[89,2,89,3],[90,2,95,3],[99,1,99,3],[100,2,100,3],[101,2,101,3],[102,2,102,3],[103,2,108,3],[114,1,114,3],[128,2,128,3],[129,2,129,3],[130,2,130,3],[131,2,136,3],[115,2,115,3],[116,2,116,3],[117,2,117,3],[118,2,123,3],[127,1,127,3]]}
[]
[null,null,null,null,null,null,""]
[null,"4.1 - Flächennutzungsplan",null,null,null,null,"4.1"]
[null,null,null,null,null,null,""]
[null,"4.1.1 - Potentielle Vertreibung der Bevölkerung",null,null,null,null,"4.1.1"]
[null,"Frage / Beurteilungsbereich","Kommentare",null,null,null,""]
[null,null,null,null,null,null,""]
[null,"Empfohlene – nicht verbindliche – Bewertungsskala","Stellen Sie Nachweise bereit (Erklärungen etc.)",null,null,null,""]
[null,null,null,null,null,{"$f":"IF(E9=1,TRUE,FALSE)","v":false},""]
[null,null,null,null,null,{"$f":"IF(E9=2,TRUE,FALSE)","v":false},""]
[null,null,null,null,null,{"$f":"IF(E9=3,TRUE,FALSE)","v":false},""]
[null,null,null,null,null,{"$f":"IF(E9=4,TRUE,FALSE)","v":false},""]
[null,null,null,null,null,{"$f":"IF(E9=5,TRUE,FALSE)","v":false},""]
[null,null,null,null,null,{"$f":"IF(E9=6,TRUE,FALSE)","v":false},""]
[null,"Maßnahmen um maximale Resilienz zu erreichen","Verantwortliche Stelle","Zeitraum",null,null,""]
[null,null,null,null,null,null,""]
[null,null,null,null,null,null,""]
[null,"4.1.2 - Gefährdete Wirtschaftstätigkeit",null,null,null,null,"4.1.2"]
[null,"Frage / Beurteilungsbereich","Kommentare",null,null,null,""]
[null,null,null,null,null,null,""]
[null,"Empfohlene – nicht verbindliche – Bewertungsskala","Stellen Sie Nachweise bereit (Erklärungen etc.)",null,null,null,""]
[null,null,null,null,null,{"$f":"IF(E22=1,TRUE,FALSE)","v":false},""]
[null,null,null,null,null,{"$f":"IF(E22=2,TRUE,FALSE)","v":false},""]
[null,null,null,null,null,{"$f":"IF(E22=3,TRUE,FALSE)","v":false},""]
[null,null,null,null,null,{"$f":"IF(E22=4,TRUE,FALSE)","v":false},""]
[null,null,null,null,null,{"$f":"IF(E22=5,TRUE,FALSE)","v":false},""]
[null,null,null,null,null,{"$f":"IF(E22=6,TRUE,FALSE)","v":false},""]
[null,"Maßnahmen um maximale Resilienz zu erreichen","Verantwortliche Stelle","Zeitraum",null,null,""]
[null,null,null,null,null,null,""]
[null,null,null,null,null,null,""]
[null,"4.1.2.1  - Gefährdete Wirtschaftstätigkeit",null,null,null,null,"4.1.2.1"]
[null,"Frage / Beurteilungsbereich","Kommentare",null,null,null,""]
[null,null,null,null,null,null,""]
[null,"Empfohlene – nicht verbindliche – Bewertungsskala","Stellen Sie Nachweise bereit (Erklärungen etc.)",null,null,null,""]
[null,null,null,null,null,{"$f":"IF(E35=1,TRUE,FALSE)","v":false},""]
[null,null,null,null,null,{"$f":"IF(E35=2,TRUE,FALSE)","v":false},""]
[null,null,null,null,null,{"$f":"IF(E35=3,TRUE,FALSE)","v":false},""]
[null,null,null,null,null,{"$f":"IF(E35=4,TRUE,FALSE)","v":false},""]
[null,null,null,null,null,{"$f":"IF(E35=5,TRUE,FALSE)","v":false},""]
[null,null,null,null,null,{"$f":"IF(E35=6,TRUE,FALSE)","v":false},""]
[null,"Maßnahmen um maximale Resilienz zu erreichen","Verantwortliche Stelle","Zeitraum",null,null,""]
[null,null,null,null,null,null,""]
[null,null,null,null,null,null,""]
[null,"4.1.3 - Gefährdete landwirtschaftliche Flächen",null,null,null,null,"4.1.3"]
[null,"Frage / Beurteilungsbereich","Kommentare",null,null,null,""]
[null,null,null,null,null,null,""]
[null,"Empfohlene – nicht verbindliche – Bewertungsskala","Stellen Sie Nachweise bereit (Erklärungen etc.)",null,null,null,""]
[null,null,null,null,null,{"$f":"IF(E48=1,TRUE,FALSE)","v":false},""]
[null,null,null,null,null,{"$f":"IF(E48=2,TRUE,FALSE)","v":false},""]
[null,null,null,null,null,{"$f":"IF(E48=3,TRUE,FALSE)","v":false},""]
[null,null,null,null,null,{"$f":"IF(E48=4,TRUE,FALSE)","v":false},""]
[null,null,null,null,null,{"$f":"IF(E48=5,TRUE,FALSE)","v":false},""]
[null,null,null,null,null,{"$f":"IF(E48=6,TRUE,FALSE)","v":false},""]
[null,"Maßnahmen um maximale Resilienz zu erreichen","Verantwortliche Stelle","Zeitraum",null,null,""]
[null,null,null,null,null,null,""]
[null,null,null,null,null,null,""]
[null,"4.2 - Neue städtebauliche Entwicklung",null,null,null,null,"4.2"]
[null,null,null,null,null,null,""]
[null,"4.2.1 - Städtebauliche Lösungen, die die Resilienz stärken",null,null,null,null,"4.2.1"]
[null,"Frage / Beurteilungsbereich","Kommentare",null,null,null,""]
[null,null,null,null,null,null,""]
[null,"Empfohlene – nicht verbindliche – Bewertungsskala","Stellen Sie Nachweise bereit (Erklärungen etc.)",null,null,null,""]
[null,null,null,null,null,{"$f":"IF(E63=1,TRUE,FALSE)","v":false},""]
[null,null,null,null,null,{"$f":"IF(E63=2,TRUE,FALSE)","v":false},""]
[null,null,null,null,null,{"$f":"IF(E63=3,TRUE,FALSE)","v":false},""]
[null,null,null,null,null,{"$f":"IF(E63=4,TRUE,FALSE)","v":false},""]
[null,null,null,null,null,{"$f":"IF(E63=5,TRUE,FALSE)","v":false},""]
[null,null,null,null,null,{"$f":"IF(E63=6,TRUE,FALSE)","v":false},""]
[null,"Maßnahmen um maximale Resilienz zu erreichen","Verantwortliche Stelle","Zeitraum",null,null,""]
[null,null,null,null,null,null,""]
[null,null,null,null,null,null,""]
[null,"4.3 - Bauvorschriften und -normen",null,null,null,null,"4.3"]
[null,null,null,null,null,null,""]
[null,"4.3.1 - Vorhandensein von Bauvorschriften, die auf die in Grundprinzip 2 genannten Risiken ausgerichtet sind.",null,null,null,null,"4.3.1"]
[null,"Frage / Beurteilungsbereich","Kommentare",null,null,null,""]
[null,null,null,null,null,null,""]
[null,"Empfohlene – nicht verbindliche – Bewertungsskala","Stellen Sie Nachweise bereit (Erklärungen etc.)",null,null,null,""]
[null,null,null,null,null,{"$f":"IF(E78=1,TRUE,FALSE)","v":false},""]
[null,null,null,null,null,{"$f":"IF(E78=2,TRUE,FALSE)","v":false},""]
[null,null,null,null,null,{"$f":"IF(E78=3,TRUE,FALSE)","v":false},""]
[null,null,null,null,null,{"$f":"IF(E78=4,TRUE,FALSE)","v":false},""]
[null,null,null,null,null,{"$f":"IF(E78=5,TRUE,FALSE)","v":false},""]
[null,null,null,null,null,{"$f":"IF(E78=6,TRUE,FALSE)","v":false},""]
[null,"Maßnahmen um maximale Resilienz zu erreichen","Verantwortliche Stelle","Zeitraum",null,null,""]
[null,null,null,null,null,null,""]
[null,null,null,null,null,null,""]
[null,"4.3.2 - Aktualisierungen der Bauvorschriften",null,null,null,null,"4.3.2"]
[null,"Frage / Beurteilungsbereich","Kommentare",null,null,null,""]
[null,null,null,null,null,null,""]
[null,"Empfohlene – nicht verbindliche – Bewertungsskala","Stellen Sie Nachweise bereit (Erklärungen etc.)",null,null,null,""]
[null,null,null,null,null,{"$f":"IF(E91=1,TRUE,FALSE)","v":false},""]
[null,null,null,null,null,{"$f":"IF(E91=2,TRUE,FALSE)","v":false},""]
[null,null,null,null,null,{"$f":"IF(E91=3,TRUE,FALSE)","v":false},""]
[null,null,null,null,null,{"$f":"IF(E91=4,TRUE,FALSE)","v":false},""]
[null,null,null,null,null,{"$f":"IF(E91=5,TRUE,FALSE)","v":false},""]
[null,null,null,null,null,{"$f":"IF(E91=6,TRUE,FALSE)","v":false},""]
[null,"Maßnahmen um maximale Resilienz zu erreichen","Verantwortliche Stelle","Zeitraum",null,null,""]
[null,null,null,null,null,null,""]
[null,null,null,null,null,null,""]
[null,"4.3.3 - Standards für nachhaltige Gebäudeplanung",null,null,null,null,"4.3.3"]
[null,"Frage / Beurteilungsbereich","Kommentare",null,null,null,""]
[null,null,null,null,null,null,""]
[null,"Empfohlene – nicht verbindliche – Bewertungsskala","Stellen Sie Nachweise bereit (Erklärungen etc.)",null,null,null,""]
[null,null,null,null,null,{"$f":"IF(E104=1,TRUE,FALSE)","v":false},""]
[null,null,null,null,null,{"$f":"IF(E104=2,TRUE,FALSE)","v":false},""]
[null,null,null,null,null,{"$f":"IF(E104=3,TRUE,FALSE)","v":false},""]
[null,null,null,null,null,{"$f":"IF(E104=4,TRUE,FALSE)","v":false},""]
[null,null,null,null,null,{"$f":"IF(E104=5,TRUE,FALSE)","v":false},""]
[null,null,null,null,null,{"$f":"IF(E104=6,TRUE,FALSE)","v":false},""]
[null,"Maßnahmen um maximale Resilienz zu erreichen","Verantwortliche Stelle","Zeitraum",null,null,""]
[null,null,null,null,null,null,""]
[null,null,null,null,null,null,""]
[null,"4.4 - Anwendung der Flächennutzungsplanung und des Bauplanungsrechts für die Raumordnung. ",null,null,null,null,"4.4"]
[null,null,null,null,null,null,""]
[null,"4.4.1 - Anwendung der Flächennutzungsplanung",null,null,null,null,"4.4.1"]
[null,"Frage / Beurteilungsbereich","Kommentare",null,null,null,""]
[null,null,null,null,null,null,""]
[null,"Empfohlene – nicht verbindliche – Bewertungsskala","Stellen Sie Nachweise bereit (Erklärungen etc.)",null,null,null,""]
[null,null,null,null,null,{"$f":"IF(E119=1,TRUE,FALSE)","v":false},""]
[null,null,null,null,null,{"$f":"IF(E119=2,TRUE,FALSE)","v":false},""]
[null,null,null,null,null,{"$f":"IF(E119=3,TRUE,FALSE)","v":false},""]
[null,null,null,null,null,{"$f":"IF(E119=4,TRUE,FALSE)","v":false},""]
[null,null,null,null,null,{"$f":"IF(E119=5,TRUE,FALSE)","v":false},""]
[null,null,null,null,null,{"$f":"IF(E119=6,TRUE,FALSE)","v":false},""]
[null,"Maßnahmen um maximale Resilienz zu erreichen","Verantwortliche Stelle","Zeitraum",null,null,""]
[null,null,null,null,null,null,""]
[null,null,null,null,null,null,""]
[null,"4.4.2 - Anwendung der Bauvorschriften",null,null,null,null,"4.4.2"]
[null,"Frage / Beurteilungsbereich","Kommentare",null,null,null,""]
[null,null,null,null,null,null,""]
[null,"Empfohlene – nicht verbindliche – Bewertungsskala","Stellen Sie Nachweise bereit (Erklärungen etc.)",null,null,null,""]
[null,null,null,null,null,{"$f":"IF(E132=1,TRUE,FALSE)","v":false},""]
[null,null,null,null,null,{"$f":"IF(E132=2,TRUE,FALSE)","v":false},""]
[null,null,null,null,null,{"$f":"IF(E132=3,TRUE,FALSE)","v":false},""]
[null,null,null,null,null,{"$f":"IF(E132=4,TRUE,FALSE)","v":false},""]
[null,null,null,null,null,{"$f":"IF(E132=5,TRUE,FALSE)","v":false},""]
[null,null,null,null,null,{"$f":"IF(E132=6,TRUE,FALSE)","v":false},""]
[null,"Maßnahmen um maximale Resilienz zu erreichen","Verantwortliche Stelle","Zeitraum",null,null,""]
[null,null,null,null,null,null,""]
[null,null,null,null,null,null,""]
[null,null,null,null,null,null,""]
[null,null,null,null,null,null,""]
[null,null,null,null,null,null,""]
[null,null,null,null,null,null,""]
[null,null,null,null,null,null,""]
[null,null,null,null,null,null,""]
[null,null,null,null,null,null,""]
[null,null,null,null,null,null,""]
[null,null,null,null,null,null,""]
[null,null,null,null,null,null,""]
[null,null,null,null,null,null,""]
[null,null,null,null,null,null,""]
[null,null,null,null,null,null,""]
[null,null,null,null,null,null,""]
[null,null,null,null,null,null,""]
[null,null,null,null,null,null,""]
[null,null,null,null,null,null,""]
[null,null,null,null,null,null,""]
[null,null,null,null,null,null,""]
[null,null,null,null,null,null,""]
[null,null,null,null,null,null,""]
[null,null,null,null,null,null,""]
[null,null,null,null,null,null,""]
[null,null,null,null,null,null,""]
[null,null,null,null,null,null,""]
[null,null,null,null,null,null,""]
[null,null,null,null,null,null,""]
[null,null,null,null,null,null,""]
[null,null,null,null,null,null,""]
[null,null,null,null,null,null,""]
[null,null,null,null,null,null,""]
[null,null,null,null,null,null,""]
[null,null,null,null,null,null,""]
[null,null,null,null,null,null,""]
[null,null,null,null,null,null,""]
[null,null,null,null,null,null,""]
[null,null,null,null,null,null,""]
[null,null,null,null,null,null,""]
[null,null,null,null,null,null,""]
[null,null,null,null,null,null,""]
[null,null,null,null,null,null,""]
[null,null,null,null,null,null,""]
[null,null,null,null,null,null,""]
[null,null,null,null,null,null,""]
[null,null,null,null,null,null,""]
[null,null,null,null,null,null,""]
[null,null,null,null,null,null,""]
[null,null,null,null,null,null,""]
[null,null,null,null,null,null,""]
[null,null,null,null,null,null,""]
[null,null,null,null,null,null,""]
[null,null,null,null,null,null,""]
[null,null,null,null,null,null,""]
[null,null,null,null,null,null,""]
[null,null,null,null,null,null,""]
[null,null,null,null,null,null,""]
[null,null,null,null,null,null,""]
[null,null,null,null,null,null,""]
[null,null,null,null,null,null,""]
[null,null,null,null,null,null,""]
[null,null,null,null,null,null,""]
[null,null,null,null,null,null,""]
[null,null,null,null,null,null,""]
[null,null,null,null,null,null,""]
[null,null,null,null,null,null,""]
[null,null,null,null,null,null,""]
[null,null,null,null,null,null,""]
[null,null,null,null,null,null,""]
[null,null,null,null,null,null,""]
[null,null,null,null,null,null,""]
[null,null,null,null,null,null,""]
[null,null,null,null,null,null,""]
[null,null,null,null,null,null,""]
[null,null,null,null,null,null,""]
[null,null,null,null,null,null,""]
[null,null,null,null,null,null,""]
[null,null,null,null,null,null,""]
[null,null,null,null,null,null,""]
[null,null,null,null,null,null,""]
[null,null,null,null,null,null,""]
[null,null,null,null,null,null,""]
[null,null,null,null,null,null,""]
[null,null,null,null,null,null,""]
[null,null,null,null,null,null,""]
[null,null,null,null,null,null,""]
[null,null,null,null,null,null,""]
[null,null,null,null,null,null,""]
[null,null,null,null,null,null,""]
[null,null,null,null,null,null,""]
[null,null,null,null,null,null,""]
[null,null,null,null,null,null,""]
[null,null,null,null,null,null,""]
[null,null,null,null,null,null,""]
[null,null,null,null,null,null,""]
[null,null,null,null,null,null,""]
[null,null,null,null,null,null,""]
[null,null,null,null,null,null,""]
[null,null,null,null,null,null,""]
[null,null,null,null,null,null,""]
[null,null,null,null,null,null,""]
[null,null,null,null,null,null,""]
[null,null,null,null,null,null,""]
[null,null,null,null,null,null,""]
[null,null,null,null,null,null,""]
[null,null,null,null,null,null,""]
[null,null,null,null,null,null,""]
[null,null,null,null,null,null,""]
[null,null,null,null,null,null,""]
[null,null,null,null,null,null,""]
[null,null,null,null,null,null,""]
[null,null,null,null,null,null,""]
[null,null,null,null,null,null,""]
[null,null,null,null,null,null,""]
[null,null,null,null,null,null,""]
[null,null,null,null,null,null,""]
[null,null,null,null,null,null,""]
[null,null,null,null,null,null,""]
[null,null,null,null,null,null,""]
[null,null,null,null,null,null,""]
[null,null,null,null,null,null,""]
[null,null,null,null,null,null,""]
[null,null,null,null,null,null,""]
[null,null,null,null,null,null,""]
[null,null,null,null,null,null,""]
[null,null,null,null,null,null,""]
[null,null,null,null,null,null,""]
[null,null,null,null,null,null,""]
[null,null,null,null,null,null,""]
[null,null,null,null,null,null,""]
[null,null,null,null,null,null,""]
[null,null,null,null,null,null,""]
[null,null,null,null,null,null,""]
[null,null,null,null,null,null,""]
[null,null,null,null,null,null,""]
[null,null,null,null,null,null,""]
[null,null,null,null,null,null,""]
[null,null,null,null,null,null,""]
[null,null,null,null,null,null,""]
[null,null,null,null,null,null,""]
[null,null,null,null,null,null,""]
[null,null,null,null,null,null,""]
[null,null,null,null,null,null,""]
[null,null,null,null,null,null,""]
[null,null,null,null,null,null,""]
[null,null,null,null,null,null,""]
[null,null,null,null,null,null,""]
[null,null,null,null,null,null,""]
[null,null,null,null,null,null,""]
[null,null,null,null,null,null,""]
[null,null,null,null,null,null,""]
[null,null,null,null,null,null,""]
[null,null,null,null,null,null,""]
[null,null,null,null,null,null,""]
[null,null,null,null,null,null,""]
[null,null,null,null,null,null,""]
[null,null,null,null,null,null,""]
[null,null,null,null,null,null,""]
[null,null,null,null,null,null,""]
[null,null,null,null,null,null,""]
[null,null,null,null,null,null,""]
[null,null,null,null,null,null,""]
[null,null,null,null,null,null,""]
[null,null,null,null,null,null,""]
[null,null,null,null,null,null,""]
[null,null,null,null,null,null,""]
[null,null,null,null,null,null,""]
[null,null,null,null,null,null,""]
[null,null,null,null,null,null,""]
[null,null,null,null,null,null,""]
[null,null,null,null,null,null,""]
[null,null,null,null,null,null,""]
[null,null,null,null,null,null,""]
[null,null,null,null,null,null,""]
[null,null,null,null,null,null,""]
[null,null,null,null,null,null,""]
[null,null,null,null,null,null,""]
[null,null,null,null,null,null,""]
[null,null,null,null,null,null,""]
[null,null,null,null,null,null,""]
[null,null,null,null,null,null,""]
[null,null,null,null,null,null,""]
[null,null,null,null,null,null,""]
[null,null,null,null,null,null,""]
[null,null,null,null,null,null,""]
[null,null,null,null,null,null,""]
[null,null,null,null,null,null,""]
[null,null,null,null,null,null,""]
[null,null,null,null,null,null,""]
[null,null,null,null,null,null,""]
[null,null,null,null,null,null,""]
[null,null,null,null,null,null,""]
[null,null,null,null,null,null,""]
[null,null,null,null,null,null,""]
[null,null,null,null,null,null,""]
[null,null,null,null,null,null,""]
[null,null,null,null,null,null,""]
[null,null,null,null,null,null,""]
[null,null,null,null,null,null,""]
[null,null,null,null,null,null,""]
[null,null,null,null,null,null,""]
[null,null,null,null,null,null,""]
[null,null,null,null,null,null,""]
[null,null,null,null,null,null,""]
[null,null,null,null,null,null,""]
[null,null,null,null,null,null,""]
[null,null,null,null,null,null,""]
[null,null,null,null,null,null,""]
[null,null,null,null,null,null,""]
[null,null,null,null,null,null,""]
[null,null,null,null,null,null,""]
[null,null,null,null,null,null,""]
[null,null,null,null,null,null,""]
[null,null,null,null,null,null,""]
[null,null,null,null,null,null,""]
[null,null,null,null,null,null,""]
[null,null,null,null,null,null,""]
[null,null,null,null,null,null,""]
[null,null,null,null,null,null,""]
[null,null,null,null,null,null,""]
[null,null,null,null,null,null,""]
[null,null,null,null,null,null,""]
[null,null,null,null,null,null,""]
[null,null,null,null,null,null,""]
[null,null,null,null,null,null,""]
[null,null,null,null,null,null,""]
[null,null,null,null,null,null,""]
[null,null,null,null,null,null,""]
[null,null,null,null,null,null,""]
[null,null,null,null,null,null,""]
[null,null,null,null,null,null,""]
[null,null,null,null,null,null,""]
[null,null,null,null,null,null,""]
[null,null,null,null,null,null,""]
[null,null,null,null,null,null,""]
[null,null,null,null,null,null,""]
[null,null,null,null,null,null,""]
[null,null,null,null,null,null,""]
[null,null,null,null,null,null,""]
[null,null,null,null,null,null,""]
[null,null,null,null,null,null,""]
[null,null,null,null,null,null,""]
[null,null,null,null,null,null,""]
[null,null,null,null,null,null,""]
[null,null,null,null,null,null,""]
[null,null,null,null,null,null,""]
[null,null,null,null,null,null,""]
[null,null,null,null,null,null,""]
[null,null,null,null,null,null,""]
[null,null,null,null,null,null,""]
[null,null,null,null,null,null,""]
[null,null,null,null,null,null,""]
[null,null,null,null,null,null,""]
[null,null,null,null,null,null,""]
[null,null,null,null,null,null,""]
[null,null,null,null,null,null,""]
[null,null,null,null,null,null,""]
[null,null,null,null,null,null,""]
[null,null,null,null,null,null,""]
[null,null,null,null,null,null,""]
[null,null,null,null,null,null,""]
[null,null,null,null,null,null,""]
[null,null,null,null,null,null,""]
[null,null,null,null,null,null,""]
[null,null,null,null,null,null,""]
[null,null,null,null,null,null,""]
[null,null,null,null,null,null,""]
[null,null,null,null,null,null,""]
[null,null,null,null,null,null,""]
[null,null,null,null,null,null,""]
[null,null,null,null,null,null,""]
[null,null,null,null,null,null,""]
[null,null,null,null,null,null,""]
[null,null,null,null,null,null,""]
[null,null,null,null,null,null,""]
[null,null,null,null,null,null,""]
[null,null,null,null,null,null,""]
[null,null,null,null,null,null,""]
[null,null,null,null,null,null,""]
[null,null,null,null,null,null,""]
[null,null,null,null,null,null,""]
[null,null,null,null,null,null,""]
[null,null,null,null,null,null,""]
[null,null,null,null,null,null,""]
[null,null,null,null,null,null,""]
[null,null,null,null,null,null,""]
[null,null,null,null,null,null,""]
[null,null,null,null,null,null,""]
[null,null,null,null,null,null,""]
[null,null,null,null,null,null,""]
[null,null,null,null,null,null,""]
[null,null,null,null,null,null,""]
[null,null,null,null,null,null,""]
[null,null,null,null,null,null,""]
[null,null,null,null,null,null,""]
[null,null,null,null,null,null,""]
[null,null,null,null,null,null,""]
[null,null,null,null,null,null,""]
[null,null,null,null,null,null,""]
[null,null,null,null,null,null,""]
[null,null,null,null,null,null,""]
[null,null,null,null,null,null,""]
[null,null,null,null,null,null,""]
[null,null,null,null,null,null,""]
[null,null,null,null,null,null,""]
[null,null,null,null,null,null,""]
[null,null,null,null,null,null,""]
[null,null,null,null,null,null,""]
[null,null,null,null,null,null,""]
[null,null,null,null,null,null,""]
[null,null,null,null,null,null,""]
[null,null,null,null,null,null,""]
[null,null,null,null,null,null,""]
[null,null,null,null,null,null,""]
[null,null,null,null,null,null,""]
[null,null,null,null,null,null,""]
[null,null,null,null,null,null,""]
[null,null,null,null,null,null,""]
[null,null,null,null,null,null,""]
[null,null,null,null,null,null,""]
[null,null,null,null,null,null,""]
[null,null,null,null,null,null,""]
[null,null,null,null,null,null,""]
[null,null,null,null,null,null,""]
[null,null,null,null,null,null,""]
[null,null,null,null,null,null,""]
[null,null,null,null,null,null,""]
[null,null,null,null,null,null,""]
[null,null,null,null,null,null,""]
[null,null,null,null,null,null,""]
[null,null,null,null,null,null,""]
[null,null,null,null,null,null,""]
[null,null,null,null,null,null,""]
[null,null,null,null,null,null,""]
[null,null,null,null,null,null,""]
[null,null,null,null,null,null,""]
[null,null,null,null,null,null,""]
[null,null,null,null,null,null,""]
[null,null,null,null,null,null,""]
[null,null,null,null,null,null,""]
[null,null,null,null,null,null,""]
[null,null,null,null,null,null,""]
[null,null,null,null,null,null,""]
[null,null,null,null,null,null,""]
[null,null,null,null,null,null,""]
[null,null,null,null,null,null,""]
[null,null,null,null,null,null,""]
[null,null,null,null,null,null,""]
[null,null,null,null,null,null,""]
[null,null,null,null,null,null,""]
[null,null,null,null,null,null,""]
[null,null,null,null,null,null,""]
[null,null,null,null,null,null,""]
[null,null,null,null,null,null,""]
[null,null,null,null,null,null,""]
[null,null,null,null,null,null,""]
[null,null,null,null,null,null,""]
[null,null,null,null,null,null,""]
[null,null,null,null,null,null,""]
[null,null,null,null,null,null,""]
[null,null,null,null,null,null,""]
[null,null,null,null,null,null,""]
[null,null,null,null,null,null,""]
[null,null,null,null,null,null,""]
[null,null,null,null,null,null,""]
[null,null,null,null,null,null,""]
[null,null,null,null,null,null,""]
[null,null,null,null,null,null,""]
[null,null,null,null,null,null,""]
[null,null,null,null,null,null,""]
[null,null,null,null,null,null,""]
[null,null,null,null,null,null,""]
[null,null,null,null,null,null,""]
[null,null,null,null,null,null,""]
[null,null,null,null,null,null,""]
[null,null,null,null,null,null,""]
[null,null,null,null,null,null,""]
[null,null,null,null,null,null,""]
[null,null,null,null,null,null,""]
[null,null,null,null,null,null,""]
[null,null,null,null,null,null,""]
[null,null,null,null,null,null,""]
[null,null,null,null,null,null,""]
[null,null,null,null,null,null,""]
[null,null,null,null,null,null,""]
[null,null,null,null,null,null,""]
[null,null,null,null,null,null,""]
[null,null,null,null,null,null,""]
[null,null,null,null,null,null,""]
[null,null,null,null,null,null,""]
[null,null,null,null,null,null,""]
[null,null,null,null,null,null,""]
[null,null,null,null,null,null,""]
[null,null,null,null,null,null,""]
[null,null,null,null,null,null,""]
[null,null,null,null,null,null,""]
[null,null,null,null,null,null,""]
[null,null,null,null,null,null,""]
[null,null,null,null,null,null,""]
[null,null,null,null,null,null,""]
[null,null,null,null,null,null,""]
[null,null,null,null,null,null,""]
[null,null,null,null,null,null,""]
[null,null,null,null,null,null,""]
[null,null,null,null,null,null,""]
[null,null,null,null,null,null,""]
[null,null,null,null,null,null,""]
[null,null,null,null,null,null,""]
[null,null,null,null,null,null,""]
[null,null,null,null,null,null,""]
[null,null,null,null,null,null,""]
[null,null,null,null,null,null,""]
[null,null,null,null,null,null,""]
[null,null,null,null,null,null,""]
[null,null,null,null,null,null,""]
[null,null,null,null,null,null,""]
[null,null,null,null,null,null,""]
[null,null,null,null,null,null,""]
[null,null,null,null,null,null,""]
[null,null,null,null,null,null,""]
[null,null,null,null,null,null,""]
[null,null,null,null,null,null,""]
[null,null,null,null,null,null,""]
[null,null,null,null,null,null,""]
[null,null,null,null,null,null,""]
[null,null,null,null,null,null,""]
[null,null,null,null,null,null,""]
[null,null,null,null,null,null,""]
[null,null,null,null,null,null,""]
[null,null,null,null,null,null,""]
[null,null,null,null,null,null,""]
[null,null,null,null,null,null,""]
[null,null,null,null,null,null,""]
[null,null,null,null,null,null,""]
[null,null,null,null,null,null,""]
[null,null,null,null,null,null,""]
[null,null,null,null,null,null,""]
[null,null,null,null,null,null,""]
[null,null,null,null,null,null,""]
[null,null,null,null,null,null,""]
[null,null,null,null,null,null,""]
[null,null,null,null,null,null,""]
[null,null,null,null,null,null,""]
[null,null,null,null,null,null,""]
[null,null,null,null,null,null,""]
[null,null,null,null,null,null,""]
[null,null,null,null,null,null,""]
[null,null,null,null,null,null,""]
[null,null,null,null,null,null,""]
[null,null,null,null,null,null,""]
[null,null,null,null,null,null,""]
[null,null,null,null,null,null,""]
[null,null,null,null,null,null,""]
[null,null,null,null,null,null,""]
[null,null,null,null,null,null,""]
[null,null,null,null,null,null,""]
[null,null,null,null,null,null,""]
[null,null,null,null,null,null,""]
[null,null,null,null,null,null,""]
[null,null,null,null,null,null,""]
[null,null,null,null,null,null,""]
[null,null,null,null,null,null,""]
[null,null,null,null,null,null,""]
[null,null,null,null,null,null,""]
[null,null,null,null,null,null,""]
[null,null,null,null,null,null,""]
[null,null,null,null,null,null,""]
[null,null,null,null,null,null,""]
[null,null,null,null,null,null,""]
[null,null,null,null,null,null,""]
[null,null,null,null,null,null,""]
[null,null,null,null,null,null,""]
[null,null,null,null,null,null,""]
[null,null,null,null,null,null,""]
[null,null,null,null,null,null,""]
[null,null,null,null,null,null,""]
[null,null,null,null,null,null,""]
[null,null,null,null,null,null,""]
[null,null,null,null,null,null,""]
[null,null,null,null,null,null,""]
[null,null,null,null,null,null,""]
[null,null,null,null,null,null,""]
[null,null,null,null,null,null,""]
[null,null,null,null,null,null,""]
[null,null,null,null,null,null,""]
[null,null,null,null,null,null,""]
[null,null,null,null,null,null,""]
[null,null,null,null,null,null,""]
[null,null,null,null,null,null,""]
[null,null,null,null,null,null,""]
[null,null,null,null,null,null,""]
[null,null,null,null,null,null,""]
[null,null,null,null,null,null,""]
[null,null,null,null,null,null,""]
[null,null,null,null,null,null,""]
[null,null,null,null,null,null,""]
[null,null,null,null,null,null,""]
[null,null,null,null,null,null,""]
[null,null,null,null,null,null,""]
[null,null,null,null,null,null,""]
[null,null,null,null,null,null,""]
[null,null,null,null,null,null,""]
[null,null,null,null,null,null,""]
[null,null,null,null,null,null,""]
[null,null,null,null,null,null,""]
[null,null,null,null,null,null,""]
[null,null,null,null,null,null,""]
[null,null,null,null,null,null,""]
[null,null,null,null,null,null,""]
[null,null,null,null,null,null,""]
[null,null,null,null,null,null,""]
[null,null,null,null,null,null,""]
[null,null,null,null,null,null,""]
[null,null,null,null,null,null,""]
[null,null,null,null,null,null,""]
[null,null,null,null,null,null,""]
[null,null,null,null,null,null,""]
[null,null,null,null,null,null,""]
[null,null,null,null,null,null,""]
[null,null,null,null,null,null,""]
[null,null,null,null,null,null,""]
[null,null,null,null,null,null,""]
[null,null,null,null,null,null,""]
[null,null,null,null,null,null,""]
[null,null,null,null,null,null,""]

{"sheet":"E05","index":7,"n_rows":664,"n_cols":7,"rows_kept":664,"cut":false,"hidden":false,"merged":[[20,2,20,3],[17,1,17,3],[18,2,18,3],[21,2,26,3],[4,1,4,3],[8,2,13,3],[19,2,19,3],[5,2,5,3],[6,2,6,3],[7,2,7,3],[32,1,32,3],[33,2,33,3],[34,2,34,3],[35,2,35,3],[36,2,41,3],[45,1,45,3],[46,2,46,3],[47,2,47,3],[48,2,48,3],[49,2,54,3],[60,1,60,3],[61,2,61,3],[62,2,62,3],[63,2,63,3],[64,2,69,3],[73,1,73,3],[74,2,74,3],[75,2,75,3],[76,2,76,3],[77,2,82,3]]}
[]
[null,null,null,null,null,null,""]
[null,"5.1 - Bestehende natürliche Umwelt und Gesundheit der Ökosysteme",null,null,null,null,"5.1"]
[null,null,null,null,null,null,""]
[null,"5.1.1 - Bewusstsein für die Rolle, die Ökosystem-leistungen für die Resilienz gegenüber Katastrophen der Kommune spielen können",null,null,null,null,"5.1.1"]
[null,"Frage / Beurteilungsbereich","Kommentare",null,null,null,""]
[null,null,null,null,null,null,""]
[null,"Empfohlene – nicht verbindliche – Bewertungsskala","Stellen Sie Nachweise bereit (Erklärungen etc.)",null,null,null,""]
[null,null,null,null,null,{"$f":"IF(E9=1,TRUE,FALSE)","v":false},""]
[null,null,null,null,null,{"$f":"IF(E9=2,TRUE,FALSE)","v":false},""]
[null,null,null,null,null,{"$f":"IF(E9=3,TRUE,FALSE)","v":false},""]
[null,null,null,null,null,{"$f":"IF(E9=4,TRUE,FALSE)","v":false},""]
[null,null,null,null,null,{"$f":"IF(E9=5,TRUE,FALSE)","v":false},""]
[null,null,null,null,null,{"$f":"IF(E9=6,TRUE,FALSE)","v":false},""]
[null,"Maßnahmen um maximale Resilienz zu erreichen","Verantwortliche Stelle","Zeitraum",null,null,""]
[null,null,null,null,null,null,""]
[null,null,null,null,null,null,""]
[null,"5.1.2 - Gesundheit der Ökosysteme",null,null,null,null,"5.1.2"]
[null,"Frage / Beurteilungsbereich","Kommentare",null,null,null,""]
[null,null,null,null,null,null,""]
[null,"Empfohlene – nicht verbindliche – Bewertungsskala","Stellen Sie Nachweise bereit (Erklärungen etc.)",null,null,null,""]
[null,null,null,null,null,{"$f":"IF(E22=1,TRUE,FALSE)","v":false},""]
[null,null,null,null,null,{"$f":"IF(E22=2,TRUE,FALSE)","v":false},""]
[null,null,null,null,null,{"$f":"IF(E22=3,TRUE,FALSE)","v":false},""]
[null,null,null,null,null,{"$f":"IF(E22=4,TRUE,FALSE)","v":false},""]
[null,null,null,null,null,{"$f":"IF(E22=5,TRUE,FALSE)","v":false},""]
[null,null,null,null,null,{"$f":"IF(E22=6,TRUE,FALSE)","v":false},""]
[null,"Maßnahmen um maximale Resilienz zu erreichen","Verantwortliche Stelle","Zeitraum",null,null,""]
[null,null,null,null,null,null,""]
[null,null,null,null,null,null,""]
[null,"5.2 - Integration von grüner und blauer Infrastruktur in kommunale Politik und Projekte",null,null,null,null,"5.2"]
[null,null,null,null,null,null,""]
[null,"5.2.1 - Auswirkungen der Flächennutzung und anderer politischer Maßnahmen auf Ökosystem-leistungen",null,null,null,null,"5.2.1"]
[null,"Frage / Beurteilungsbereich","Kommentare",null,null,null,""]
[null,null,null,null,null,null,""]
[null,"Empfohlene – nicht verbindliche – Bewertungsskala","Stellen Sie Nachweise bereit (Erklärungen etc.)",null,null,null,""]
[null,null,null,null,null,{"$f":"IF(E37=1,TRUE,FALSE)","v":false},""]
[null,null,null,null,null,{"$f":"IF(E37=2,TRUE,FALSE)","v":false},""]
[null,null,null,null,null,{"$f":"IF(E37=3,TRUE,FALSE)","v":false},""]
[null,null,null,null,null,{"$f":"IF(E37=4,TRUE,FALSE)","v":false},""]
[null,null,null,null,null,{"$f":"IF(E37=5,TRUE,FALSE)","v":false},""]
[null,null,null,null,null,{"$f":"IF(E37=6,TRUE,FALSE)","v":false},""]
[null,"Maßnahmen um maximale Resilienz zu erreichen","Verantwortliche Stelle","Zeitraum",null,null,""]
[null,null,null,null,null,null,""]
[null,null,null,null,null,null,""]
[null,"5.2.2 - Grüne und blaue Infrastruktur wird routinemäßig in kommunale Projekte integriert",null,null,null,null,"5.2.2"]
[null,"Frage / Beurteilungsbereich","Kommentare",null,null,null,""]
[null,null,null,null,null,null,""]
[null,"Empfohlene – nicht verbindliche – Bewertungsskala","Stellen Sie Nachweise bereit (Erklärungen etc.)",null,null,null,""]
[null,null,null,null,null,{"$f":"IF(E50=1,TRUE,FALSE)","v":false},""]
[null,null,null,null,null,{"$f":"IF(E50=2,TRUE,FALSE)","v":false},""]
[null,null,null,null,null,{"$f":"IF(E50=3,TRUE,FALSE)","v":false},""]
[null,null,null,null,null,{"$f":"IF(E50=4,TRUE,FALSE)","v":false},""]
[null,null,null,null,null,{"$f":"IF(E50=5,TRUE,FALSE)","v":false},""]
[null,null,null,null,null,{"$f":"IF(E50=6,TRUE,FALSE)","v":false},""]
[null,"Maßnahmen um maximale Resilienz zu erreichen","Verantwortliche Stelle","Zeitraum",null,null,""]
[null,null,null,null,null,null,""]
[null,null,null,null,null,null,""]
[null,"5.3 - Grenzüberschreitende Umweltfragen",null,null,null,null,"5.3"]
[null,null,null,null,null,null,""]
[null,"5.3.1 - Identifizierung von kritischen Umweltgütern",null,null,null,null,"5.3.1"]
[null,"Frage / Beurteilungsbereich","Kommentare",null,null,null,""]
[null,null,null,null,null,null,""]
[null,"Empfohlene – nicht verbindliche – Bewertungsskala","Stellen Sie Nachweise bereit (Erklärungen etc.)",null,null,null,""]
[null,null,null,null,null,{"$f":"IF(E65=1,TRUE,FALSE)","v":false},""]
[null,null,null,null,null,{"$f":"IF(E65=2,TRUE,FALSE)","v":false},""]
[null,null,null,null,null,{"$f":"IF(E65=3,TRUE,FALSE)","v":false},""]
[null,null,null,null,null,{"$f":"IF(E65=4,TRUE,FALSE)","v":false},""]
[null,null,null,null,null,{"$f":"IF(E65=5,TRUE,FALSE)","v":false},""]
[null,null,null,null,null,{"$f":"IF(E65=6,TRUE,FALSE)","v":false},""]
[null,"Maßnahmen um maximale Resilienz zu erreichen","Verantwortliche Stelle","Zeitraum",null,null,""]
[null,null,null,null,null,null,""]
[null,null,null,null,null,null,""]
[null,"5.3.2 - Grenzüber-schreitende Abkommen",null,null,null,null,"5.3.2"]
[null,"Frage / Beurteilungsbereich","Kommentare",null,null,null,""]
[null,null,null,null,null,null,""]
[null,"Empfohlene – nicht verbindliche – Bewertungsskala","Stellen Sie Nachweise bereit (Erklärungen etc.)",null,null,null,""]
[null,null,null,null,null,{"$f":"IF(E78=1,TRUE,FALSE)","v":false},""]
[null,null,null,null,null,{"$f":"IF(E78=2,TRUE,FALSE)","v":false},""]
[null,null,null,null,null,{"$f":"IF(E78=3,TRUE,FALSE)","v":false},""]
[null,null,null,null,null,{"$f":"IF(E78=4,TRUE,FALSE)","v":false},""]
[null,null,null,null,null,{"$f":"IF(E78=5,TRUE,FALSE)","v":false},""]
[null,null,null,null,null,{"$f":"IF(E78=6,TRUE,FALSE)","v":false},""]
[null,"Maßnahmen um maximale Resilienz zu erreichen","Verantwortliche Stelle","Zeitraum",null,null,""]
[null,null,null,null,null,null,""]
[null,null,null,null,null,null,""]
[null,null,null,null,null,null,""]
[null,null,null,null,null,null,""]
[null,null,null,null,null,null,""]
[null,null,null,null,null,null,""]
[null,null,null,null,null,null,""]
[null,null,null,null,null,null,""]
[null,null,null,null,null,null,""]
[null,null,null,null,null,null,""]
[null,null,null,null,null,null,""]
[null,null,null,null,null,null,""]
[null,null,null,null,null,null,""]
[null,null,null,null,null,null,""]
[null,null,null,null,null,null,""]
[null,null,null,null,null,null,""]
[null,null,null,null,null,null,""]
[null,null,null,null,null,null,""]
[null,null,null,null,null,null,""]
[null,null,null,null,null,null,""]
[null,null,null,null,null,null,""]
[null,null,null,null,null,null,""]
[null,null,null,null,null,null,""]
[null,null,null,null,null,null,""]
[null,null,null,null,null,null,""]
[null,null,null,null,null,null,""]
[null,null,null,null,null,null,""]
[null,null,null,null,null,null,""]
[null,null,null,null,null,null,""]
[null,null,null,null,null,null,""]
[null,null,null,null,null,null,""]
[null,null,null,null,null,null,""]
[null,null,null,null,null,null,""]
[null,null,null,null,null,null,""]
[null,null,null,null,null,null,""]
[null,null,null,null,null,null,""]
[null,null,null,null,null,null,""]
[null,null,null,null,null,null,""]
[null,null,null,null,null,null,""]
[null,null,null,null,null,null,""]
[null,null,null,null,null,null,""]
[null,null,null,null,null,null,""]
[null,null,null,null,null,null,""]
[null,null,null,null,null,null,""]
[null,null,null,null,null,null,""]
[null,null,null,null,null,null,""]
[null,null,null,null,null,null,""]
[null,null,null,null,null,null,""]
[null,null,null,null,null,null,""]
[null,null,null,null,null,null,""]
[null,null,null,null,null,null,""]
[null,null,null,null,null,null,""]
[null,null,null,null,null,null,""]
[null,null,null,null,null,null,""]
[null,null,null,null,null,null,""]
[null,null,null,null,null,null,""]
[null,null,null,null,null,null,""]
[null,null,null,null,null,null,""]
[null,null,null,null,null,null,""]
[null,null,null,null,null,null,""]
[null,null,null,null,null,null,""]
[null,null,null,null,null,null,""]
[null,null,null,null,null,null,""]
[null,null,null,null,null,null,""]
[null,null,null,null,null,null,""]
[null,null,null,null,null,null,""]
[null,null,null,null,null,null,""]
[null,null,null,null,null,null,""]
[null,null,null,null,null,null,""]
[null,null,null,null,null,null,""]
[null,null,null,null,null,null,""]
[null,null,null,null,null,null,""]
[null,null,null,null,null,null,""]
[null,null,null,null,null,null,""]
[null,null,null,null,null,null,""]
[null,null,null,null,null,null,""]
[null,null,null,null,null,null,""]
[null,null,null,null,null,null,""]
[null,null,null,null,null,null,""]
[null,null,null,null,null,null,""]
[null,null,null,null,null,null,""]
[null,null,null,null,null,null,""]
[null,null,null,null,null,null,""]
[null,null,null,null,null,null,""]
[null,null,null,null,null,null,""]
[null,null,null,null,null,null,""]
[null,null,null,null,null,null,""]
[null,null,null,null,null,null,""]
[null,null,null,null,null,null,""]
[null,null,null,null,null,null,""]
[null,null,null,null,null,null,""]
[null,null,null,null,null,null,""]
[null,null,null,null,null,null,""]
[null,null,null,null,null,null,""]
[null,null,null,null,null,null,""]
[null,null,null,null,null,null,""]
[null,null,null,null,null,null,""]
[null,null,null,null,null,null,""]
[null,null,null,null,null,null,""]
[null,null,null,null,null,null,""]
[null,null,null,null,null,null,""]
[null,null,null,null,null,null,""]
[null,null,null,null,null,null,""]
[null,null,null,null,null,null,""]
[null,null,null,null,null,null,""]
[null,null,null,null,null,null,""]
[null,null,null,null,null,null,""]
[null,null,null,null,null,null,""]
[null,null,null,null,null,null,""]
[null,null,null,null,null,null,""]
[null,null,null,null,null,null,""]
[null,null,null,null,null,null,""]
[null,null,null,null,null,null,""]
[null,null,null,null,null,null,""]
[null,null,null,null,null,null,""]
[null,null,null,null,null,null,""]
[null,null,null,null,null,null,""]
[null,null,null,null,null,null,""]
[null,null,null,null,null,null,""]
[null,null,null,null,null,null,""]
[null,null,null,null,null,null,""]
[null,null,null,null,null,null,""]
[null,null,null,null,null,null,""]
[null,null,null,null,null,null,""]
[null,null,null,null,null,null,""]
[null,null,null,null,null,null,""]
[null,null,null,null,null,null,""]
[null,null,null,null,null,null,""]
[null,null,null,null,null,null,""]
[null,null,null,null,null,null,""]
[null,null,null,null,null,null,""]
[null,null,null,null,null,null,""]
[null,null,null,null,null,null,""]
[null,null,null,null,null,null,""]
[null,null,null,null,null,null,""]
[null,null,null,null,null,null,""]
[null,null,null,null,null,null,""]
[null,null,null,null,null,null,""]
[null,null,null,null,null,null,""]
[null,null,null,null,null,null,""]
[null,null,null,null,null,null,""]
[null,null,null,null,null,null,""]
[null,null,null,null,null,null,""]
[null,null,null,null,null,null,""]
[null,null,null,null,null,null,""]
[null,null,null,null,null,null,""]
[null,null,null,null,null,null,""]
[null,null,null,null,null,null,""]
[null,null,null,null,null,null,""]
[null,null,null,null,null,null,""]
[null,null,null,null,null,null,""]
[null,null,null,null,null,null,""]
[null,null,null,null,null,null,""]
[null,null,null,null,null,null,""]
[null,null,null,null,null,null,""]
[null,null,null,null,null,null,""]
[null,null,null,null,null,null,""]
[null,null,null,null,null,null,""]
[null,null,null,null,null,null,""]
[null,null,null,null,null,null,""]
[null,null,null,null,null,null,""]
[null,null,null,null,null,null,""]
[null,null,null,null,null,null,""]
[null,null,null,null,null,null,""]
[null,null,null,null,null,null,""]
[null,null,null,null,null,null,""]
[null,null,null,null,null,null,""]
[null,null,null,null,null,null,""]
[null,null,null,null,null,null,""]
[null,null,null,null,null,null,""]
[null,null,null,null,null,null,""]
[null,null,null,null,null,null,""]
[null,null,null,null,null,null,""]
[null,null,null,null,null,null,""]
[null,null,null,null,null,null,""]
[null,null,null,null,null,null,""]
[null,null,null,null,null,null,""]
[null,null,null,null,null,null,""]
[null,null,null,null,null,null,""]
[null,null,null,null,null,null,""]
[null,null,null,null,null,null,""]
[null,null,null,null,null,null,""]
[null,null,null,null,null,null,""]
[null,null,null,null,null,null,""]
[null,null,null,null,null,null,""]
[null,null,null,null,null,null,""]
[null,null,null,null,null,null,""]
[null,null,null,null,null,null,""]
[null,null,null,null,null,null,""]
[null,null,null,null,null,null,""]
[null,null,null,null,null,null,""]
[null,null,null,null,null,null,""]
[null,null,null,null,null,null,""]
[null,null,null,null,null,null,""]
[null,null,null,null,null,null,""]
[null,null,null,null,null,null,""]
[null,null,null,null,null,null,""]
[null,null,null,null,null,null,""]
[null,null,null,null,null,null,""]
[null,null,null,null,null,null,""]
[null,null,null,null,null,null,""]
[null,null,null,null,null,null,""]
[null,null,null,null,null,null,""]
[null,null,null,null,null,null,""]
[null,null,null,null,null,null,""]
[null,null,null,null,null,null,""]
[null,null,null,null,null,null,""]
[null,null,null,null,null,null,""]
[null,null,null,null,null,null,""]
[null,null,null,null,null,null,""]
[null,null,null,null,null,null,""]
[null,null,null,null,null,null,""]
[null,null,null,null,null,null,""]
[null,null,null,null,null,null,""]
[null,null,null,null,null,null,""]
[null,null,null,null,null,null,""]
[null,null,null,null,null,null,""]
[null,null,null,null,null,null,""]
[null,null,null,null,null,null,""]
[null,null,null,null,null,null,""]
[null,null,null,null,null,null,""]
[null,null,null,null,null,null,""]
[null,null,null,null,null,null,""]
[null,null,null,null,null,null,""]
[null,null,null,null,null,null,""]
[null,null,null,null,null,null,""]
[null,null,null,null,null,null,""]
[null,null,null,null,null,null,""]
[null,null,null,null,null,null,""]
[null,null,null,null,null,null,""]
[null,null,null,null,null,null,""]
[null,null,null,null,null,null,""]
[null,null,null,null,null,null,""]
[null,null,null,null,null,null,""]
[null,null,null,null,null,null,""]
[null,null,null,null,null,null,""]
[null,null,null,null,null,null,""]
[null,null,null,null,null,null,""]
[null,null,null,null,null,null,""]
[null,null,null,null,null,null,""]
[null,null,null,null,null,null,""]
[null,null,null,null,null,null,""]
[null,null,null,null,null,null,""]
[null,null,null,null,null,null,""]
[null,null,null,null,null,null,""]
[null,null,null,null,null,null,""]
[null,null,null,null,null,null,""]
[null,null,null,null,null,null,""]
[null,null,null,null,null,null,""]
[null,null,null,null,null,null,""]
[null,null,null,null,null,null,""]
[null,null,null,null,null,null,""]
[null,null,null,null,null,null,""]
[null,null,null,null,null,null,""]
[null,null,null,null,null,null,""]
[null,null,null,null,null,null,""]
[null,null,null,null,null,null,""]
[null,null,null,null,null,null,""]
[null,null,null,null,null,null,""]
[null,null,null,null,null,null,""]
[null,null,null,null,null,null,""]
[null,null,null,null,null,null,""]
[null,null,null,null,null,null,""]
[null,null,null,null,null,null,""]
[null,null,null,null,null,null,""]
[null,null,null,null,null,null,""]
[null,null,null,null,null,null,""]
[null,null,null,null,null,null,""]
[null,null,null,null,null,null,""]
[null,null,null,null,null,null,""]
[null,null,null,null,null,null,""]
[null,null,null,null,null,null,""]
[null,null,null,null,null,null,""]
[null,null,null,null,null,null,""]
[null,null,null,null,null,null,""]
[null,null,null,null,null,null,""]
[null,null,null,null,null,null,""]
[null,null,null,null,null,null,""]
[null,null,null,null,null,null,""]
[null,null,null,null,null,null,""]
[null,null,null,null,null,null,""]
[null,null,null,null,null,null,""]
[null,null,null,null,null,null,""]
[null,null,null,null,null,null,""]
[null,null,null,null,null,null,""]
[null,null,null,null,null,null,""]
[null,null,null,null,null,null,""]
[null,null,null,null,null,null,""]
[null,null,null,null,null,null,""]
[null,null,null,null,null,null,""]
[null,null,null,null,null,null,""]
[null,null,null,null,null,null,""]
[null,null,null,null,null,null,""]
[null,null,null,null,null,null,""]
[null,null,null,null,null,null,""]
[null,null,null,null,null,null,""]
[null,null,null,null,null,null,""]
[null,null,null,null,null,null,""]
[null,null,null,null,null,null,""]
[null,null,null,null,null,null,""]
[null,null,null,null,null,null,""]
[null,null,null,null,null,null,""]
[null,null,null,null,null,null,""]
[null,null,null,null,null,null,""]
[null,null,null,null,null,null,""]
[null,null,null,null,null,null,""]
[null,null,null,null,null,null,""]
[null,null,null,null,null,null,""]
[null,null,null,null,null,null,""]
[null,null,null,null,null,null,""]
[null,null,null,null,null,null,""]
[null,null,null,null,null,null,""]
[null,null,null,null,null,null,""]
[null,null,null,null,null,null,""]
[null,null,null,null,null,null,""]
[null,null,null,null,null,null,""]
[null,null,null,null,null,null,""]
[null,null,null,null,null,null,""]
[null,null,null,null,null,null,""]
[null,null,null,null,null,null,""]
[null,null,null,null,null,null,""]
[null,null,null,null,null,null,""]
[null,null,null,null,null,null,""]
[null,null,null,null,null,null,""]
[null,null,null,null,null,null,""]
[null,null,null,null,null,null,""]
[null,null,null,null,null,null,""]
[null,null,null,null,null,null,""]
[null,null,null,null,null,null,""]
[null,null,null,null,null,null,""]
[null,null,null,null,null,null,""]
[null,null,null,null,null,null,""]
[null,null,null,null,null,null,""]
[null,null,null,null,null,null,""]
[null,null,null,null,null,null,""]
[null,null,null,null,null,null,""]
[null,null,null,null,null,null,""]
[null,null,null,null,null,null,""]
[null,null,null,null,null,null,""]
[null,null,null,null,null,null,""]
[null,null,null,null,null,null,""]
[null,null,null,null,null,null,""]
[null,null,null,null,null,null,""]
[null,null,null,null,null,null,""]
[null,null,null,null,null,null,""]
[null,null,null,null,null,null,""]
[null,null,null,null,null,null,""]
[null,null,null,null,null,null,""]
[null,null,null,null,null,null,""]
[null,null,null,null,null,null,""]
[null,null,null,null,null,null,""]
[null,null,null,null,null,null,""]
[null,null,null,null,null,null,""]
[null,null,null,null,null,null,""]
[null,null,null,null,null,null,""]
[null,null,null,null,null,null,""]
[null,null,null,null,null,null,""]
[null,null,null,null,null,null,""]
[null,null,null,null,null,null,""]
[null,null,null,null,null,null,""]
[null,null,null,null,null,null,""]
[null,null,null,null,null,null,""]
[null,null,null,null,null,null,""]
[null,null,null,null,null,null,""]
[null,null,null,null,null,null,""]
[null,null,null,null,null,null,""]
[null,null,null,null,null,null,""]
[null,null,null,null,null,null,""]
[null,null,null,null,null,null,""]
[null,null,null,null,null,null,""]
[null,null,null,null,null,null,""]
[null,null,null,null,null,null,""]
[null,null,null,null,null,null,""]
[null,null,null,null,null,null,""]
[null,null,null,null,null,null,""]
[null,null,null,null,null,null,""]
[null,null,null,null,null,null,""]
[null,null,null,null,null,null,""]
[null,null,null,null,null,null,""]
[null,null,null,null,null,null,""]
[null,null,null,null,null,null,""]
[null,null,null,null,null,null,""]
[null,null,null,null,null,null,""]
[null,null,null,null,null,null,""]
[null,null,null,null,null,null,""]
[null,null,null,null,null,null,""]
[null,null,null,null,null,null,""]
[null,null,null,null,null,null,""]
[null,null,null,null,null,null,""]
[null,null,null,null,null,null,""]
[null,null,null,null,null,null,""]
[null,null,null,null,null,null,""]
[null,null,null,null,null,null,""]
[null,null,null,null,null,null,""]
[null,null,null,null,null,null,""]
[null,null,null,null,null,null,""]
[null,null,null,null,null,null,""]
[null,null,null,null,null,null,""]
[null,null,null,null,null,null,""]
[null,null,null,null,null,null,""]
[null,null,null,null,null,null,""]
[null,null,null,null,null,null,""]
[null,null,null,null,null,null,""]
[null,null,null,null,null,null,""]
[null,null,null,null,null,null,""]
[null,null,null,null,null,null,""]
[null,null,null,null,null,null,""]
[null,null,null,null,null,null,""]
[null,null,null,null,null,null,""]
[null,null,null,null,null,null,""]
[null,null,null,null,null,null,""]
[null,null,null,null,null,null,""]
[null,null,null,null,null,null,""]
[null,null,null,null,null,null,""]
[null,null,null,null,null,null,""]
[null,null,null,null,null,null,""]
[null,null,null,null,null,null,""]
[null,null,null,null,null,null,""]
[null,null,null,null,null,null,""]
[null,null,null,null,null,null,""]
[null,null,null,null,null,null,""]
[null,null,null,null,null,null,""]
[null,null,null,null,null,null,""]
[null,null,null,null,null,null,""]
[null,null,null,null,null,null,""]
[null,null,null,null,null,null,""]
[null,null,null,null,null,null,""]
[null,null,null,null,null,null,""]
[null,null,null,null,null,null,""]
[null,null,null,null,null,null,""]
[null,null,null,null,null,null,""]
[null,null,null,null,null,null,""]
[null,null,null,null,null,null,""]
[null,null,null,null,null,null,""]
[null,null,null,null,null,null,""]
[null,null,null,null,null,null,""]
[null,null,null,null,null,null,""]
[null,null,null,null,null,null,""]
[null,null,null,null,null,null,""]
[null,null,null,null,null,null,""]
[null,null,null,null,null,null,""]
[null,null,null,null,null,null,""]
[null,null,null,null,null,null,""]
[null,null,null,null,null,null,""]
[null,null,null,null,null,null,""]
[null,null,null,null,null,null,""]
[null,null,null,null,null,null,""]
[null,null,null,null,null,null,""]
[null,null,null,null,null,null,""]
[null,null,null,null,null,null,""]
[null,null,null,null,null,null,""]
[null,null,null,null,null,null,""]
[null,null,null,null,null,null,""]
[null,null,null,null,null,null,""]
[null,null,null,null,null,null,""]
[null,null,null,null,null,null,""]
[null,null,null,null,null,null,""]
[null,null,null,null,null,null,""]
[null,null,null,null,null,null,""]
[null,null,null,null,null,null,""]
[null,null,null,null,null,null,""]
[null,null,null,null,null,null,""]
[null,null,null,null,null,null,""]
[null,null,null,null,null,null,""]
[null,null,null,null,null,null,""]
[null,null,null,null,null,null,""]
[null,null,null,null,null,null,""]
[null,null,null,null,null,null,""]
[null,null,null,null,null,null,""]
[null,null,null,null,null,null,""]
[null,null,null,null,null,null,""]
[null,null,null,null,null,null,""]
[null,null,null,null,null,null,""]
[null,null,null,null,null,null,""]
[null,null,null,null,null,null,""]
[null,null,null,null,null,null,""]
[null,null,null,null,null,null,""]
[null,null,null,null,null,null,""]
[null,null,null,null,null,null,""]
[null,null,null,null,null,null,""]
[null,null,null,null,null,null,""]
[null,null,null,null,null,null,""]
[null,null,null,null,null,null,""]
[null,null,null,null,null,null,""]
[null,null,null,null,null,null,""]
[null,null,null,null,null,null,""]
[null,null,null,null,null,null,""]
[null,null,null,null,null,null,""]
[null,null,null,null,null,null,""]
[null,null,null,null,null,null,""]
[null,null,null,null,null,null,""]
[null,null,null,null,null,null,""]
[null,null,null,null,null,null,""]
[null,null,null,null,null,null,""]
[null,null,null,null,null,null,""]
[null,null,null,null,null,null,""]
[null,null,null,null,null,null,""]
[null,null,null,null,null,null,""]
[null,null,null,null,null,null,""]
[null,null,null,null,null,null,""]
[null,null,null,null,null,null,""]
[null,null,null,null,null,null,""]
[null,null,null,null,null,null,""]
[null,null,null,null,null,null,""]
[null,null,null,null,null,null,""]
[null,null,null,null,null,null,""]
[null,null,null,null,null,null,""]
[null,null,null,null,null,null,""]
[null,null,null,null,null,null,""]
[null,null,null,null,null,null,""]
[null,null,null,null,null,null,""]
[null,null,null,null,null,null,""]
[null,null,null,null,null,null,""]
[null,null,null,null,null,null,""]
[null,null,null,null,null,null,""]
[null,null,null,null,null,null,""]
[null,null,null,null,null,null,""]
[null,null,null,null,null,null,""]
[null,null,null,null,null,null,""]
[null,null,null,null,null,null,""]
[null,null,null,null,null,null,""]
[null,null,null,null,null,null,""]
[null,null,null,null,null,null,""]
[null,null,null,null,null,null,""]
[null,null,null,null,null,null,""]
[null,null,null,null,null,null,""]
[null,null,null,null,null,null,""]
[null,null,null,null,null,null,""]
[null,null,null,null,null,null,""]
[null,null,null,null,null,null,""]
[null,null,null,null,null,null,""]
[null,null,null,null,null,null,""]
[null,null,null,null,null,null,""]
[null,null,null,null,null,null,""]
[null,null,null,null,null,null,""]
[null,null,null,null,null,null,""]
[null,null,null,null,null,null,""]
[null,null,null,null,null,null,""]
[null,null,null,null,null,null,""]
[null,null,null,null,null,null,""]
[null,null,null,null,null,null,""]
[null,null,null,null,null,null,""]
[null,null,null,null,null,null,""]
[null,null,null,null,null,null,""]
[null,null,null,null,null,null,""]
[null,null,null,null,null,null,""]
[null,null,null,null,null,null,""]
[null,null,null,null,null,null,""]
[null,null,null,null,null,null,""]
[null,null,null,null,null,null,""]
[null,null,null,null,null,null,""]
[null,null,null,null,null,null,""]
[null,null,null,null,null,null,""]
[null,null,null,null,null,null,""]
[null,null,null,null,null,null,""]
[null,null,null,null,null,null,""]
[null,null,null,null,null,null,""]
[null,null,null,null,null,null,""]
[null,null,null,null,null,null,""]
[null,null,null,null,null,null,""]
[null,null,null,null,null,null,""]
[null,null,null,null,null,null,""]
[null,null,null,null,null,null,""]
[null,null,null,null,null,null,""]
[null,null,null,null,null,null,""]
[null,null,null,null,null,null,""]
[null,null,null,null,null,null,""]
[null,null,null,null,null,null,""]
[null,null,null,null,null,null,""]
[null,null,null,null,null,null,""]
[null,null,null,null,null,null,""]
[null,null,null,null,null,null,""]
[null,null,null,null,null,null,""]
[null,null,null,null,null,null,""]
[null,null,null,null,null,null,""]
[null,null,null,null,null,null,""]
[null,null,null,null,null,null,""]
[null,null,null,null,null,null,""]
[null,null,null,null,null,null,""]
[null,null,null,null,null,null,""]

{"sheet":"E06","index":8,"n_rows":664,"n_cols":7,"rows_kept":664,"cut":false,"hidden":false,"merged":[[5,2,5,3],[4,1,4,3],[6,2,6,3],[7,2,7,3],[8,2,13,3],[17,1,17,3],[18,2,18,3],[19,2,19,3],[20,2,20,3],[21,2,26,3],[30,1,30,3],[31,2,31,3],[32,2,32,3],[33,2,33,3],[34,2,39,3],[43,1,43,3],[58,1,58,3],[61,2,61,3],[62,2,67,3],[75,2,80,3],[74,2,74,3],[73,2,73,3],[72,2,72,3],[71,1,71,3],[59,2,59,3],[60,2,60,3],[47,2,52,3],[46,2,46,3],[45,2,45,3],[44,2,44,3],[86,1,86,3],[87,2,87,3],[88,2,88,3],[89,2,89,3],[90,2,95,3],[103,2,108,3],[102,2,102,3],[101,2,101,3],[100,2,100,3],[99,1,99,3],[114,1,114,3],[115,2,115,3],[116,2,116,3],[117,2,117,3],[118,2,123,3],[131,2,136,3],[130,2,130,3],[129,2,129,3],[128,2,128,3],[127,1,127,3],[140,1,140,3],[141,2,141,3],[142,2,142,3],[143,2,143,3],[144,2,149,3],[155,1,155,3],[156,2,156,3],[157,2,157,3],[158,2,158,3],[159,2,164,3],[174,2,179,3],[173,2,173,3],[172,2,172,3],[171,2,171,3],[170,1,170,3]]}
[]
[null,null,null,null,null,null,""]
[null,"6.1 - Fähigkeiten und Erfahrungen",null,null,null,null,"6.1"]
[null,null,null,null,null,null,""]
[null,"6.1.1 - Verfügbarkeit von Fähigkeiten und Erfahrungen im Bereich Resilienz gegenüber Katastrophen - Risikoermittlung, Risikominderung, Planung, Reaktion und Reaktion nach dem Ereignis",null,null,null,null,"6.1.1"]
[null,"Frage / Beurteilungsbereich","Kommentare",null,null,null,""]
[null,null,null,null,null,null,""]
[null,"Empfohlene – nicht verbindliche – Bewertungsskala","Stellen Sie Nachweise bereit (Erklärungen etc.)",null,null,null,""]
[null,null,null,null,null,{"$f":"IF(E9=1,TRUE,FALSE)","v":false},""]
[null,null,null,null,null,{"$f":"IF(E9=2,TRUE,FALSE)","v":false},""]
[null,null,null,null,null,{"$f":"IF(E9=3,TRUE,FALSE)","v":false},""]
[null,null,null,null,null,{"$f":"IF(E9=4,TRUE,FALSE)","v":false},""]
[null,null,null,null,null,{"$f":"IF(E9=5,TRUE,FALSE)","v":false},""]
[null,null,null,null,null,{"$f":"IF(E9=6,TRUE,FALSE)","v":false},""]
[null,"Maßnahmen um maximale Resilienz zu erreichen","Verantwortliche Stelle","Zeitraum",null,null,""]
[null,null,null,null,null,null,""]
[null,null,null,null,null,null,""]
[null,"6.1.2 - Verbindungen zum Privatsektor",null,null,null,null,"6.1.2"]
[null,"Frage / Beurteilungsbereich","Kommentare",null,null,null,""]
[null,null,null,null,null,null,""]
[null,"Empfohlene – nicht verbindliche – Bewertungsskala","Stellen Sie Nachweise bereit (Erklärungen etc.)",null,null,null,""]
[null,null,null,null,null,{"$f":"IF(E22=1,TRUE,FALSE)","v":false},""]
[null,null,null,null,null,{"$f":"IF(E22=2,TRUE,FALSE)","v":false},""]
[null,null,null,null,null,{"$f":"IF(E22=3,TRUE,FALSE)","v":false},""]
[null,null,null,null,null,{"$f":"IF(E22=4,TRUE,FALSE)","v":false},""]
[null,null,null,null,null,{"$f":"IF(E22=5,TRUE,FALSE)","v":false},""]
[null,null,null,null,null,{"$f":"IF(E22=6,TRUE,FALSE)","v":false},""]
[null,"Maßnahmen um maximale Resilienz zu erreichen","Verantwortliche Stelle","Zeitraum",null,null,""]
[null,null,null,null,null,null,""]
[null,null,null,null,null,null,""]
[null,"6.1.3 - Beteiligung des Versicherungs-sektors",null,null,null,null,"6.1.3"]
[null,"Frage / Beurteilungsbereich","Kommentare",null,null,null,""]
[null,null,null,null,null,null,""]
[null,"Empfohlene – nicht verbindliche – Bewertungsskala","Stellen Sie Nachweise bereit (Erklärungen etc.)",null,null,null,""]
[null,null,null,null,null,{"$f":"IF(E35=1,TRUE,FALSE)","v":false},""]
[null,null,null,null,null,{"$f":"IF(E35=2,TRUE,FALSE)","v":false},""]
[null,null,null,null,null,{"$f":"IF(E35=3,TRUE,FALSE)","v":false},""]
[null,null,null,null,null,{"$f":"IF(E35=4,TRUE,FALSE)","v":false},""]
[null,null,null,null,null,{"$f":"IF(E35=5,TRUE,FALSE)","v":false},""]
[null,null,null,null,null,{"$f":"IF(E35=6,TRUE,FALSE)","v":false},""]
[null,"Maßnahmen um maximale Resilienz zu erreichen","Verantwortliche Stelle","Zeitraum",null,null,""]
[null,null,null,null,null,null,""]
[null,null,null,null,null,null,""]
[null,"6.1.4 - Verbindungen zur Zivilgesellschaft",null,null,null,null,"6.1.4"]
[null,"Frage / Beurteilungsbereich","Kommentare",null,null,null,""]
[null,null,null,null,null,null,""]
[null,"Empfohlene – nicht verbindliche – Bewertungsskala","Stellen Sie Nachweise bereit (Erklärungen etc.)",null,null,null,""]
[null,null,null,null,null,{"$f":"IF(E48=1,TRUE,FALSE)","v":false},""]
[null,null,null,null,null,{"$f":"IF(E48=2,TRUE,FALSE)","v":false},""]
[null,null,null,null,null,{"$f":"IF(E48=3,TRUE,FALSE)","v":false},""]
[null,null,null,null,null,{"$f":"IF(E48=4,TRUE,FALSE)","v":false},""]
[null,null,null,null,null,{"$f":"IF(E48=5,TRUE,FALSE)","v":false},""]
[null,null,null,null,null,{"$f":"IF(E48=6,TRUE,FALSE)","v":false},""]
[null,"Maßnahmen um maximale Resilienz zu erreichen","Verantwortliche Stelle","Zeitraum",null,null,""]
[null,null,null,null,null,null,""]
[null,null,null,null,null,null,""]
[null,"6.2 - Aufklärung und Sensibilisierung der Öffentlichkeit",null,null,null,null,"6.2"]
[null,null,null,null,null,null,""]
[null,"6.2.1 - Sensibilisierung der Öffentlichkeit durch Aufklärungs-material bzw. -botschaften",null,null,null,null,"6.2.1"]
[null,"Frage / Beurteilungsbereich","Kommentare",null,null,null,""]
[null,null,null,null,null,null,""]
[null,"Empfohlene – nicht verbindliche – Bewertungsskala","Stellen Sie Nachweise bereit (Erklärungen etc.)",null,null,null,""]
[null,null,null,null,null,{"$f":"IF(E63=1,TRUE,FALSE)","v":false},""]
[null,null,null,null,null,{"$f":"IF(E63=2,TRUE,FALSE)","v":false},""]
[null,null,null,null,null,{"$f":"IF(E63=3,TRUE,FALSE)","v":false},""]
[null,null,null,null,null,{"$f":"IF(E63=4,TRUE,FALSE)","v":false},""]
[null,null,null,null,null,{"$f":"IF(E63=5,TRUE,FALSE)","v":false},""]
[null,null,null,null,null,{"$f":"IF(E63=6,TRUE,FALSE)","v":false},""]
[null,"Maßnahmen um maximale Resilienz zu erreichen","Verantwortliche Stelle","Zeitraum",null,null,""]
[null,null,null,null,null,null,""]
[null,null,null,null,null,null,""]
[null,"6.2.1.1 - Sensibilisierung der Öffentlichkeit durch Aufklärungs-material bzw. -botschaften",null,null,null,null,"6.2.1.1"]
[null,"Frage / Beurteilungsbereich","Kommentare",null,null,null,""]
[null,null,null,null,null,null,""]
[null,"Empfohlene – nicht verbindliche – Bewertungsskala","Stellen Sie Nachweise bereit (Erklärungen etc.)",null,null,null,""]
[null,null,null,null,null,{"$f":"IF(E76=1,TRUE,FALSE)","v":false},""]
[null,null,null,null,null,{"$f":"IF(E76=2,TRUE,FALSE)","v":false},""]
[null,null,null,null,null,{"$f":"IF(E76=3,TRUE,FALSE)","v":false},""]
[null,null,null,null,null,{"$f":"IF(E76=4,TRUE,FALSE)","v":false},""]
[null,null,null,null,null,{"$f":"IF(E76=5,TRUE,FALSE)","v":false},""]
[null,null,null,null,null,{"$f":"IF(E76=6,TRUE,FALSE)","v":false},""]
[null,"Maßnahmen um maximale Resilienz zu erreichen","Verantwortliche Stelle","Zeitraum",null,null,""]
[null,null,null,null,null,null,""]
[null,null,null,null,null,null,""]
[null,"6.3 - Erfassung, Veröffentlichung und gemeinsame Nutzung von Daten",null,null,null,null,"6.3"]
[null,null,null,null,null,null,""]
[null,"6.3.1 - Ausmaß, in dem Daten über die Resilienz der Kommune mit anderen Organisationen geteilt werden, die mit der Resilienz der Kommune zu tun haben",null,null,null,null,"6.3.1"]
[null,"Frage / Beurteilungsbereich","Kommentare",null,null,null,""]
[null,null,null,null,null,null,""]
[null,"Empfohlene – nicht verbindliche – Bewertungsskala","Stellen Sie Nachweise bereit (Erklärungen etc.)",null,null,null,""]
[null,null,null,null,null,{"$f":"IF(E91=1,TRUE,FALSE)","v":false},""]
[null,null,null,null,null,{"$f":"IF(E91=2,TRUE,FALSE)","v":false},""]
[null,null,null,null,null,{"$f":"IF(E91=3,TRUE,FALSE)","v":false},""]
[null,null,null,null,null,{"$f":"IF(E91=4,TRUE,FALSE)","v":false},""]
[null,null,null,null,null,{"$f":"IF(E91=5,TRUE,FALSE)","v":false},""]
[null,null,null,null,null,{"$f":"IF(E91=6,TRUE,FALSE)","v":false},""]
[null,"Maßnahmen um maximale Resilienz zu erreichen","Verantwortliche Stelle","Zeitraum",null,null,""]
[null,null,null,null,null,null,""]
[null,null,null,null,null,null,""]
[null,"6.3.2 - Ausmaß, in dem Daten über die Resilienz der Kommune mit Organisationen der Gemeinschaft und der Öffentlichkeit geteilt werden",null,null,null,null,"6.3.2"]
[null,"Frage / Beurteilungsbereich","Kommentare",null,null,null,""]
[null,null,null,null,null,null,""]
[null,"Empfohlene – nicht verbindliche – Bewertungsskala","Stellen Sie Nachweise bereit (Erklärungen etc.)",null,null,null,""]
[null,null,null,null,null,{"$f":"IF(E104=1,TRUE,FALSE)","v":false},""]
[null,null,null,null,null,{"$f":"IF(E104=2,TRUE,FALSE)","v":false},""]
[null,null,null,null,null,{"$f":"IF(E104=3,TRUE,FALSE)","v":false},""]
[null,null,null,null,null,{"$f":"IF(E104=4,TRUE,FALSE)","v":false},""]
[null,null,null,null,null,{"$f":"IF(E104=5,TRUE,FALSE)","v":false},""]
[null,null,null,null,null,{"$f":"IF(E104=6,TRUE,FALSE)","v":false},""]
[null,"Maßnahmen um maximale Resilienz zu erreichen","Verantwortliche Stelle","Zeitraum",null,null,""]
[null,null,null,null,null,null,""]
[null,null,null,null,null,null,""]
[null,"6.4 - Durchführung von Schulungen",null,null,null,null,"6.4"]
[null,null,null,null,null,null,""]
[null,"6.4.1 - Availability, take-up of training focussed on Risk and Resilience (Professional Training)",null,null,null,null,"6.4.1"]
[null,"Frage / Beurteilungsbereich","Kommentare",null,null,null,""]
[null,null,null,null,null,null,""]
[null,"Empfohlene – nicht verbindliche – Bewertungsskala","Stellen Sie Nachweise bereit (Erklärungen etc.)",null,null,null,""]
[null,null,null,null,null,{"$f":"IF(E119=1,TRUE,FALSE)","v":false},""]
[null,null,null,null,null,{"$f":"IF(E119=2,TRUE,FALSE)","v":false},""]
[null,null,null,null,null,{"$f":"IF(E119=3,TRUE,FALSE)","v":false},""]
[null,null,null,null,null,{"$f":"IF(E119=4,TRUE,FALSE)","v":false},""]
[null,null,null,null,null,{"$f":"IF(E119=5,TRUE,FALSE)","v":false},""]
[null,null,null,null,null,{"$f":"IF(E119=6,TRUE,FALSE)","v":false},""]
[null,"Maßnahmen um maximale Resilienz zu erreichen","Verantwortliche Stelle","Zeitraum",null,null,""]
[null,null,null,null,null,null,""]
[null,null,null,null,null,null,""]
[null,"6.4.1.1 - Availability, take-up of training focussed on Risk and Resilience (Professional Training)",null,null,null,null,"6.4.1.1"]
[null,"Frage / Beurteilungsbereich","Kommentare",null,null,null,""]
[null,null,null,null,null,null,""]
[null,"Empfohlene – nicht verbindliche – Bewertungsskala","Stellen Sie Nachweise bereit (Erklärungen etc.)",null,null,null,""]
[null,null,null,null,null,{"$f":"IF(E132=1,TRUE,FALSE)","v":false},""]
[null,null,null,null,null,{"$f":"IF(E132=2,TRUE,FALSE)","v":false},""]
[null,null,null,null,null,{"$f":"IF(E132=3,TRUE,FALSE)","v":false},""]
[null,null,null,null,null,{"$f":"IF(E132=4,TRUE,FALSE)","v":false},""]
[null,null,null,null,null,{"$f":"IF(E132=5,TRUE,FALSE)","v":false},""]
[null,null,null,null,null,{"$f":"IF(E132=6,TRUE,FALSE)","v":false},""]
[null,"Maßnahmen um maximale Resilienz zu erreichen","Verantwortliche Stelle","Zeitraum",null,null,""]
[null,null,null,null,null,null,""]
[null,null,null,null,null,null,""]
[null,"6.4.2 - System/Prozess für die Aktualisierung von Schulungen",null,null,null,null,"6.4.2"]
[null,"Frage / Beurteilungsbereich","Kommentare",null,null,null,""]
[null,null,null,null,null,null,""]
[null,"Empfohlene – nicht verbindliche – Bewertungsskala","Stellen Sie Nachweise bereit (Erklärungen etc.)",null,null,null,""]
[null,null,null,null,null,{"$f":"IF(E145=1,TRUE,FALSE)","v":false},""]
[null,null,null,null,null,{"$f":"IF(E145=2,TRUE,FALSE)","v":false},""]
[null,null,null,null,null,{"$f":"IF(E145=3,TRUE,FALSE)","v":false},""]
[null,null,null,null,null,{"$f":"IF(E145=4,TRUE,FALSE)","v":false},""]
[null,null,null,null,null,{"$f":"IF(E145=5,TRUE,FALSE)","v":false},""]
[null,null,null,null,null,{"$f":"IF(E145=6,TRUE,FALSE)","v":false},""]
[null,"Maßnahmen um maximale Resilienz zu erreichen","Verantwortliche Stelle","Zeitraum",null,null,""]
[null,null,null,null,null,null,""]
[null,null,null,null,null,null,""]
[null,"6.5 - Sprachen",null,null,null,null,"6.5"]
[null,null,null,null,null,null,""]
[null,"6.5.1 - Zugänglichkeit der allgemeinen und beruflichen Bildung für alle Sprachgruppen in der Kommune",null,null,null,null,"6.5.1"]
[null,"Frage / Beurteilungsbereich","Kommentare",null,null,null,""]
[null,null,null,null,null,null,""]
[null,"Empfohlene – nicht verbindliche – Bewertungsskala","Stellen Sie Nachweise bereit (Erklärungen etc.)",null,null,null,""]
[null,null,null,null,null,{"$f":"IF(E160=1,TRUE,FALSE)","v":false},""]
[null,null,null,null,null,{"$f":"IF(E160=2,TRUE,FALSE)","v":false},""]
[null,null,null,null,null,{"$f":"IF(E160=3,TRUE,FALSE)","v":false},""]
[null,null,null,null,null,{"$f":"IF(E160=4,TRUE,FALSE)","v":false},""]
[null,null,null,null,null,{"$f":"IF(E160=5,TRUE,FALSE)","v":false},""]
[null,null,null,null,null,{"$f":"IF(E160=6,TRUE,FALSE)","v":false},""]
[null,"Maßnahmen um maximale Resilienz zu erreichen","Verantwortliche Stelle","Zeitraum",null,null,""]
[null,null,null,null,null,null,""]
[null,null,null,null,null,null,""]
[null,"6.6 - Von anderen lernen",null,null,null,null,"6.6"]
[null,null,null,null,null,null,""]
[null,"6.6.1 - Bemühung, aus den Erfahrungen anderer Kommunen, Staaten und Ländern (und Unternehmen) zu lernen, um die Resilienz zu erhöhen",null,null,null,null,"6.6.1"]
[null,"Frage / Beurteilungsbereich","Kommentare",null,null,null,""]
[null,null,null,null,null,null,""]
[null,"Empfohlene – nicht verbindliche – Bewertungsskala","Stellen Sie Nachweise bereit (Erklärungen etc.)",null,null,null,""]
[null,null,null,null,null,{"$f":"IF(E175=1,TRUE,FALSE)","v":false},""]
[null,null,null,null,null,{"$f":"IF(E175=2,TRUE,FALSE)","v":false},""]
[null,null,null,null,null,{"$f":"IF(E175=3,TRUE,FALSE)","v":false},""]
[null,null,null,null,null,{"$f":"IF(E175=4,TRUE,FALSE)","v":false},""]
[null,null,null,null,null,{"$f":"IF(E175=5,TRUE,FALSE)","v":false},""]
[null,null,null,null,null,{"$f":"IF(E175=6,TRUE,FALSE)","v":false},""]
[null,"Maßnahmen um maximale Resilienz zu erreichen","Verantwortliche Stelle","Zeitraum",null,null,""]
[null,null,null,null,null,null,""]
[null,null,null,null,null,null,""]
[null,null,null,null,null,null,""]
[null,null,null,null,null,null,""]
[null,null,null,null,null,null,""]
[null,null,null,null,null,null,""]
[null,null,null,null,null,null,""]
[null,null,null,null,null,null,""]
[null,null,null,null,null,null,""]
[null,null,null,null,null,null,""]
[null,null,null,null,null,null,""]
[null,null,null,null,null,null,""]
[null,null,null,null,null,null,""]
[null,null,null,null,null,null,""]
[null,null,null,null,null,null,""]
[null,null,null,null,null,null,""]
[null,null,null,null,null,null,""]
[null,null,null,null,null,null,""]
[null,null,null,null,null,null,""]
[null,null,null,null,null,null,""]
[null,null,null,null,null,null,""]
[null,null,null,null,null,null,""]
[null,null,null,null,null,null,""]
[null,null,null,null,null,null,""]
[null,null,null,null,null,null,""]
[null,null,null,null,null,null,""]
[null,null,null,null,null,null,""]
[null,null,null,null,null,null,""]
[null,null,null,null,null,null,""]
[null,null,null,null,null,null,""]
[null,null,null,null,null,null,""]
[null,null,null,null,null,null,""]
[null,null,null,null,null,null,""]
[null,null,null,null,null,null,""]
[null,null,null,null,null,null,""]
[null,null,null,null,null,null,""]
[null,null,null,null,null,null,""]
[null,null,null,null,null,null,""]
[null,null,null,null,null,null,""]
[null,null,null,null,null,null,""]
[null,null,null,null,null,null,""]
[null,null,null,null,null,null,""]
[null,null,null,null,null,null,""]
[null,null,null,null,null,null,""]
[null,null,null,null,null,null,""]
[null,null,null,null,null,null,""]
[null,null,null,null,null,null,""]
[null,null,null,null,null,null,""]
[null,null,null,null,null,null,""]
[null,null,null,null,null,null,""]
[null,null,null,null,null,null,""]
[null,null,null,null,null,null,""]
[null,null,null,null,null,null,""]
[null,null,null,null,null,null,""]
[null,null,null,null,null,null,""]
[null,null,null,null,null,null,""]
[null,null,null,null,null,null,""]
[null,null,null,null,null,null,""]
[null,null,null,null,null,null,""]
[null,null,null,null,null,null,""]
[null,null,null,null,null,null,""]
[null,null,null,null,null,null,""]
[null,null,null,null,null,null,""]
[null,null,null,null,null,null,""]
[null,null,null,null,null,null,""]
[null,null,null,null,null,null,""]
[null,null,null,null,null,null,""]
[null,null,null,null,null,null,""]
[null,null,null,null,null,null,""]
[null,null,null,null,null,null,""]
[null,null,null,null,null,null,""]
[null,null,null,null,null,null,""]
[null,null,null,null,null,null,""]
[null,null,null,null,null,null,""]
[null,null,null,null,null,null,""]
[null,null,null,null,null,null,""]
[null,null,null,null,null,null,""]
[null,null,null,null,null,null,""]
[null,null,null,null,null,null,""]
[null,null,null,null,null,null,""]
[null,null,null,null,null,null,""]
[null,null,null,null,null,null,""]
[null,null,null,null,null,null,""]
[null,null,null,null,null,null,""]
[null,null,null,null,null,null,""]
[null,null,null,null,null,null,""]
[null,null,null,null,null,null,""]
[null,null,null,null,null,null,""]
[null,null,null,null,null,null,""]
[null,null,null,null,null,null,""]
[null,null,null,null,null,null,""]
[null,null,null,null,null,null,""]
[null,null,null,null,null,null,""]
[null,null,null,null,null,null,""]
[null,null,null,null,null,null,""]
[null,null,null,null,null,null,""]
[null,null,null,null,null,null,""]
[null,null,null,null,null,null,""]
[null,null,null,null,null,null,""]
[null,null,null,null,null,null,""]
[null,null,null,null,null,null,""]
[null,null,null,null,null,null,""]
[null,null,null,null,null,null,""]
[null,null,null,null,null,null,""]
[null,null,null,null,null,null,""]
[null,null,null,null,null,null,""]
[null,null,null,null,null,null,""]
[null,null,null,null,null,null,""]
[null,null,null,null,null,null,""]
[null,null,null,null,null,null,""]
[null,null,null,null,null,null,""]
[null,null,null,null,null,null,""]
[null,null,null,null,null,null,""]
[null,null,null,null,null,null,""]
[null,null,null,null,null,null,""]
[null,null,null,null,null,null,""]
[null,null,null,null,null,null,""]
[null,null,null,null,null,null,""]
[null,null,null,null,null,null,""]
[null,null,null,null,null,null,""]
[null,null,null,null,null,null,""]
[null,null,null,null,null,null,""]
[null,null,null,null,null,null,""]
[null,null,null,null,null,null,""]
[null,null,null,null,null,null,""]
[null,null,null,null,null,null,""]
[null,null,null,null,null,null,""]
[null,null,null,null,null,null,""]
[null,null,null,null,null,null,""]
[null,null,null,null,null,null,""]
[null,null,null,null,null,null,""]
[null,null,null,null,null,null,""]
[null,null,null,null,null,null,""]
[null,null,null,null,null,null,""]
[null,null,null,null,null,null,""]
[null,null,null,null,null,null,""]
[null,null,null,null,null,null,""]
[null,null,null,null,null,null,""]
[null,null,null,null,null,null,""]
[null,null,null,null,null,null,""]
[null,null,null,null,null,null,""]
[null,null,null,null,null,null,""]
[null,null,null,null,null,null,""]
[null,null,null,null,null,null,""]
[null,null,null,null,null,null,""]
[null,null,null,null,null,null,""]
[null,null,null,null,null,null,""]
[null,null,null,null,null,null,""]
[null,null,null,null,null,null,""]
[null,null,null,null,null,null,""]
[null,null,null,null,null,null,""]
[null,null,null,null,null,null,""]
[null,null,null,null,null,null,""]
[null,null,null,null,null,null,""]
[null,null,null,null,null,null,""]
[null,null,null,null,null,null,""]
[null,null,null,null,null,null,""]
[null,null,null,null,null,null,""]
[null,null,null,null,null,null,""]
[null,null,null,null,null,null,""]
[null,null,null,null,null,null,""]
[null,null,null,null,null,null,""]
[null,null,null,null,null,null,""]
[null,null,null,null,null,null,""]
[null,null,null,null,null,null,""]
[null,null,null,null,null,null,""]
[null,null,null,null,null,null,""]
[null,null,null,null,null,null,""]
[null,null,null,null,null,null,""]
[null,null,null,null,null,null,""]
[null,null,null,null,null,null,""]
[null,null,null,null,null,null,""]
[null,null,null,null,null,null,""]
[null,null,null,null,null,null,""]
[null,null,null,null,null,null,""]
[null,null,null,null,null,null,""]
[null,null,null,null,null,null,""]
[null,null,null,null,null,null,""]
[null,null,null,null,null,null,""]
[null,null,null,null,null,null,""]
[null,null,null,null,null,null,""]
[null,null,null,null,null,null,""]
[null,null,null,null,null,null,""]
[null,null,null,null,null,null,""]
[null,null,null,null,null,null,""]
[null,null,null,null,null,null,""]
[null,null,null,null,null,null,""]
[null,null,null,null,null,null,""]
[null,null,null,null,null,null,""]
[null,null,null,null,null,null,""]
[null,null,null,null,null,null,""]
[null,null,null,null,null,null,""]
[null,null,null,null,null,null,""]
[null,null,null,null,null,null,""]
[null,null,null,null,null,null,""]
[null,null,null,null,null,null,""]
[null,null,null,null,null,null,""]
[null,null,null,null,null,null,""]
[null,null,null,null,null,null,""]
[null,null,null,null,null,null,""]
[null,null,null,null,null,null,""]
[null,null,null,null,null,null,""]
[null,null,null,null,null,null,""]
[null,null,null,null,null,null,""]
[null,null,null,null,null,null,""]
[null,null,null,null,null,null,""]
[null,null,null,null,null,null,""]
[null,null,null,null,null,null,""]
[null,null,null,null,null,null,""]
[null,null,null,null,null,null,""]
[null,null,null,null,null,null,""]
[null,null,null,null,null,null,""]
[null,null,null,null,null,null,""]
[null,null,null,null,null,null,""]
[null,null,null,null,null,null,""]
[null,null,null,null,null,null,""]
[null,null,null,null,null,null,""]
[null,null,null,null,null,null,""]
[null,null,null,null,null,null,""]
[null,null,null,null,null,null,""]
[null,null,null,null,null,null,""]
[null,null,null,null,null,null,""]
[null,null,null,null,null,null,""]
[null,null,null,null,null,null,""]
[null,null,null,null,null,null,""]
[null,null,null,null,null,null,""]
[null,null,null,null,null,null,""]
[null,null,null,null,null,null,""]
[null,null,null,null,null,null,""]
[null,null,null,null,null,null,""]
[null,null,null,null,null,null,""]
[null,null,null,null,null,null,""]
[null,null,null,null,null,null,""]
[null,null,null,null,null,null,""]
[null,null,null,null,null,null,""]
[null,null,null,null,null,null,""]
[null,null,null,null,null,null,""]
[null,null,null,null,null,null,""]
[null,null,null,null,null,null,""]
[null,null,null,null,null,null,""]
[null,null,null,null,null,null,""]
[null,null,null,null,null,null,""]
[null,null,null,null,null,null,""]
[null,null,null,null,null,null,""]
[null,null,null,null,null,null,""]
[null,null,null,null,null,null,""]
[null,null,null,null,null,null,""]
[null,null,null,null,null,null,""]
[null,null,null,null,null,null,""]
[null,null,null,null,null,null,""]
[null,null,null,null,null,null,""]
[null,null,null,null,null,null,""]
[null,null,null,null,null,null,""]
[null,null,null,null,null,null,""]
[null,null,null,null,null,null,""]
[null,null,null,null,null,null,""]
[null,null,null,null,null,null,""]
[null,null,null,null,null,null,""]
[null,null,null,null,null,null,""]
[null,null,null,null,null,null,""]
[null,null,null,null,null,null,""]
[null,null,null,null,null,null,""]
[null,null,null,null,null,null,""]
[null,null,null,null,null,null,""]
[null,null,null,null,null,null,""]
[null,null,null,null,null,null,""]
[null,null,null,null,null,null,""]
[null,null,null,null,null,null,""]
[null,null,null,null,null,null,""]
[null,null,null,null,null,null,""]
[null,null,null,null,null,null,""]
[null,null,null,null,null,null,""]
[null,null,null,null,null,null,""]
[null,null,null,null,null,null,""]
[null,null,null,null,null,null,""]
[null,null,null,null,null,null,""]
[null,null,null,null,null,null,""]
[null,null,null,null,null,null,""]
[null,null,null,null,null,null,""]
[null,null,null,null,null,null,""]
[null,null,null,null,null,null,""]
[null,null,null,null,null,null,""]
[null,null,null,null,null,null,""]
[null,null,null,null,null,null,""]
[null,null,null,null,null,null,""]
[null,null,null,null,null,null,""]
[null,null,null,null,null,null,""]
[null,null,null,null,null,null,""]
[null,null,null,null,null,null,""]
[null,null,null,null,null,null,""]
[null,null,null,null,null,null,""]
[null,null,null,null,null,null,""]
[null,null,null,null,null,null,""]
[null,null,null,null,null,null,""]
[null,null,null,null,null,null,""]
[null,null,null,null,null,null,""]
[null,null,null,null,null,null,""]
[null,null,null,null,null,null,""]
[null,null,null,null,null,null,""]
[null,null,null,null,null,null,""]
[null,null,null,null,null,null,""]
[null,null,null,null,null,null,""]
[null,null,null,null,null,null,""]
[null,null,null,null,null,null,""]
[null,null,null,null,null,null,""]
[null,null,null,null,null,null,""]
[null,null,null,null,null,null,""]
[null,null,null,null,null,null,""]
[null,null,null,null,null,null,""]
[null,null,null,null,null,null,""]
[null,null,null,null,null,null,""]
[null,null,null,null,null,null,""]
[null,null,null,null,null,null,""]
[null,null,null,null,null,null,""]
[null,null,null,null,null,null,""]
[null,null,null,null,null,null,""]
[null,null,null,null,null,null,""]
[null,null,null,null,null,null,""]
[null,null,null,null,null,null,""]
[null,null,null,null,null,null,""]
[null,null,null,null,null,null,""]
[null,null,null,null,null,null,""]
[null,null,null,null,null,null,""]
[null,null,null,null,null,null,""]
[null,null,null,null,null,null,""]
[null,null,null,null,null,null,""]
[null,null,null,null,null,null,""]
[null,null,null,null,null,null,""]
[null,null,null,null,null,null,""]
[null,null,null,null,null,null,""]
[null,null,null,null,null,null,""]
[null,null,null,null,null,null,""]
[null,null,null,null,null,null,""]
[null,null,null,null,null,null,""]
[null,null,null,null,null,null,""]
[null,null,null,null,null,null,""]
[null,null,null,null,null,null,""]
[null,null,null,null,null,null,""]
[null,null,null,null,null,null,""]
[null,null,null,null,null,null,""]
[null,null,null,null,null,null,""]
[null,null,null,null,null,null,""]
[null,null,null,null,null,null,""]
[null,null,null,null,null,null,""]
[null,null,null,null,null,null,""]
[null,null,null,null,null,null,""]
[null,null,null,null,null,null,""]
[null,null,null,null,null,null,""]
[null,null,null,null,null,null,""]
[null,null,null,null,null,null,""]
[null,null,null,null,null,null,""]
[null,null,null,null,null,null,""]
[null,null,null,null,null,null,""]
[null,null,null,null,null,null,""]
[null,null,null,null,null,null,""]
[null,null,null,null,null,null,""]
[null,null,null,null,null,null,""]
[null,null,null,null,null,null,""]
[null,null,null,null,null,null,""]
[null,null,null,null,null,null,""]
[null,null,null,null,null,null,""]
[null,null,null,null,null,null,""]
[null,null,null,null,null,null,""]
[null,null,null,null,null,null,""]
[null,null,null,null,null,null,""]
[null,null,null,null,null,null,""]
[null,null,null,null,null,null,""]
[null,null,null,null,null,null,""]
[null,null,null,null,null,null,""]
[null,null,null,null,null,null,""]
[null,null,null,null,null,null,""]
[null,null,null,null,null,null,""]
[null,null,null,null,null,null,""]
[null,null,null,null,null,null,""]
[null,null,null,null,null,null,""]
[null,null,null,null,null,null,""]
[null,null,null,null,null,null,""]
[null,null,null,null,null,null,""]
[null,null,null,null,null,null,""]
[null,null,null,null,null,null,""]
[null,null,null,null,null,null,""]
[null,null,null,null,null,null,""]
[null,null,null,null,null,null,""]
[null,null,null,null,null,null,""]
[null,null,null,null,null,null,""]
[null,null,null,null,null,null,""]
[null,null,null,null,null,null,""]
[null,null,null,null,null,null,""]
[null,null,null,null,null,null,""]
[null,null,null,null,null,null,""]
[null,null,null,null,null,null,""]
[null,null,null,null,null,null,""]
[null,null,null,null,null,null,""]
[null,null,null,null,null,null,""]
[null,null,null,null,null,null,""]
[null,null,null,null,null,null,""]
[null,null,null,null,null,null,""]
[null,null,null,null,null,null,""]
[null,null,null,null,null,null,""]
[null,null,null,null,null,null,""]
[null,null,null,null,null,null,""]
[null,null,null,null,null,null,""]
[null,null,null,null,null,null,""]
[null,null,null,null,null,null,""]
[null,null,null,null,null,null,""]
[null,null,null,null,null,null,""]
[null,null,null,null,null,null,""]
[null,null,null,null,null,null,""]
[null,null,null,null,null,null,""]
[null,null,null,null,null,null,""]
[null,null,null,null,null,null,""]
[null,null,null,null,null,null,""]
[null,null,null,null,null,null,""]
[null,null,null,null,null,null,""]
[null,null,null,null,null,null,""]
[null,null,null,null,null,null,""]
[null,null,null,null,null,null,""]
[null,null,null,null,null,null,""]
[null,null,null,null,null,null,""]
[null,null,null,null,null,null,""]
[null,null,null,null,null,null,""]
[null,null,null,null,null,null,""]
[null,null,null,null,null,null,""]
[null,null,null,null,null,null,""]
[null,null,null,null,null,null,""]
[null,null,null,null,null,null,""]
[null,null,null,null,null,null,""]
[null,null,null,null,null,null,""]
[null,null,null,null,null,null,""]
[null,null,null,null,null,null,""]
[null,null,null,null,null,null,""]
[null,null,null,null,null,null,""]
[null,null,null,null,null,null,""]
[null,null,null,null,null,null,""]
[null,null,null,null,null,null,""]
[null,null,null,null,null,null,""]
[null,null,null,null,null,null,""]
[null,null,null,null,null,null,""]
[null,null,null,null,null,null,""]
[null,null,null,null,null,null,""]
[null,null,null,null,null,null,""]
[null,null,null,null,null,null,""]
[null,null,null,null,null,null,""]
[null,null,null,null,null,null,""]
[null,null,null,null,null,null,""]
[null,null,null,null,null,null,""]
[null,null,null,null,null,null,""]
[null,null,null,null,null,null,""]
[null,null,null,null,null,null,""]
[null,null,null,null,null,null,""]
[null,null,null,null,null,null,""]
[null,null,null,null,null,null,""]
[null,null,null,null,null,null,""]
[null,null,null,null,null,null,""]
[null,null,null,null,null,null,""]
[null,null,null,null,null,null,""]
[null,null,null,null,null,null,""]
[null,null,null,null,null,null,""]
[null,null,null,null,null,null,""]
[null,null,null,null,null,null,""]
[null,null,null,null,null,null,""]
[null,null,null,null,null,null,""]
[null,null,null,null,null,null,""]
[null,null,null,null,null,null,""]
[null,null,null,null,null,null,""]
[null,null,null,null,null,null,""]
[null,null,null,null,null,null,""]
[null,null,null,null,null,null,""]
[null,null,null,null,null,null,""]
[null,null,null,null,null,null,""]
[null,null,null,null,null,null,""]
[null,null,null,null,null,null,""]
[null,null,null,null,null,null,""]
[null,null,null,null,null,null,""]
[null,null,null,null,null,null,""]
[null,null,null,null,null,null,""]
[null,null,null,null,null,null,""]
[null,null,null,null,null,null,""]
[null,null,null,null,null,null,""]
[null,null,null,null,null,null,""]
[null,null,null,null,null,null,""]
[null,null,null,null,null,null,""]
[null,null,null,null,null,null,""]

{"sheet":"E07","index":9,"n_rows":664,"n_cols":7,"rows_kept":664,"cut":false,"hidden":false,"merged":[[21,2,26,3],[20,2,20,3],[19,2,19,3],[18,2,18,3],[17,1,17,3],[5,2,5,3],[4,1,4,3],[6,2,6,3],[7,2,7,3],[8,2,13,3],[33,2,33,3],[32,2,32,3],[31,2,31,3],[30,1,30,3],[45,1,45,3],[34,2,39,3],[46,2,46,3],[47,2,47,3],[48,2,48,3],[49,2,54,3],[62,2,67,3],[61,2,61,3],[60,2,60,3],[59,2,59,3],[58,1,58,3],[73,1,73,3],[74,2,74,3],[75,2,75,3],[76,2,76,3],[77,2,82,3],[90,2,95,3],[89,2,89,3],[88,2,88,3],[87,2,87,3],[86,1,86,3],[101,1,101,3],[102,2,102,3],[103,2,103,3],[104,2,104,3],[105,2,110,3],[118,2,123,3],[117,2,117,3],[116,2,116,3],[115,2,115,3],[114,1,114,3],[127,1,127,3],[128,2,128,3],[129,2,129,3],[130,2,130,3],[131,2,136,3]]}
[]
[null,null,null,null,null,null,""]
[null,"7.1 -Gemeinschafts- oder „Basis\"-Organisationen",null,null,null,null,"7.1"]
[null,null,null,null,null,null,""]
[null,"7.1.1 - Abdeckung von Gemeinschafts- oder „Basis\"-Organisationen in der gesamten Kommune",null,null,null,null,"7.1.1"]
[null,"Frage / Beurteilungsbereich","Kommentare",null,null,null,""]
[null,null,null,null,null,null,""]
[null,"Empfohlene – nicht verbindliche – Bewertungsskala","Stellen Sie Nachweise bereit (Erklärungen etc.)",null,null,null,""]
[null,null,null,null,null,{"$f":"IF(E9=1,TRUE,FALSE)","v":false},""]
[null,null,null,null,null,{"$f":"IF(E9=2,TRUE,FALSE)","v":false},""]
[null,null,null,null,null,{"$f":"IF(E9=3,TRUE,FALSE)","v":false},""]
[null,null,null,null,null,{"$f":"IF(E9=4,TRUE,FALSE)","v":false},""]
[null,null,null,null,null,{"$f":"IF(E9=5,TRUE,FALSE)","v":false},""]
[null,null,null,null,null,{"$f":"IF(E9=6,TRUE,FALSE)","v":false},""]
[null,"Maßnahmen um maximale Resilienz zu erreichen","Verantwortliche Stelle","Zeitraum",null,null,""]
[null,null,null,null,null,null,""]
[null,null,null,null,null,null,""]
[null,"7.1.2 - Effektivität des Gemeinschafts-netzes",null,null,null,null,"7.1.2"]
[null,"Frage / Beurteilungsbereich","Kommentare",null,null,null,""]
[null,null,null,null,null,null,""]
[null,"Empfohlene – nicht verbindliche – Bewertungsskala","Stellen Sie Nachweise bereit (Erklärungen etc.)",null,null,null,""]
[null,null,null,null,null,{"$f":"IF(E22=1,TRUE,FALSE)","v":false},""]
[null,null,null,null,null,{"$f":"IF(E22=2,TRUE,FALSE)","v":false},""]
[null,null,null,null,null,{"$f":"IF(E22=3,TRUE,FALSE)","v":false},""]
[null,null,null,null,null,{"$f":"IF(E22=4,TRUE,FALSE)","v":false},""]
[null,null,null,null,null,{"$f":"IF(E22=5,TRUE,FALSE)","v":false},""]
[null,null,null,null,null,{"$f":"IF(E22=6,TRUE,FALSE)","v":false},""]
[null,"Maßnahmen um maximale Resilienz zu erreichen","Verantwortliche Stelle","Zeitraum",null,null,""]
[null,null,null,null,null,null,""]
[null,null,null,null,null,null,""]
[null,"7.1.2.1 - Effektivität des Gemeinschafts-netzes",null,null,null,null,"7.1.2.1"]
[null,"Frage / Beurteilungsbereich","Kommentare",null,null,null,""]
[null,null,null,null,null,null,""]
[null,"Empfohlene – nicht verbindliche – Bewertungsskala","Stellen Sie Nachweise bereit (Erklärungen etc.)",null,null,null,""]
[null,null,null,null,null,{"$f":"IF(E35=1,TRUE,FALSE)","v":false},""]
[null,null,null,null,null,{"$f":"IF(E35=2,TRUE,FALSE)","v":false},""]
[null,null,null,null,null,{"$f":"IF(E35=3,TRUE,FALSE)","v":false},""]
[null,null,null,null,null,{"$f":"IF(E35=4,TRUE,FALSE)","v":false},""]
[null,null,null,null,null,{"$f":"IF(E35=5,TRUE,FALSE)","v":false},""]
[null,null,null,null,null,{"$f":"IF(E35=6,TRUE,FALSE)","v":false},""]
[null,"Maßnahmen um maximale Resilienz zu erreichen","Verantwortliche Stelle","Zeitraum",null,null,""]
[null,null,null,null,null,null,""]
[null,null,null,null,null,null,""]
[null,"7.2 - Soziale Netzwerke",null,null,null,null,"7.2"]
[null,null,null,null,null,null,""]
[null,"7.2.1 - Soziale Verbundenheit und nachbarschaft-licher Zusammen-halt",null,null,null,null,"7.2.1"]
[null,"Frage / Beurteilungsbereich","Kommentare",null,null,null,""]
[null,null,null,null,null,null,""]
[null,"Empfohlene – nicht verbindliche – Bewertungsskala","Stellen Sie Nachweise bereit (Erklärungen etc.)",null,null,null,""]
[null,null,null,null,null,{"$f":"IF(E50=1,TRUE,FALSE)","v":false},""]
[null,null,null,null,null,{"$f":"IF(E50=2,TRUE,FALSE)","v":false},""]
[null,null,null,null,null,{"$f":"IF(E50=3,TRUE,FALSE)","v":false},""]
[null,null,null,null,null,{"$f":"IF(E50=4,TRUE,FALSE)","v":false},""]
[null,null,null,null,null,{"$f":"IF(E50=5,TRUE,FALSE)","v":false},""]
[null,null,null,null,null,{"$f":"IF(E50=6,TRUE,FALSE)","v":false},""]
[null,"Maßnahmen um maximale Resilienz zu erreichen","Verantwortliche Stelle","Zeitraum",null,null,""]
[null,null,null,null,null,null,""]
[null,null,null,null,null,null,""]
[null,"7.2.2 - Einbeziehung gefährdeter Gruppen der Bevölkerung",null,null,null,null,"7.2.2"]
[null,"Frage / Beurteilungsbereich","Kommentare",null,null,null,""]
[null,null,null,null,null,null,""]
[null,"Empfohlene – nicht verbindliche – Bewertungsskala","Stellen Sie Nachweise bereit (Erklärungen etc.)",null,null,null,""]
[null,null,null,null,null,{"$f":"IF(E63=1,TRUE,FALSE)","v":false},""]
[null,null,null,null,null,{"$f":"IF(E63=2,TRUE,FALSE)","v":false},""]
[null,null,null,null,null,{"$f":"IF(E63=3,TRUE,FALSE)","v":false},""]
[null,null,null,null,null,{"$f":"IF(E63=4,TRUE,FALSE)","v":false},""]
[null,null,null,null,null,{"$f":"IF(E63=5,TRUE,FALSE)","v":false},""]
[null,null,null,null,null,{"$f":"IF(E63=6,TRUE,FALSE)","v":false},""]
[null,"Maßnahmen um maximale Resilienz zu erreichen","Verantwortliche Stelle","Zeitraum",null,null,""]
[null,null,null,null,null,null,""]
[null,null,null,null,null,null,""]
[null,"7.3 - Privatsektor / Arbeitgebende",null,null,null,null,"7.3"]
[null,null,null,null,null,null,""]
[null,"7.3.1 - Ausmaß, in dem Arbeitgebende als Kommunikations-kanal gegenüber ihren Arbeitnehmenden wirken",null,null,null,null,"7.3.1"]
[null,"Frage / Beurteilungsbereich","Kommentare",null,null,null,""]
[null,null,null,null,null,null,""]
[null,"Empfohlene – nicht verbindliche – Bewertungsskala","Stellen Sie Nachweise bereit (Erklärungen etc.)",null,null,null,""]
[null,null,null,null,null,{"$f":"IF(E78=1,TRUE,FALSE)","v":false},""]
[null,null,null,null,null,{"$f":"IF(E78=2,TRUE,FALSE)","v":false},""]
[null,null,null,null,null,{"$f":"IF(E78=3,TRUE,FALSE)","v":false},""]
[null,null,null,null,null,{"$f":"IF(E78=4,TRUE,FALSE)","v":false},""]
[null,null,null,null,null,{"$f":"IF(E78=5,TRUE,FALSE)","v":false},""]
[null,null,null,null,null,{"$f":"IF(E78=6,TRUE,FALSE)","v":false},""]
[null,"Maßnahmen um maximale Resilienz zu erreichen","Verantwortliche Stelle","Zeitraum",null,null,""]
[null,null,null,null,null,null,""]
[null,null,null,null,null,null,""]
[null,"7.3.2 - Planung der Betriebskontinui-tät",null,null,null,null,"7.3.2"]
[null,"Frage / Beurteilungsbereich","Kommentare",null,null,null,""]
[null,null,null,null,null,null,""]
[null,"Empfohlene – nicht verbindliche – Bewertungsskala","Stellen Sie Nachweise bereit (Erklärungen etc.)",null,null,null,""]
[null,null,null,null,null,{"$f":"IF(E91=1,TRUE,FALSE)","v":false},""]
[null,null,null,null,null,{"$f":"IF(E91=2,TRUE,FALSE)","v":false},""]
[null,null,null,null,null,{"$f":"IF(E91=3,TRUE,FALSE)","v":false},""]
[null,null,null,null,null,{"$f":"IF(E91=4,TRUE,FALSE)","v":false},""]
[null,null,null,null,null,{"$f":"IF(E91=5,TRUE,FALSE)","v":false},""]
[null,null,null,null,null,{"$f":"IF(E91=6,TRUE,FALSE)","v":false},""]
[null,"Maßnahmen um maximale Resilienz zu erreichen","Verantwortliche Stelle","Zeitraum",null,null,""]
[null,null,null,null,null,null,""]
[null,null,null,null,null,null,""]
[null,"7.4 - Techniken zur Einbeziehung der Bürgerinnen und Bürger",null,null,null,null,"7.4"]
[null,null,null,null,null,null,""]
[null,"7.4.1 - Frequency of engagement",null,null,null,null,"7.4.1"]
[null,"Häufigkeit der Einbeziehung","Kommentare",null,null,null,""]
[null,null,null,null,null,null,""]
[null,"Empfohlene – nicht verbindliche – Bewertungsskala","Stellen Sie Nachweise bereit (Erklärungen etc.)",null,null,null,""]
[null,null,null,null,null,{"$f":"IF(E106=1,TRUE,FALSE)","v":false},""]
[null,null,null,null,null,{"$f":"IF(E106=2,TRUE,FALSE)","v":false},""]
[null,null,null,null,null,{"$f":"IF(E106=3,TRUE,FALSE)","v":false},""]
[null,null,null,null,null,{"$f":"IF(E106=4,TRUE,FALSE)","v":false},""]
[null,null,null,null,null,{"$f":"IF(E106=5,TRUE,FALSE)","v":false},""]
[null,null,null,null,null,{"$f":"IF(E106=6,TRUE,FALSE)","v":false},""]
[null,"Maßnahmen um maximale Resilienz zu erreichen","Verantwortliche Stelle","Zeitraum",null,null,""]
[null,null,null,null,null,null,""]
[null,null,null,null,null,null,""]
[null,"7.4.2 - Einsatz von „Beteiligungs-systemen\" per Mobiltelefon und E-Mail, damit die Bürgerinnen und Bürger vor und nach einer Katastrophe Informationen erhalten und weitergeben können",null,null,null,null,"7.4.2"]
[null,"Häufigkeit der Einbeziehung","Kommentare",null,null,null,""]
[null,null,null,null,null,null,""]
[null,"Empfohlene – nicht verbindliche – Bewertungsskala","Stellen Sie Nachweise bereit (Erklärungen etc.)",null,null,null,""]
[null,null,null,null,null,{"$f":"IF(E119=1,TRUE,FALSE)","v":false},""]
[null,null,null,null,null,{"$f":"IF(E119=2,TRUE,FALSE)","v":false},""]
[null,null,null,null,null,{"$f":"IF(E119=3,TRUE,FALSE)","v":false},""]
[null,null,null,null,null,{"$f":"IF(E119=4,TRUE,FALSE)","v":false},""]
[null,null,null,null,null,{"$f":"IF(E119=5,TRUE,FALSE)","v":false},""]
[null,null,null,null,null,{"$f":"IF(E119=6,TRUE,FALSE)","v":false},""]
[null,"Maßnahmen um maximale Resilienz zu erreichen","Verantwortliche Stelle","Zeitraum",null,null,""]
[null,null,null,null,null,null,""]
[null,null,null,null,null,null,""]
[null,"7.4.3 - Validierung der Wirksamkeit von Bildung",null,null,null,null,"7.4.3"]
[null,"Häufigkeit der Einbeziehung","Kommentare",null,null,null,""]
[null,null,null,null,null,null,""]
[null,"Empfohlene – nicht verbindliche – Bewertungsskala","Stellen Sie Nachweise bereit (Erklärungen etc.)",null,null,null,""]
[null,null,null,null,null,{"$f":"IF(E132=1,TRUE,FALSE)","v":false},""]
[null,null,null,null,null,{"$f":"IF(E132=2,TRUE,FALSE)","v":false},""]
[null,null,null,null,null,{"$f":"IF(E132=3,TRUE,FALSE)","v":false},""]
[null,null,null,null,null,{"$f":"IF(E132=4,TRUE,FALSE)","v":false},""]
[null,null,null,null,null,{"$f":"IF(E132=5,TRUE,FALSE)","v":false},""]
[null,null,null,null,null,{"$f":"IF(E132=6,TRUE,FALSE)","v":false},""]
[null,"Maßnahmen um maximale Resilienz zu erreichen","Verantwortliche Stelle","Zeitraum",null,null,""]
[null,null,null,null,null,null,""]
[null,null,null,null,null,null,""]
[null,null,null,null,null,null,""]
[null,null,null,null,null,null,""]
[null,null,null,null,null,null,""]
[null,null,null,null,null,null,""]
[null,null,null,null,null,null,""]
[null,null,null,null,null,null,""]
[null,null,null,null,null,null,""]
[null,null,null,null,null,null,""]
[null,null,null,null,null,null,""]
[null,null,null,null,null,null,""]
[null,null,null,null,null,null,""]
[null,null,null,null,null,null,""]
[null,null,null,null,null,null,""]
[null,null,null,null,null,null,""]
[null,null,null,null,null,null,""]
[null,null,null,null,null,null,""]
[null,null,null,null,null,null,""]
[null,null,null,null,null,null,""]
[null,null,null,null,null,null,""]
[null,null,null,null,null,null,""]
[null,null,null,null,null,null,""]
[null,null,null,null,null,null,""]
[null,null,null,null,null,null,""]
[null,null,null,null,null,null,""]
[null,null,null,null,null,null,""]
[null,null,null,null,null,null,""]
[null,null,null,null,null,null,""]
[null,null,null,null,null,null,""]
[null,null,null,null,null,null,""]
[null,null,null,null,null,null,""]
[null,null,null,null,null,null,""]
[null,null,null,null,null,null,""]
[null,null,null,null,null,null,""]
[null,null,null,null,null,null,""]
[null,null,null,null,null,null,""]
[null,null,null,null,null,null,""]
[null,null,null,null,null,null,""]
[null,null,null,null,null,null,""]
[null,null,null,null,null,null,""]
[null,null,null,null,null,null,""]
[null,null,null,null,null,null,""]
[null,null,null,null,null,null,""]
[null,null,null,null,null,null,""]
[null,null,null,null,null,null,""]
[null,null,null,null,null,null,""]
[null,null,null,null,null,null,""]
[null,null,null,null,null,null,""]
[null,null,null,null,null,null,""]
[null,null,null,null,null,null,""]
[null,null,null,null,null,null,""]
[null,null,null,null,null,null,""]
[null,null,null,null,null,null,""]
[null,null,null,null,null,null,""]
[null,null,null,null,null,null,""]
[null,null,null,null,null,null,""]
[null,null,null,null,null,null,""]
[null,null,null,null,null,null,""]
[null,null,null,null,null,null,""]
[null,null,null,null,null,null,""]
[null,null,null,null,null,null,""]
[null,null,null,null,null,null,""]
[null,null,null,null,null,null,""]
[null,null,null,null,null,null,""]
[null,null,null,null,null,null,""]
[null,null,null,null,null,null,""]
[null,null,null,null,null,null,""]
[null,null,null,null,null,null,""]
[null,null,null,null,null,null,""]
[null,null,null,null,null,null,""]
[null,null,null,null,null,null,""]
[null,null,null,null,null,null,""]
[null,null,null,null,null,null,""]
[null,null,null,null,null,null,""]
[null,null,null,null,null,null,""]
[null,null,null,null,null,null,""]
[null,null,null,null,null,null,""]
[null,null,null,null,null,null,""]
[null,null,null,null,null,null,""]
[null,null,null,null,null,null,""]
[null,null,null,null,null,null,""]
[null,null,null,null,null,null,""]
[null,null,null,null,null,null,""]
[null,null,null,null,null,null,""]
[null,null,null,null,null,null,""]
[null,null,null,null,null,null,""]
[null,null,null,null,null,null,""]
[null,null,null,null,null,null,""]
[null,null,null,null,null,null,""]
[null,null,null,null,null,null,""]
[null,null,null,null,null,null,""]
[null,null,null,null,null,null,""]
[null,null,null,null,null,null,""]
[null,null,null,null,null,null,""]
[null,null,null,null,null,null,""]
[null,null,null,null,null,null,""]
[null,null,null,null,null,null,""]
[null,null,null,null,null,null,""]
[null,null,null,null,null,null,""]
[null,null,null,null,null,null,""]
[null,null,null,null,null,null,""]
[null,null,null,null,null,null,""]
[null,null,null,null,null,null,""]
[null,null,null,null,null,null,""]
[null,null,null,null,null,null,""]
[null,null,null,null,null,null,""]
[null,null,null,null,null,null,""]
[null,null,null,null,null,null,""]
[null,null,null,null,null,null,""]
[null,null,null,null,null,null,""]
[null,null,null,null,null,null,""]
[null,null,null,null,null,null,""]
[null,null,null,null,null,null,""]
[null,null,null,null,null,null,""]
[null,null,null,null,null,null,""]
[null,null,null,null,null,null,""]
[null,null,null,null,null,null,""]
[null,null,null,null,null,null,""]
[null,null,null,null,null,null,""]
[null,null,null,null,null,null,""]
[null,null,null,null,null,null,""]
[null,null,null,null,null,null,""]
[null,null,null,null,null,null,""]
[null,null,null,null,null,null,""]
[null,null,null,null,null,null,""]
[null,null,null,null,null,null,""]
[null,null,null,null,null,null,""]
[null,null,null,null,null,null,""]
[null,null,null,null,null,null,""]
[null,null,null,null,null,null,""]
[null,null,null,null,null,null,""]
[null,null,null,null,null,null,""]
[null,null,null,null,null,null,""]
[null,null,null,null,null,null,""]
[null,null,null,null,null,null,""]
[null,null,null,null,null,null,""]
[null,null,null,null,null,null,""]
[null,null,null,null,null,null,""]
[null,null,null,null,null,null,""]
[null,null,null,null,null,null,""]
[null,null,null,null,null,null,""]
[null,null,null,null,null,null,""]
[null,null,null,null,null,null,""]
[null,null,null,null,null,null,""]
[null,null,null,null,null,null,""]
[null,null,null,null,null,null,""]
[null,null,null,null,null,null,""]
[null,null,null,null,null,null,""]
[null,null,null,null,null,null,""]
[null,null,null,null,null,null,""]
[null,null,null,null,null,null,""]
[null,null,null,null,null,null,""]
[null,null,null,null,null,null,""]
[null,null,null,null,null,null,""]
[null,null,null,null,null,null,""]
[null,null,null,null,null,null,""]
[null,null,null,null,null,null,""]
[null,null,null,null,null,null,""]
[null,null,null,null,null,null,""]
[null,null,null,null,null,null,""]
[null,null,null,null,null,null,""]
[null,null,null,null,null,null,""]
[null,null,null,null,null,null,""]
[null,null,null,null,null,null,""]
[null,null,null,null,null,null,""]
[null,null,null,null,null,null,""]
[null,null,null,null,null,null,""]
[null,null,null,null,null,null,""]
[null,null,null,null,null,null,""]
[null,null,null,null,null,null,""]
[null,null,null,null,null,null,""]
[null,null,null,null,null,null,""]
[null,null,null,null,null,null,""]
[null,null,null,null,null,null,""]
[null,null,null,null,null,null,""]
[null,null,null,null,null,null,""]
[null,null,null,null,null,null,""]
[null,null,null,null,null,null,""]
[null,null,null,null,null,null,""]
[null,null,null,null,null,null,""]
[null,null,null,null,null,null,""]
[null,null,null,null,null,null,""]
[null,null,null,null,null,null,""]
[null,null,null,null,null,null,""]
[null,null,null,null,null,null,""]
[null,null,null,null,null,null,""]
[null,null,null,null,null,null,""]
[null,null,null,null,null,null,""]
[null,null,null,null,null,null,""]
[null,null,null,null,null,null,""]
[null,null,null,null,null,null,""]
[null,null,null,null,null,null,""]
[null,null,null,null,null,null,""]
[null,null,null,null,null,null,""]
[null,null,null,null,null,null,""]
[null,null,null,null,null,null,""]
[null,null,null,null,null,null,""]
[null,null,null,null,null,null,""]
[null,null,null,null,null,null,""]
[null,null,null,null,null,null,""]
[null,null,null,null,null,null,""]
[null,null,null,null,null,null,""]
[null,null,null,null,null,null,""]
[null,null,null,null,null,null,""]
[null,null,null,null,null,null,""]
[null,null,null,null,null,null,""]
[null,null,null,null,null,null,""]
[null,null,null,null,null,null,""]
[null,null,null,null,null,null,""]
[null,null,null,null,null,null,""]
[null,null,null,null,null,null,""]
[null,null,null,null,null,null,""]
[null,null,null,null,null,null,""]
[null,null,null,null,null,null,""]
[null,null,null,null,null,null,""]
[null,null,null,null,null,null,""]
[null,null,null,null,null,null,""]
[null,null,null,null,null,null,""]
[null,null,null,null,null,null,""]
[null,null,null,null,null,null,""]
[null,null,null,null,null,null,""]
[null,null,null,null,null,null,""]
[null,null,null,null,null,null,""]
[null,null,null,null,null,null,""]
[null,null,null,null,null,null,""]
[null,null,null,null,null,null,""]
[null,null,null,null,null,null,""]
[null,null,null,null,null,null,""]
[null,null,null,null,null,null,""]
[null,null,null,null,null,null,""]
[null,null,null,null,null,null,""]
[null,null,null,null,null,null,""]
[null,null,null,null,null,null,""]
[null,null,null,null,null,null,""]
[null,null,null,null,null,null,""]
[null,null,null,null,null,null,""]
[null,null,null,null,null,null,""]
[null,null,null,null,null,null,""]
[null,null,null,null,null,null,""]
[null,null,null,null,null,null,""]
[null,null,null,null,null,null,""]
[null,null,null,null,null,null,""]
[null,null,null,null,null,null,""]
[null,null,null,null,null,null,""]
[null,null,null,null,null,null,""]
[null,null,null,null,null,null,""]
[null,null,null,null,null,null,""]
[null,null,null,null,null,null,""]
[null,null,null,null,null,null,""]
[null,null,null,null,null,null,""]
[null,null,null,null,null,null,""]
[null,null,null,null,null,null,""]
[null,null,null,null,null,null,""]
[null,null,null,null,null,null,""]
[null,null,null,null,null,null,""]
[null,null,null,null,null,null,""]
[null,null,null,null,null,null,""]
[null,null,null,null,null,null,""]
[null,null,null,null,null,null,""]
[null,null,null,null,null,null,""]
[null,null,null,null,null,null,""]
[null,null,null,null,null,null,""]
[null,null,null,null,null,null,""]
[null,null,null,null,null,null,""]
[null,null,null,null,null,null,""]
[null,null,null,null,null,null,""]
[null,null,null,null,null,null,""]
[null,null,null,null,null,null,""]
[null,null,null,null,null,null,""]
[null,null,null,null,null,null,""]
[null,null,null,null,null,null,""]
[null,null,null,null,null,null,""]
[null,null,null,null,null,null,""]
[null,null,null,null,null,null,""]
[null,null,null,null,null,null,""]
[null,null,null,null,null,null,""]
[null,null,null,null,null,null,""]
[null,null,null,null,null,null,""]
[null,null,null,null,null,null,""]
[null,null,null,null,null,null,""]
[null,null,null,null,null,null,""]
[null,null,null,null,null,null,""]
[null,null,null,null,null,null,""]
[null,null,null,null,null,null,""]
[null,null,null,null,null,null,""]
[null,null,null,null,null,null,""]
[null,null,null,null,null,null,""]
[null,null,null,null,null,null,""]
[null,null,null,null,null,null,""]
[null,null,null,null,null,null,""]
[null,null,null,null,null,null,""]
[null,null,null,null,null,null,""]
[null,null,null,null,null,null,""]
[null,null,null,null,null,null,""]
[null,null,null,null,null,null,""]
[null,null,null,null,null,null,""]
[null,null,null,null,null,null,""]
[null,null,null,null,null,null,""]
[null,null,null,null,null,null,""]
[null,null,null,null,null,null,""]
[null,null,null,null,null,null,""]
[null,null,null,null,null,null,""]
[null,null,null,null,null,null,""]
[null,null,null,null,null,null,""]
[null,null,null,null,null,null,""]
[null,null,null,null,null,null,""]
[null,null,null,null,null,null,""]
[null,null,null,null,null,null,""]
[null,null,null,null,null,null,""]
[null,null,null,null,null,null,""]
[null,null,null,null,null,null,""]
[null,null,null,null,null,null,""]
[null,null,null,null,null,null,""]
[null,null,null,null,null,null,""]
[null,null,null,null,null,null,""]
[null,null,null,null,null,null,""]
[null,null,null,null,null,null,""]
[null,null,null,null,null,null,""]
[null,null,null,null,null,null,""]
[null,null,null,null,null,null,""]
[null,null,null,null,null,null,""]
[null,null,null,null,null,null,""]
[null,null,null,null,null,null,""]
[null,null,null,null,null,null,""]
[null,null,null,null,null,null,""]
[null,null,null,null,null,null,""]
[null,null,null,null,null,null,""]
[null,null,null,null,null,null,""]
[null,null,null,null,null,null,""]
[null,null,null,null,null,null,""]
[null,null,null,null,null,null,""]
[null,null,null,null,null,null,""]
[null,null,null,null,null,null,""]
[null,null,null,null,null,null,""]
[null,null,null,null,null,null,""]
[null,null,null,null,null,null,""]
[null,null,null,null,null,null,""]
[null,null,null,null,null,null,""]
[null,null,null,null,null,null,""]
[null,null,null,null,null,null,""]
[null,null,null,null,null,null,""]
[null,null,null,null,null,null,""]
[null,null,null,null,null,null,""]
[null,null,null,null,null,null,""]
[null,null,null,null,null,null,""]
[null,null,null,null,null,null,""]
[null,null,null,null,null,null,""]
[null,null,null,null,null,null,""]
[null,null,null,null,null,null,""]
[null,null,null,null,null,null,""]
[null,null,null,null,null,null,""]
[null,null,null,null,null,null,""]
[null,null,null,null,null,null,""]
[null,null,null,null,null,null,""]
[null,null,null,null,null,null,""]
[null,null,null,null,null,null,""]
[null,null,null,null,null,null,""]
[null,null,null,null,null,null,""]
[null,null,null,null,null,null,""]
[null,null,null,null,null,null,""]
[null,null,null,null,null,null,""]
[null,null,null,null,null,null,""]
[null,null,null,null,null,null,""]
[null,null,null,null,null,null,""]
[null,null,null,null,null,null,""]
[null,null,null,null,null,null,""]
[null,null,null,null,null,null,""]
[null,null,null,null,null,null,""]
[null,null,null,null,null,null,""]
[null,null,null,null,null,null,""]
[null,null,null,null,null,null,""]
[null,null,null,null,null,null,""]
[null,null,null,null,null,null,""]
[null,null,null,null,null,null,""]
[null,null,null,null,null,null,""]
[null,null,null,null,null,null,""]
[null,null,null,null,null,null,""]
[null,null,null,null,null,null,""]
[null,null,null,null,null,null,""]
[null,null,null,null,null,null,""]
[null,null,null,null,null,null,""]
[null,null,null,null,null,null,""]
[null,null,null,null,null,null,""]
[null,null,null,null,null,null,""]
[null,null,null,null,null,null,""]
[null,null,null,null,null,null,""]
[null,null,null,null,null,null,""]
[null,null,null,null,null,null,""]
[null,null,null,null,null,null,""]
[null,null,null,null,null,null,""]
[null,null,null,null,null,null,""]
[null,null,null,null,null,null,""]
[null,null,null,null,null,null,""]
[null,null,null,null,null,null,""]
[null,null,null,null,null,null,""]
[null,null,null,null,null,null,""]
[null,null,null,null,null,null,""]
[null,null,null,null,null,null,""]
[null,null,null,null,null,null,""]
[null,null,null,null,null,null,""]
[null,null,null,null,null,null,""]
[null,null,null,null,null,null,""]
[null,null,null,null,null,null,""]
[null,null,null,null,null,null,""]
[null,null,null,null,null,null,""]
[null,null,null,null,null,null,""]
[null,null,null,null,null,null,""]
[null,null,null,null,null,null,""]
[null,null,null,null,null,null,""]
[null,null,null,null,null,null,""]
[null,null,null,null,null,null,""]
[null,null,null,null,null,null,""]
[null,null,null,null,null,null,""]
[null,null,null,null,null,null,""]
[null,null,null,null,null,null,""]
[null,null,null,null,null,null,""]
[null,null,null,null,null,null,""]
[null,null,null,null,null,null,""]
[null,null,null,null,null,null,""]
[null,null,null,null,null,null,""]
[null,null,null,null,null,null,""]
[null,null,null,null,null,null,""]
[null,null,null,null,null,null,""]
[null,null,null,null,null,null,""]
[null,null,null,null,null,null,""]
[null,null,null,null,null,null,""]
[null,null,null,null,null,null,""]
[null,null,null,null,null,null,""]
[null,null,null,null,null,null,""]
[null,null,null,null,null,null,""]
[null,null,null,null,null,null,""]
[null,null,null,null,null,null,""]
[null,null,null,null,null,null,""]
[null,null,null,null,null,null,""]
[null,null,null,null,null,null,""]
[null,null,null,null,null,null,""]
[null,null,null,null,null,null,""]
[null,null,null,null,null,null,""]
[null,null,null,null,null,null,""]
[null,null,null,null,null,null,""]
[null,null,null,null,null,null,""]
[null,null,null,null,null,null,""]
[null,null,null,null,null,null,""]
[null,null,null,null,null,null,""]
[null,null,null,null,null,null,""]
[null,null,null,null,null,null,""]
[null,null,null,null,null,null,""]
[null,null,null,null,null,null,""]
[null,null,null,null,null,null,""]
[null,null,null,null,null,null,""]
[null,null,null,null,null,null,""]
[null,null,null,null,null,null,""]
[null,null,null,null,null,null,""]
[null,null,null,null,null,null,""]
[null,null,null,null,null,null,""]
[null,null,null,null,null,null,""]
[null,null,null,null,null,null,""]
[null,null,null,null,null,null,""]
[null,null,null,null,null,null,""]
[null,null,null,null,null,null,""]
[null,null,null,null,null,null,""]
[null,null,null,null,null,null,""]
[null,null,null,null,null,null,""]
[null,null,null,null,null,null,""]
[null,null,null,null,null,null,""]
[null,null,null,null,null,null,""]
[null,null,null,null,null,null,""]
[null,null,null,null,null,null,""]
[null,null,null,null,null,null,""]
[null,null,null,null,null,null,""]
[null,null,null,null,null,null,""]
[null,null,null,null,null,null,""]
[null,null,null,null,null,null,""]
[null,null,null,null,null,null,""]
[null,null,null,null,null,null,""]
[null,null,null,null,null,null,""]
[null,null,null,null,null,null,""]
[null,null,null,null,null,null,""]
[null,null,null,null,null,null,""]
[null,null,null,null,null,null,""]
[null,null,null,null,null,null,""]
[null,null,null,null,null,null,""]
[null,null,null,null,null,null,""]
[null,null,null,null,null,null,""]
[null,null,null,null,null,null,""]
[null,null,null,null,null,null,""]
[null,null,null,null,null,null,""]
[null,null,null,null,null,null,""]
[null,null,null,null,null,null,""]
[null,null,null,null,null,null,""]
[null,null,null,null,null,null,""]
[null,null,null,null,null,null,""]
[null,null,null,null,null,null,""]
[null,null,null,null,null,null,""]
[null,null,null,null,null,null,""]
[null,null,null,null,null,null,""]
[null,null,null,null,null,null,""]
[null,null,null,null,null,null,""]
[null,null,null,null,null,null,""]
[null,null,null,null,null,null,""]
[null,null,null,null,null,null,""]
[null,null,null,null,null,null,""]
[null,null,null,null,null,null,""]
[null,null,null,null,null,null,""]
[null,null,null,null,null,null,""]
[null,null,null,null,null,null,""]
[null,null,null,null,null,null,""]
[null,null,null,null,null,null,""]
[null,null,null,null,null,null,""]
[null,null,null,null,null,null,""]
[null,null,null,null,null,null,""]
[null,null,null,null,null,null,""]
[null,null,null,null,null,null,""]
[null,null,null,null,null,null,""]
[null,null,null,null,null,null,""]
[null,null,null,null,null,null,""]
[null,null,null,null,null,null,""]
[null,null,null,null,null,null,""]
[null,null,null,null,null,null,""]
[null,null,null,null,null,null,""]
[null,null,null,null,null,null,""]
[null,null,null,null,null,null,""]
[null,null,null,null,null,null,""]
[null,null,null,null,null,null,""]
[null,null,null,null,null,null,""]

{"sheet":"E08","index":10,"n_rows":664,"n_cols":7,"rows_kept":664,"cut":false,"hidden":false,"merged":[[35,2,35,3],[46,2,46,3],[47,2,47,3],[48,2,48,3],[59,2,59,3],[32,1,32,3],[33,2,33,3],[34,2,34,3],[36,2,41,3],[49,2,54,3],[45,1,45,3],[4,1,4,3],[5,2,5,3],[6,2,6,3],[7,2,7,3],[8,2,13,3],[21,2,26,3],[20,2,20,3],[19,2,19,3],[18,2,18,3],[17,1,17,3],[60,2,60,3],[58,1,58,3],[103,2,108,3],[102,2,102,3],[101,2,101,3],[100,2,100,3],[99,1,99,3],[74,2,74,3],[75,2,75,3],[76,2,76,3],[77,2,82,3],[90,2,95,3],[89,2,89,3],[88,2,88,3],[87,2,87,3],[86,1,86,3],[73,1,73,3],[62,2,67,3],[61,2,61,3],[128,2,128,3],[129,2,129,3],[130,2,130,3],[131,2,136,3],[115,2,115,3],[116,2,116,3],[117,2,117,3],[118,2,123,3],[114,1,114,2],[127,1,127,2],[183,2,183,3],[182,2,182,3],[181,1,181,3],[168,1,168,3],[169,2,169,3],[170,2,170,3],[171,2,171,3],[172,2,177,3],[157,2,162,3],[156,2,156,3],[155,2,155,3],[154,2,154,3],[142,2,142,3],[143,2,143,3],[144,2,149,3],[141,2,141,3],[140,1,140,2],[153,1,153,2],[208,2,208,3],[198,2,203,3],[197,2,197,3],[196,2,196,3],[195,2,195,3],[185,2,190,3],[184,2,184,3],[194,1,194,2],[207,1,207,2],[224,2,229,3],[223,2,223,3],[222,2,222,3],[221,2,221,3],[211,2,216,3],[210,2,210,3],[209,2,209,3],[220,1,220,2],[233,1,233,2],[250,2,255,3],[249,2,249,3],[248,2,248,3],[247,2,247,3],[246,1,246,3],[237,2,242,3],[236,2,236,3],[235,2,235,3],[234,2,234,3],[288,2,288,3],[287,1,287,3],[278,2,283,3],[277,2,277,3],[276,2,276,3],[275,2,275,3],[274,1,274,3],[261,1,261,3],[262,2,262,3],[263,2,263,3],[264,2,264,3],[265,2,270,3],[315,1,315,3],[302,1,302,3],[303,2,303,3],[304,2,304,3],[305,2,305,3],[306,2,311,3],[291,2,296,3],[290,2,290,3],[289,2,289,3],[332,2,337,3],[331,2,331,3],[330,2,330,3],[329,2,329,3],[328,1,328,3],[319,2,324,3],[318,2,318,3],[317,2,317,3],[316,2,316,3],[369,1,369,3],[356,1,356,3],[357,2,357,3],[358,2,358,3],[359,2,359,3],[360,2,365,3],[341,1,341,3],[342,2,342,3],[343,2,343,3],[344,2,344,3],[345,2,350,3],[386,2,391,3],[385,2,385,3],[384,2,384,3],[383,2,383,3],[382,1,382,3],[373,2,378,3],[372,2,372,3],[371,2,371,3],[370,2,370,3],[427,1,427,3],[416,2,421,3],[415,2,415,3],[414,2,414,3],[413,2,413,3],[412,1,412,3],[397,1,397,3],[398,2,398,3],[399,2,399,3],[400,2,400,3],[401,2,406,3],[444,2,449,3],[443,2,443,3],[442,2,442,3],[441,2,441,3],[440,1,440,3],[431,2,436,3],[430,2,430,3],[429,2,429,3],[428,2,428,3]]}
[]
[null,null,null,null,null,null,""]
[null,"8.1 - Physische Schutzmaßnahmen",null,null,null,null,"8.1"]
[null,null,null,null,null,null,""]
[null,"8.1.1 -Eignung physischer Schutzmaßnahmen (Ökosysteme können einen natürlichen Puffer bieten - siehe Grundprinzip 5)",null,null,null,null,"8.1.1"]
[null,"Frage / Beurteilungsbereich","Kommentare",null,null,null,""]
[null,null,null,null,null,null,""]
[null,"Empfohlene – nicht verbindliche – Bewertungsskala","Stellen Sie Nachweise bereit (Erklärungen etc.)",null,null,null,""]
[null,null,null,null,null,{"$f":"IF(E9=1,TRUE,FALSE)","v":false},""]
[null,null,null,null,null,{"$f":"IF(E9=2,TRUE,FALSE)","v":false},""]
[null,null,null,null,null,{"$f":"IF(E9=3,TRUE,FALSE)","v":false},""]
[null,null,null,null,null,{"$f":"IF(E9=4,TRUE,FALSE)","v":false},""]
[null,null,null,null,null,{"$f":"IF(E9=5,TRUE,FALSE)","v":false},""]
[null,null,null,null,null,{"$f":"IF(E9=6,TRUE,FALSE)","v":false},""]
[null,"Maßnahmen um maximale Resilienz zu erreichen","Verantwortliche Stelle","Zeitraum",null,null,""]
[null,null,null,null,null,null,""]
[null,null,null,null,null,null,""]
[null,"8.1.2 - Effektivität der Instandhaltung",null,null,null,null,"8.1.2"]
[null,"Frage / Beurteilungsbereich","Kommentare",null,null,null,""]
[null,null,null,null,null,null,""]
[null,"Empfohlene – nicht verbindliche – Bewertungsskala","Stellen Sie Nachweise bereit (Erklärungen etc.)",null,null,null,""]
[null,null,null,null,null,{"$f":"IF(E22=1,TRUE,FALSE)","v":false},""]
[null,null,null,null,null,{"$f":"IF(E22=2,TRUE,FALSE)","v":false},""]
[null,null,null,null,null,{"$f":"IF(E22=3,TRUE,FALSE)","v":false},""]
[null,null,null,null,null,{"$f":"IF(E22=4,TRUE,FALSE)","v":false},""]
[null,null,null,null,null,{"$f":"IF(E22=5,TRUE,FALSE)","v":false},""]
[null,null,null,null,null,{"$f":"IF(E22=6,TRUE,FALSE)","v":false},""]
[null,"Maßnahmen um maximale Resilienz zu erreichen","Verantwortliche Stelle","Zeitraum",null,null,""]
[null,null,null,null,null,null,""]
[null,null,null,null,null,null,""]
[null,"8.2 - Wasseraufbereitung",null,null,null,null,"8.2"]
[null,null,null,null,null,null,""]
[null,"8.2.1 - Customer service days at risk of loss",null,null,null,null,"8.2.1"]
[null,"Frage / Beurteilungsbereich","Kommentare",null,null,null,""]
[null,null,null,null,null,null,""]
[null,"Empfohlene – nicht verbindliche – Bewertungsskala","Stellen Sie Nachweise bereit (Erklärungen etc.)",null,null,null,""]
[null,null,null,null,null,{"$f":"IF(E37=1,TRUE,FALSE)","v":false},""]
[null,null,null,null,null,{"$f":"IF(E37=2,TRUE,FALSE)","v":false},""]
[null,null,null,null,null,{"$f":"IF(E37=3,TRUE,FALSE)","v":false},""]
[null,null,null,null,null,{"$f":"IF(E37=4,TRUE,FALSE)","v":false},""]
[null,null,null,null,null,{"$f":"IF(E37=5,TRUE,FALSE)","v":false},""]
[null,null,null,null,null,{"$f":"IF(E37=6,TRUE,FALSE)","v":false},""]
[null,"Maßnahmen um maximale Resilienz zu erreichen","Verantwortliche Stelle","Zeitraum",null,null,""]
[null,null,null,null,null,null,""]
[null,null,null,null,null,null,""]
[null,"8.2.2 - Dauer des zu erwartenden Versorgungs-ausfalls für kritische Einrichtungen (z.B. für Krankenhäuser oder andere kritische Einrichtungen), die durch einen Ausfall der Wasserver-sorgung oder Abwasserent-sorgung gefährdet sind",null,null,null,null,"8.2.2"]
[null,"Frage / Beurteilungsbereich","Kommentare",null,null,null,""]
[null,null,null,null,null,null,""]
[null,"Empfohlene – nicht verbindliche – Bewertungsskala","Stellen Sie Nachweise bereit (Erklärungen etc.)",null,null,null,""]
[null,null,null,null,null,{"$f":"IF(E50=1,TRUE,FALSE)","v":false},""]
[null,null,null,null,null,{"$f":"IF(E50=2,TRUE,FALSE)","v":false},""]
[null,null,null,null,null,{"$f":"IF(E50=3,TRUE,FALSE)","v":false},""]
[null,null,null,null,null,{"$f":"IF(E50=4,TRUE,FALSE)","v":false},""]
[null,null,null,null,null,{"$f":"IF(E50=5,TRUE,FALSE)","v":false},""]
[null,null,null,null,null,{"$f":"IF(E50=6,TRUE,FALSE)","v":false},""]
[null,"Maßnahmen um maximale Resilienz zu erreichen","Verantwortliche Stelle","Zeitraum",null,null,""]
[null,null,null,null,null,null,""]
[null,null,null,null,null,null,""]
[null,"8.2.3 - Kosten der Wiederher-stellung der Versorgung",null,null,null,null,"8.2.3"]
[null,"Frage / Beurteilungsbereich","Kommentare",null,null,null,""]
[null,null,null,null,null,null,""]
[null,"Empfohlene – nicht verbindliche – Bewertungsskala","Stellen Sie Nachweise bereit (Erklärungen etc.)",null,null,null,""]
[null,null,null,null,null,{"$f":"IF(E63=1,TRUE,FALSE)","v":false},""]
[null,null,null,null,null,{"$f":"IF(E63=2,TRUE,FALSE)","v":false},""]
[null,null,null,null,null,{"$f":"IF(E63=3,TRUE,FALSE)","v":false},""]
[null,null,null,null,null,{"$f":"IF(E63=4,TRUE,FALSE)","v":false},""]
[null,null,null,null,null,{"$f":"IF(E63=5,TRUE,FALSE)","v":false},""]
[null,null,null,null,null,{"$f":"IF(E63=6,TRUE,FALSE)","v":false},""]
[null,"Maßnahmen um maximale Resilienz zu erreichen","Verantwortliche Stelle","Zeitraum",null,null,""]
[null,null,null,null,null,null,""]
[null,null,null,null,null,null,""]
[null,"8.3 - Energie – Elektrizität ",null,null,null,null,"8.3"]
[null,null,null,null,null,null,""]
[null,"8.3.1 - Dauer des zu erwartenden Versorgungsausfalls",null,null,null,null,"8.3.1"]
[null,"Frage / Beurteilungsbereich","Kommentare",null,null,null,""]
[null,null,null,null,null,null,""]
[null,"Empfohlene – nicht verbindliche – Bewertungsskala","Stellen Sie Nachweise bereit (Erklärungen etc.)",null,null,null,""]
[null,null,null,null,null,{"$f":"IF(E78=1,TRUE,FALSE)","v":false},""]
[null,null,null,null,null,{"$f":"IF(E78=2,TRUE,FALSE)","v":false},""]
[null,null,null,null,null,{"$f":"IF(E78=3,TRUE,FALSE)","v":false},""]
[null,null,null,null,null,{"$f":"IF(E78=4,TRUE,FALSE)","v":false},""]
[null,null,null,null,null,{"$f":"IF(E78=5,TRUE,FALSE)","v":false},""]
[null,null,null,null,null,{"$f":"IF(E78=6,TRUE,FALSE)","v":false},""]
[null,"Maßnahmen um maximale Resilienz zu erreichen","Verantwortliche Stelle","Zeitraum",null,null,""]
[null,null,null,null,null,null,""]
[null,null,null,null,null,null,""]
[null,"8.3.2 - Dauer des zu erwartenden Versorgungsaus-falls für kritische Einrichtungen, die durch einen Energieausfall gefährdet sind",null,null,null,null,"8.3.2"]
[null,"Frage / Beurteilungsbereich","Kommentare",null,null,null,""]
[null,null,null,null,null,null,""]
[null,"Empfohlene – nicht verbindliche – Bewertungsskala","Stellen Sie Nachweise bereit (Erklärungen etc.)",null,null,null,""]
[null,null,null,null,null,{"$f":"IF(E91=1,TRUE,FALSE)","v":false},""]
[null,null,null,null,null,{"$f":"IF(E91=2,TRUE,FALSE)","v":false},""]
[null,null,null,null,null,{"$f":"IF(E91=3,TRUE,FALSE)","v":false},""]
[null,null,null,null,null,{"$f":"IF(E91=4,TRUE,FALSE)","v":false},""]
[null,null,null,null,null,{"$f":"IF(E91=5,TRUE,FALSE)","v":false},""]
[null,null,null,null,null,{"$f":"IF(E91=6,TRUE,FALSE)","v":false},""]
[null,"Maßnahmen um maximale Resilienz zu erreichen","Verantwortliche Stelle","Zeitraum",null,null,""]
[null,null,null,null,null,null,""]
[null,null,null,null,null,null,""]
[null,"8.3.3 - Kosten der Wiederher-stellung der Versorgung",null,null,null,null,"8.3.3"]
[null,"Frage / Beurteilungsbereich","Kommentare",null,null,null,""]
[null,null,null,null,null,null,""]
[null,"Empfohlene – nicht verbindliche – Bewertungsskala","Stellen Sie Nachweise bereit (Erklärungen etc.)",null,null,null,""]
[null,null,null,null,null,{"$f":"IF(E104=1,TRUE,FALSE)","v":false},""]
[null,null,null,null,null,{"$f":"IF(E104=2,TRUE,FALSE)","v":false},""]
[null,null,null,null,null,{"$f":"IF(E104=3,TRUE,FALSE)","v":false},""]
[null,null,null,null,null,{"$f":"IF(E104=4,TRUE,FALSE)","v":false},""]
[null,null,null,null,null,{"$f":"IF(E104=5,TRUE,FALSE)","v":false},""]
[null,null,null,null,null,{"$f":"IF(E104=6,TRUE,FALSE)","v":false},""]
[null,"Maßnahmen um maximale Resilienz zu erreichen","Verantwortliche Stelle","Zeitraum",null,null,""]
[null,null,null,null,null,null,""]
[null,null,null,null,null,null,""]
[null,"8.4 - Energie - Gas",null,null,null,null,"8.4"]
[null,null,null,null,null,null,""]
[null,"8.4.1 - Sicherheit und Stabilität des Gas-systems (falls zutreffend)",null,null,null,null,"8.4.1"]
[null,"Frage / Beurteilungsbereich","Kommentare",null,null,null,""]
[null,null,null,null,null,null,""]
[null,"Empfohlene – nicht verbindliche – Bewertungsskala","Stellen Sie Nachweise bereit (Erklärungen etc.)",null,null,null,""]
[null,null,null,null,null,{"$f":"IF(E119=1,TRUE,FALSE)","v":false},""]
[null,null,null,null,null,{"$f":"IF(E119=2,TRUE,FALSE)","v":false},""]
[null,null,null,null,null,{"$f":"IF(E119=3,TRUE,FALSE)","v":false},""]
[null,null,null,null,null,{"$f":"IF(E119=4,TRUE,FALSE)","v":false},""]
[null,null,null,null,null,{"$f":"IF(E119=5,TRUE,FALSE)","v":false},""]
[null,null,null,null,null,{"$f":"IF(E119=6,TRUE,FALSE)","v":false},""]
[null,"Maßnahmen um maximale Resilienz zu erreichen","Verantwortliche Stelle","Zeitraum",null,null,""]
[null,null,null,null,null,null,""]
[null,null,null,null,null,null,""]
[null,"8.4.2 - Dauer des zu erwartenden Versorgungs-ausfalls",null,null,null,null,"8.4.2"]
[null,"Frage / Beurteilungsbereich","Kommentare",null,null,null,""]
[null,null,null,null,null,null,""]
[null,"Empfohlene – nicht verbindliche – Bewertungsskala","Stellen Sie Nachweise bereit (Erklärungen etc.)",null,null,null,""]
[null,null,null,null,null,{"$f":"IF(E132=1,TRUE,FALSE)","v":false},""]
[null,null,null,null,null,{"$f":"IF(E132=2,TRUE,FALSE)","v":false},""]
[null,null,null,null,null,{"$f":"IF(E132=3,TRUE,FALSE)","v":false},""]
[null,null,null,null,null,{"$f":"IF(E132=4,TRUE,FALSE)","v":false},""]
[null,null,null,null,null,{"$f":"IF(E132=5,TRUE,FALSE)","v":false},""]
[null,null,null,null,null,{"$f":"IF(E132=6,TRUE,FALSE)","v":false},""]
[null,"Maßnahmen um maximale Resilienz zu erreichen","Verantwortliche Stelle","Zeitraum",null,null,""]
[null,null,null,null,null,null,""]
[null,null,null,null,null,null,""]
[null,"8.4.3 - Dauer des zu erwartenden Versorgungs-ausfalls für kritische Einrichtungen, die durch einen Ausfall der Gas-versorgung gefährdet sind",null,null,null,null,"8.4.3"]
[null,"Frage / Beurteilungsbereich","Kommentare",null,null,null,""]
[null,null,null,null,null,null,""]
[null,"Empfohlene – nicht verbindliche – Bewertungsskala","Stellen Sie Nachweise bereit (Erklärungen etc.)",null,null,null,""]
[null,null,null,null,null,{"$f":"IF(E145=1,TRUE,FALSE)","v":false},""]
[null,null,null,null,null,{"$f":"IF(E145=2,TRUE,FALSE)","v":false},""]
[null,null,null,null,null,{"$f":"IF(E145=3,TRUE,FALSE)","v":false},""]
[null,null,null,null,null,{"$f":"IF(E145=4,TRUE,FALSE)","v":false},""]
[null,null,null,null,null,{"$f":"IF(E145=5,TRUE,FALSE)","v":false},""]
[null,null,null,null,null,{"$f":"IF(E145=6,TRUE,FALSE)","v":false},""]
[null,"Maßnahmen um maximale Resilienz zu erreichen","Verantwortliche Stelle","Zeitraum",null,null,""]
[null,null,null,null,null,null,""]
[null,null,null,null,null,null,""]
[null,"8.4.4 - Kosten der Wiederherstellung der Gasversorgung",null,null,null,null,"8.4.4"]
[null,"Frage / Beurteilungsbereich","Kommentare",null,null,null,""]
[null,null,null,null,null,null,""]
[null,"Empfohlene – nicht verbindliche – Bewertungsskala","Stellen Sie Nachweise bereit (Erklärungen etc.)",null,null,null,""]
[null,null,null,null,null,{"$f":"IF(E158=1,TRUE,FALSE)","v":false},""]
[null,null,null,null,null,{"$f":"IF(E158=2,TRUE,FALSE)","v":false},""]
[null,null,null,null,null,{"$f":"IF(E158=3,TRUE,FALSE)","v":false},""]
[null,null,null,null,null,{"$f":"IF(E158=4,TRUE,FALSE)","v":false},""]
[null,null,null,null,null,{"$f":"IF(E158=5,TRUE,FALSE)","v":false},""]
[null,null,null,null,null,{"$f":"IF(E158=6,TRUE,FALSE)","v":false},""]
[null,"Maßnahmen um maximale Resilienz zu erreichen","Verantwortliche Stelle","Zeitraum",null,null,""]
[null,null,null,null,null,null,""]
[null,null,null,null,null,null,""]
[null,"8.5 - Verkehr",null,null,null,null,"8.5"]
[null,null,null,null,null,null,""]
[null,"8.5.1 - Straßenverkehr – Drohender Versorgungs-ausfall",null,null,null,null,"8.5.1"]
[null,"Frage / Beurteilungsbereich","Kommentare",null,null,null,""]
[null,null,null,null,null,null,""]
[null,"Empfohlene – nicht verbindliche – Bewertungsskala","Stellen Sie Nachweise bereit (Erklärungen etc.)",null,null,null,""]
[null,null,null,null,null,{"$f":"IF(E173=1,TRUE,FALSE)","v":false},""]
[null,null,null,null,null,{"$f":"IF(E173=2,TRUE,FALSE)","v":false},""]
[null,null,null,null,null,{"$f":"IF(E173=3,TRUE,FALSE)","v":false},""]
[null,null,null,null,null,{"$f":"IF(E173=4,TRUE,FALSE)","v":false},""]
[null,null,null,null,null,{"$f":"IF(E173=5,TRUE,FALSE)","v":false},""]
[null,null,null,null,null,{"$f":"IF(E173=6,TRUE,FALSE)","v":false},""]
[null,"Maßnahmen um maximale Resilienz zu erreichen","Verantwortliche Stelle","Zeitraum",null,null,""]
[null,null,null,null,null,null,""]
[null,null,null,null,null,null,""]
[null,"8.5.2 - Straßenverkehr - Erhalt der kritischen Zufahrts- und Evakuierungs-wege",null,null,null,null,"8.5.2"]
[null,"Frage / Beurteilungsbereich","Kommentare",null,null,null,""]
[null,null,null,null,null,null,""]
[null,"Empfohlene – nicht verbindliche – Bewertungsskala","Stellen Sie Nachweise bereit (Erklärungen etc.)",null,null,null,""]
[null,null,null,null,null,{"$f":"IF(E186=1,TRUE,FALSE)","v":false},""]
[null,null,null,null,null,{"$f":"IF(E186=2,TRUE,FALSE)","v":false},""]
[null,null,null,null,null,{"$f":"IF(E186=3,TRUE,FALSE)","v":false},""]
[null,null,null,null,null,{"$f":"IF(E186=4,TRUE,FALSE)","v":false},""]
[null,null,null,null,null,{"$f":"IF(E186=5,TRUE,FALSE)","v":false},""]
[null,null,null,null,null,{"$f":"IF(E186=6,TRUE,FALSE)","v":false},""]
[null,"Maßnahmen um maximale Resilienz zu erreichen","Verantwortliche Stelle","Zeitraum",null,null,""]
[null,null,null,null,null,null,""]
[null,null,null,null,null,null,""]
[null,"8.5.3 - Bahnverkehr (falls zutreffend) – Drohender Versorgungs-ausfall im Bahnverkehr ",null,null,null,null,"8.5.3"]
[null,"Frage / Beurteilungsbereich","Kommentare",null,null,null,""]
[null,null,null,null,null,null,""]
[null,"Empfohlene – nicht verbindliche – Bewertungsskala","Stellen Sie Nachweise bereit (Erklärungen etc.)",null,null,null,""]
[null,null,null,null,null,{"$f":"IF(E199=1,TRUE,FALSE)","v":false},""]
[null,null,null,null,null,{"$f":"IF(E199=2,TRUE,FALSE)","v":false},""]
[null,null,null,null,null,{"$f":"IF(E199=3,TRUE,FALSE)","v":false},""]
[null,null,null,null,null,{"$f":"IF(E199=4,TRUE,FALSE)","v":false},""]
[null,null,null,null,null,{"$f":"IF(E199=5,TRUE,FALSE)","v":false},""]
[null,null,null,null,null,{"$f":"IF(E199=6,TRUE,FALSE)","v":false},""]
[null,"Maßnahmen um maximale Resilienz zu erreichen","Verantwortliche Stelle","Zeitraum",null,null,""]
[null,null,null,null,null,null,""]
[null,null,null,null,null,null,""]
[null,"8.5.4 - Luftverkehr (falls zutreffend) – Drohender Versorgungs-ausfall Flughafen",null,null,null,null,"8.5.4"]
[null,"Frage / Beurteilungsbereich","Kommentare",null,null,null,""]
[null,null,null,null,null,null,""]
[null,"Empfohlene – nicht verbindliche – Bewertungsskala","Stellen Sie Nachweise bereit (Erklärungen etc.)",null,null,null,""]
[null,null,null,null,null,{"$f":"IF(E212=1,TRUE,FALSE)","v":false},""]
[null,null,null,null,null,{"$f":"IF(E212=2,TRUE,FALSE)","v":false},""]
[null,null,null,null,null,{"$f":"IF(E212=3,TRUE,FALSE)","v":false},""]
[null,null,null,null,null,{"$f":"IF(E212=4,TRUE,FALSE)","v":false},""]
[null,null,null,null,null,{"$f":"IF(E212=5,TRUE,FALSE)","v":false},""]
[null,null,null,null,null,{"$f":"IF(E212=6,TRUE,FALSE)","v":false},""]
[null,"Maßnahmen um maximale Resilienz zu erreichen","Verantwortliche Stelle","Zeitraum",null,null,""]
[null,null,null,null,null,null,""]
[null,null,null,null,null,null,""]
[null,"8.5.5 - Binnen- und Seeschifffahrt (falls zutreffend) – Drohender Versorgungs-ausfall Hafen",null,null,null,null,"8.5.5"]
[null,"Frage / Beurteilungsbereich","Kommentare",null,null,null,""]
[null,null,null,null,null,null,""]
[null,"Empfohlene – nicht verbindliche – Bewertungsskala","Stellen Sie Nachweise bereit (Erklärungen etc.)",null,null,null,""]
[null,null,null,null,null,{"$f":"IF(E225=1,TRUE,FALSE)","v":false},""]
[null,null,null,null,null,{"$f":"IF(E225=2,TRUE,FALSE)","v":false},""]
[null,null,null,null,null,{"$f":"IF(E225=3,TRUE,FALSE)","v":false},""]
[null,null,null,null,null,{"$f":"IF(E225=4,TRUE,FALSE)","v":false},""]
[null,null,null,null,null,{"$f":"IF(E225=5,TRUE,FALSE)","v":false},""]
[null,null,null,null,null,{"$f":"IF(E225=6,TRUE,FALSE)","v":false},""]
[null,"Maßnahmen um maximale Resilienz zu erreichen","Verantwortliche Stelle","Zeitraum",null,null,""]
[null,null,null,null,null,null,""]
[null,null,null,null,null,null,""]
[null,"8.5.6 - Andere öffentliche Verkehrsmittel (falls zutreffend) – Drohender Versorgungs-ausfall",null,null,null,null,"8.5.6"]
[null,"Frage / Beurteilungsbereich","Kommentare",null,null,null,""]
[null,null,null,null,null,null,""]
[null,"Empfohlene – nicht verbindliche – Bewertungsskala","Stellen Sie Nachweise bereit (Erklärungen etc.)",null,null,null,""]
[null,null,null,null,null,{"$f":"IF(E238=1,TRUE,FALSE)","v":false},""]
[null,null,null,null,null,{"$f":"IF(E238=2,TRUE,FALSE)","v":false},""]
[null,null,null,null,null,{"$f":"IF(E238=3,TRUE,FALSE)","v":false},""]
[null,null,null,null,null,{"$f":"IF(E238=4,TRUE,FALSE)","v":false},""]
[null,null,null,null,null,{"$f":"IF(E238=5,TRUE,FALSE)","v":false},""]
[null,null,null,null,null,{"$f":"IF(E238=6,TRUE,FALSE)","v":false},""]
[null,"Maßnahmen um maximale Resilienz zu erreichen","Verantwortliche Stelle","Zeitraum",null,null,""]
[null,null,null,null,null,null,""]
[null,null,null,null,null,null,""]
[null,"8.5.7 - Kosten der Wiederherstellung (alle Verkehrswege)",null,null,null,null,"8.5.7"]
[null,"Frage / Beurteilungsbereich","Kommentare",null,null,null,""]
[null,null,null,null,null,null,""]
[null,"Empfohlene – nicht verbindliche – Bewertungsskala","Stellen Sie Nachweise bereit (Erklärungen etc.)",null,null,null,""]
[null,null,null,null,null,{"$f":"IF(E251=1,TRUE,FALSE)","v":false},""]
[null,null,null,null,null,{"$f":"IF(E251=2,TRUE,FALSE)","v":false},""]
[null,null,null,null,null,{"$f":"IF(E251=3,TRUE,FALSE)","v":false},""]
[null,null,null,null,null,{"$f":"IF(E251=4,TRUE,FALSE)","v":false},""]
[null,null,null,null,null,{"$f":"IF(E251=5,TRUE,FALSE)","v":false},""]
[null,null,null,null,null,{"$f":"IF(E251=6,TRUE,FALSE)","v":false},""]
[null,"Maßnahmen um maximale Resilienz zu erreichen","Verantwortliche Stelle","Zeitraum",null,null,""]
[null,null,null,null,null,null,""]
[null,null,null,null,null,null,""]
[null,"8.6 - Kommunikation",null,null,null,null,"8.6"]
[null,null,null,null,null,null,""]
[null,"8.6.1 - Dauer des zu erwartenden Versorgungs-ausfalls",null,null,null,null,"8.6.1"]
[null,"Frage / Beurteilungsbereich","Kommentare",null,null,null,""]
[null,null,null,null,null,null,""]
[null,"Empfohlene – nicht verbindliche – Bewertungsskala","Stellen Sie Nachweise bereit (Erklärungen etc.)",null,null,null,""]
[null,null,null,null,null,{"$f":"IF(E266=1,TRUE,FALSE)","v":false},""]
[null,null,null,null,null,{"$f":"IF(E266=2,TRUE,FALSE)","v":false},""]
[null,null,null,null,null,{"$f":"IF(E266=3,TRUE,FALSE)","v":false},""]
[null,null,null,null,null,{"$f":"IF(E266=4,TRUE,FALSE)","v":false},""]
[null,null,null,null,null,{"$f":"IF(E266=5,TRUE,FALSE)","v":false},""]
[null,null,null,null,null,{"$f":"IF(E266=6,TRUE,FALSE)","v":false},""]
[null,"Maßnahmen um maximale Resilienz zu erreichen","Verantwortliche Stelle","Zeitraum",null,null,""]
[null,null,null,null,null,null,""]
[null,null,null,null,null,null,""]
[null,"8.6.2 - Dauer des zu erwartenden Versorgungsaus-falls für kritische Einrichtungen, \ndie durch einen Ausfall der Kommunikations-systeme gefährdet sind",null,null,null,null,"8.6.2"]
[null,"Frage / Beurteilungsbereich","Kommentare",null,null,null,""]
[null,null,null,null,null,null,""]
[null,"Empfohlene – nicht verbindliche – Bewertungsskala","Stellen Sie Nachweise bereit (Erklärungen etc.)",null,null,null,""]
[null,null,null,null,null,{"$f":"IF(E279=1,TRUE,FALSE)","v":false},""]
[null,null,null,null,null,{"$f":"IF(E279=2,TRUE,FALSE)","v":false},""]
[null,null,null,null,null,{"$f":"IF(E279=3,TRUE,FALSE)","v":false},""]
[null,null,null,null,null,{"$f":"IF(E279=4,TRUE,FALSE)","v":false},""]
[null,null,null,null,null,{"$f":"IF(E279=5,TRUE,FALSE)","v":false},""]
[null,null,null,null,null,{"$f":"IF(E279=6,TRUE,FALSE)","v":false},""]
[null,"Maßnahmen um maximale Resilienz zu erreichen","Verantwortliche Stelle","Zeitraum",null,null,""]
[null,null,null,null,null,null,""]
[null,null,null,null,null,null,""]
[null,"8.6.3 - Kosten der Wieder-herstellung",null,null,null,null,"8.6.3"]
[null,"Frage / Beurteilungsbereich","Kommentare",null,null,null,""]
[null,null,null,null,null,null,""]
[null,"Empfohlene – nicht verbindliche – Bewertungsskala","Stellen Sie Nachweise bereit (Erklärungen etc.)",null,null,null,""]
[null,null,null,null,null,{"$f":"IF(E292=1,TRUE,FALSE)","v":false},""]
[null,null,null,null,null,{"$f":"IF(E292=2,TRUE,FALSE)","v":false},""]
[null,null,null,null,null,{"$f":"IF(E292=3,TRUE,FALSE)","v":false},""]
[null,null,null,null,null,{"$f":"IF(E292=4,TRUE,FALSE)","v":false},""]
[null,null,null,null,null,{"$f":"IF(E292=5,TRUE,FALSE)","v":false},""]
[null,null,null,null,null,{"$f":"IF(E292=6,TRUE,FALSE)","v":false},""]
[null,"Maßnahmen um maximale Resilienz zu erreichen","Verantwortliche Stelle","Zeitraum",null,null,""]
[null,null,null,null,null,null,""]
[null,null,null,null,null,null,""]
[null,"8.7 - Gesundheitswesen",null,null,null,null,"8.7"]
[null,null,null,null,null,null,""]
[null,"8.7.1 -Strukturelle Sicherheit und Resilienz gegenüber Katastrophen von Einrichtungen des Gesundheits-wesens und Notfallein-richtungen\n(Personal/Erst-helfende - siehe Grundprinzip 9)",null,null,null,null,"8.7.1"]
[null,"Frage / Beurteilungsbereich","Kommentare",null,null,null,""]
[null,null,null,null,null,null,""]
[null,"Empfohlene – nicht verbindliche – Bewertungsskala","Stellen Sie Nachweise bereit (Erklärungen etc.)",null,null,null,""]
[null,null,null,null,null,{"$f":"IF(E307=1,TRUE,FALSE)","v":false},""]
[null,null,null,null,null,{"$f":"IF(E307=2,TRUE,FALSE)","v":false},""]
[null,null,null,null,null,{"$f":"IF(E307=3,TRUE,FALSE)","v":false},""]
[null,null,null,null,null,{"$f":"IF(E307=4,TRUE,FALSE)","v":false},""]
[null,null,null,null,null,{"$f":"IF(E307=5,TRUE,FALSE)","v":false},""]
[null,null,null,null,null,{"$f":"IF(E307=6,TRUE,FALSE)","v":false},""]
[null,"Maßnahmen um maximale Resilienz zu erreichen","Verantwortliche Stelle","Zeitraum",null,null,""]
[null,null,null,null,null,null,""]
[null,null,null,null,null,null,""]
[null,"8.7.1.1  -Strukturelle Sicherheit und Resilienz gegenüber Katastrophen von Einrichtungen des Gesundheits-wesens und Notfallein-richtungen",null,null,null,null,"8.7.1.1"]
[null,"Frage / Beurteilungsbereich","Kommentare",null,null,null,""]
[null,null,null,null,null,null,""]
[null,"Empfohlene – nicht verbindliche – Bewertungsskala","Stellen Sie Nachweise bereit (Erklärungen etc.)",null,null,null,""]
[null,null,null,null,null,{"$f":"IF(E320=1,TRUE,FALSE)","v":false},""]
[null,null,null,null,null,{"$f":"IF(E320=2,TRUE,FALSE)","v":false},""]
[null,null,null,null,null,{"$f":"IF(E320=3,TRUE,FALSE)","v":false},""]
[null,null,null,null,null,{"$f":"IF(E320=4,TRUE,FALSE)","v":false},""]
[null,null,null,null,null,{"$f":"IF(E320=5,TRUE,FALSE)","v":false},""]
[null,null,null,null,null,{"$f":"IF(E320=6,TRUE,FALSE)","v":false},""]
[null,"Maßnahmen um maximale Resilienz zu erreichen","Verantwortliche Stelle","Zeitraum",null,null,""]
[null,null,null,null,null,null,""]
[null,null,null,null,null,null,""]
[null,"8.7.2 - Gesundheits-akten und -daten",null,null,null,null,"8.7.2"]
[null,"Frage / Beurteilungsbereich","Kommentare",null,null,null,""]
[null,null,null,null,null,null,""]
[null,"Empfohlene – nicht verbindliche – Bewertungsskala","Stellen Sie Nachweise bereit (Erklärungen etc.)",null,null,null,""]
[null,null,null,null,null,{"$f":"IF(E333=1,TRUE,FALSE)","v":false},""]
[null,null,null,null,null,{"$f":"IF(E333=2,TRUE,FALSE)","v":false},""]
[null,null,null,null,null,{"$f":"IF(E333=3,TRUE,FALSE)","v":false},""]
[null,null,null,null,null,{"$f":"IF(E333=4,TRUE,FALSE)","v":false},""]
[null,null,null,null,null,{"$f":"IF(E333=5,TRUE,FALSE)","v":false},""]
[null,null,null,null,null,{"$f":"IF(E333=6,TRUE,FALSE)","v":false},""]
[null,"Maßnahmen um maximale Resilienz zu erreichen","Verantwortliche Stelle","Zeitraum",null,null,""]
[null,null,null,null,null,null,""]
[null,null,null,null,null,null,""]
[null,"8.7.3 - Verfügbarkeit von medizinischer Notfall-versorgung einschließlich Einrichtungen und medizinischer Notversorgung für akute Bedürfnisse",null,null,null,null,"8.7.3"]
[null,"Frage / Beurteilungsbereich","Kommentare",null,null,null,""]
[null,null,null,null,null,null,""]
[null,"Empfohlene – nicht verbindliche – Bewertungsskala","Stellen Sie Nachweise bereit (Erklärungen etc.)",null,null,null,""]
[null,null,null,null,null,{"$f":"IF(E346=1,TRUE,FALSE)","v":false},""]
[null,null,null,null,null,{"$f":"IF(E346=2,TRUE,FALSE)","v":false},""]
[null,null,null,null,null,{"$f":"IF(E346=3,TRUE,FALSE)","v":false},""]
[null,null,null,null,null,{"$f":"IF(E346=4,TRUE,FALSE)","v":false},""]
[null,null,null,null,null,{"$f":"IF(E346=5,TRUE,FALSE)","v":false},""]
[null,null,null,null,null,{"$f":"IF(E346=6,TRUE,FALSE)","v":false},""]
[null,"Maßnahmen um maximale Resilienz zu erreichen","Verantwortliche Stelle","Zeitraum",null,null,""]
[null,null,null,null,null,null,""]
[null,null,null,null,null,null,""]
[null,"8.8 - Bildung",null,null,null,null,"8.8"]
[null,null,null,null,null,null,""]
[null,"8.8.1 - Strukturelle Sicherheit von Bildungs-einrichtungen",null,null,null,null,"8.8.1"]
[null,"Frage / Beurteilungsbereich","Kommentare",null,null,null,""]
[null,null,null,null,null,null,""]
[null,"Empfohlene – nicht verbindliche – Bewertungsskala","Stellen Sie Nachweise bereit (Erklärungen etc.)",null,null,null,""]
[null,null,null,null,null,{"$f":"IF(E361=1,TRUE,FALSE)","v":false},""]
[null,null,null,null,null,{"$f":"IF(E361=2,TRUE,FALSE)","v":false},""]
[null,null,null,null,null,{"$f":"IF(E361=3,TRUE,FALSE)","v":false},""]
[null,null,null,null,null,{"$f":"IF(E361=4,TRUE,FALSE)","v":false},""]
[null,null,null,null,null,{"$f":"IF(E361=5,TRUE,FALSE)","v":false},""]
[null,null,null,null,null,{"$f":"IF(E361=6,TRUE,FALSE)","v":false},""]
[null,"Maßnahmen um maximale Resilienz zu erreichen","Verantwortliche Stelle","Zeitraum",null,null,""]
[null,null,null,null,null,null,""]
[null,null,null,null,null,null,""]
[null,"8.8.2 - Unterrichtsausfall",null,null,null,null,"8.8.2"]
[null,"Frage / Beurteilungsbereich","Kommentare",null,null,null,""]
[null,null,null,null,null,null,""]
[null,"Empfohlene – nicht verbindliche – Bewertungsskala","Stellen Sie Nachweise bereit (Erklärungen etc.)",null,null,null,""]
[null,null,null,null,null,{"$f":"IF(E374=1,TRUE,FALSE)","v":false},""]
[null,null,null,null,null,{"$f":"IF(E374=2,TRUE,FALSE)","v":false},""]
[null,null,null,null,null,{"$f":"IF(E374=3,TRUE,FALSE)","v":false},""]
[null,null,null,null,null,{"$f":"IF(E374=4,TRUE,FALSE)","v":false},""]
[null,null,null,null,null,{"$f":"IF(E374=5,TRUE,FALSE)","v":false},""]
[null,null,null,null,null,{"$f":"IF(E374=6,TRUE,FALSE)","v":false},""]
[null,"Maßnahmen um maximale Resilienz zu erreichen","Verantwortliche Stelle","Zeitraum",null,null,""]
[null,null,null,null,null,null,""]
[null,null,null,null,null,null,""]
[null,"8.8.3 - Bildungsdaten ",null,null,null,null,"8.8.3"]
[null,"Frage / Beurteilungsbereich","Kommentare",null,null,null,""]
[null,null,null,null,null,null,""]
[null,"Empfohlene – nicht verbindliche – Bewertungsskala","Stellen Sie Nachweise bereit (Erklärungen etc.)",null,null,null,""]
[null,null,null,null,null,{"$f":"IF(E387=1,TRUE,FALSE)","v":false},""]
[null,null,null,null,null,{"$f":"IF(E387=2,TRUE,FALSE)","v":false},""]
[null,null,null,null,null,{"$f":"IF(E387=3,TRUE,FALSE)","v":false},""]
[null,null,null,null,null,{"$f":"IF(E387=4,TRUE,FALSE)","v":false},""]
[null,null,null,null,null,{"$f":"IF(E387=5,TRUE,FALSE)","v":false},""]
[null,null,null,null,null,{"$f":"IF(E387=6,TRUE,FALSE)","v":false},""]
[null,"Maßnahmen um maximale Resilienz zu erreichen","Verantwortliche Stelle","Zeitraum",null,null,""]
[null,null,null,null,null,null,""]
[null,null,null,null,null,null,""]
[null,"8.9 - Gefängnisse (Hinweis: Staat und Verwaltung und andere Erstversorgungseinrichtungen werden in Grundprinzip 9 behandelt)",null,null,null,null,"8.9"]
[null,null,null,null,null,null,""]
[null,"8.9.1 - Resilienz gegenüber Katastrophen des Strafvollzugs-systems",null,null,null,null,"8.9.1"]
[null,"Frage / Beurteilungsbereich","Kommentare",null,null,null,""]
[null,null,null,null,null,null,""]
[null,"Empfohlene – nicht verbindliche – Bewertungsskala","Stellen Sie Nachweise bereit (Erklärungen etc.)",null,null,null,""]
[null,null,null,null,null,{"$f":"IF(E402=1,TRUE,FALSE)","v":false},""]
[null,null,null,null,null,{"$f":"IF(E402=2,TRUE,FALSE)","v":false},""]
[null,null,null,null,null,{"$f":"IF(E402=3,TRUE,FALSE)","v":false},""]
[null,null,null,null,null,{"$f":"IF(E402=4,TRUE,FALSE)","v":false},""]
[null,null,null,null,null,{"$f":"IF(E402=5,TRUE,FALSE)","v":false},""]
[null,null,null,null,null,{"$f":"IF(E402=6,TRUE,FALSE)","v":false},""]
[null,"Maßnahmen um maximale Resilienz zu erreichen","Verantwortliche Stelle","Zeitraum",null,null,""]
[null,null,null,null,null,null,""]
[null,null,null,null,null,null,""]
[null,"8.10 - Administrative operations",null,null,null,null,"8.10"]
[null,null,null,null,null,null,""]
[null,"8.10.1 -Sicherstellung der Kontinuität aller kritischen Verwaltungs-funktionen",null,null,null,null,"8.10.1"]
[null,"Frage / Beurteilungsbereich","Kommentare",null,null,null,""]
[null,null,null,null,null,null,""]
[null,"Empfohlene – nicht verbindliche – Bewertungsskala","Stellen Sie Nachweise bereit (Erklärungen etc.)",null,null,null,""]
[null,null,null,null,null,{"$f":"IF(E417=1,TRUE,FALSE)","v":false},""]
[null,null,null,null,null,{"$f":"IF(E417=2,TRUE,FALSE)","v":false},""]
[null,null,null,null,null,{"$f":"IF(E417=3,TRUE,FALSE)","v":false},""]
[null,null,null,null,null,{"$f":"IF(E417=4,TRUE,FALSE)","v":false},""]
[null,null,null,null,null,{"$f":"IF(E417=5,TRUE,FALSE)","v":false},""]
[null,null,null,null,null,{"$f":"IF(E417=6,TRUE,FALSE)","v":false},""]
[null,"Maßnahmen um maximale Resilienz zu erreichen","Verantwortliche Stelle","Zeitraum",null,null,""]
[null,null,null,null,null,null,""]
[null,null,null,null,null,null,""]
[null,"8.11 - Computersysteme und -daten",null,null,null,null,"8.11"]
[null,null,null,null,null,null,""]
[null,"8.11.1 - Sicherstellung der Kontinuität von Computer-systemen und -daten, die für die Aufrechterhaltung der Staats- und Regierungs-funktionen entscheidend sind",null,null,null,null,"8.11.1"]
[null,"Frage / Beurteilungsbereich","Kommentare",null,null,null,""]
[null,null,null,null,null,null,""]
[null,"Empfohlene – nicht verbindliche – Bewertungsskala","Stellen Sie Nachweise bereit (Erklärungen etc.)",null,null,null,""]
[null,null,null,null,null,{"$f":"IF(E432=1,TRUE,FALSE)","v":false},""]
[null,null,null,null,null,{"$f":"IF(E432=2,TRUE,FALSE)","v":false},""]
[null,null,null,null,null,{"$f":"IF(E432=3,TRUE,FALSE)","v":false},""]
[null,null,null,null,null,{"$f":"IF(E432=4,TRUE,FALSE)","v":false},""]
[null,null,null,null,null,{"$f":"IF(E432=5,TRUE,FALSE)","v":false},""]
[null,null,null,null,null,{"$f":"IF(E432=6,TRUE,FALSE)","v":false},""]
[null,"Maßnahmen um maximale Resilienz zu erreichen","Verantwortliche Stelle","Zeitraum",null,null,""]
[null,null,null,null,null,null,""]
[null,null,null,null,null,null,""]
[null,"8.11.2 - Sicherstellung der Kontinuität von Computersystemen und -daten, die für eine der oben genannten Infrastrukturen kritisch sind",null,null,null,null,"8.11.2"]
[null,"Frage / Beurteilungsbereich","Kommentare",null,null,null,""]
[null,null,null,null,null,null,""]
[null,"Empfohlene – nicht verbindliche – Bewertungsskala","Stellen Sie Nachweise bereit (Erklärungen etc.)",null,null,null,""]
[null,null,null,null,null,{"$f":"IF(E445=1,TRUE,FALSE)","v":false},""]
[null,null,null,null,null,{"$f":"IF(E445=2,TRUE,FALSE)","v":false},""]
[null,null,null,null,null,{"$f":"IF(E445=3,TRUE,FALSE)","v":false},""]
[null,null,null,null,null,{"$f":"IF(E445=4,TRUE,FALSE)","v":false},""]
[null,null,null,null,null,{"$f":"IF(E445=5,TRUE,FALSE)","v":false},""]
[null,null,null,null,null,{"$f":"IF(E445=6,TRUE,FALSE)","v":false},""]
[null,"Maßnahmen um maximale Resilienz zu erreichen","Verantwortliche Stelle","Zeitraum",null,null,""]
[null,null,null,null,null,null,""]
[null,null,null,null,null,null,""]
[null,null,null,null,null,null,""]
[null,null,null,null,null,null,""]
[null,null,null,null,null,null,""]
[null,null,null,null,null,null,""]
[null,null,null,null,null,null,""]
[null,null,null,null,null,null,""]
[null,null,null,null,null,null,""]
[null,null,null,null,null,null,""]
[null,null,null,null,null,null,""]
[null,null,null,null,null,null,""]
[null,null,null,null,null,null,""]
[null,null,null,null,null,null,""]
[null,null,null,null,null,null,""]
[null,null,null,null,null,null,""]
[null,null,null,null,null,null,""]
[null,null,null,null,null,null,""]
[null,null,null,null,null,null,""]
[null,null,null,null,null,null,""]
[null,null,null,null,null,null,""]
[null,null,null,null,null,null,""]
[null,null,null,null,null,null,""]
[null,null,null,null,null,null,""]
[null,null,null,null,null,null,""]
[null,null,null,null,null,null,""]
[null,null,null,null,null,null,""]
[null,null,null,null,null,null,""]
[null,null,null,null,null,null,""]
[null,null,null,null,null,null,""]
[null,null,null,null,null,null,""]
[null,null,null,null,null,null,""]
[null,null,null,null,null,null,""]
[null,null,null,null,null,null,""]
[null,null,null,null,null,null,""]
[null,null,null,null,null,null,""]
[null,null,null,null,null,null,""]
[null,null,null,null,null,null,""]
[null,null,null,null,null,null,""]
[null,null,null,null,null,null,""]
[null,null,null,null,null,null,""]
[null,null,null,null,null,null,""]
[null,null,null,null,null,null,""]
[null,null,null,null,null,null,""]
[null,null,null,null,null,null,""]
[null,null,null,null,null,null,""]
[null,null,null,null,null,null,""]
[null,null,null,null,null,null,""]
[null,null,null,null,null,null,""]
[null,null,null,null,null,null,""]
[null,null,null,null,null,null,""]
[null,null,null,null,null,null,""]
[null,null,null,null,null,null,""]
[null,null,null,null,null,null,""]
[null,null,null,null,null,null,""]
[null,null,null,null,null,null,""]
[null,null,null,null,null,null,""]
[null,null,null,null,null,null,""]
[null,null,null,null,null,null,""]
[null,null,null,null,null,null,""]
[null,null,null,null,null,null,""]
[null,null,null,null,null,null,""]
[null,null,null,null,null,null,""]
[null,null,null,null,null,null,""]
[null,null,null,null,null,null,""]
[null,null,null,null,null,null,""]
[null,null,null,null,null,null,""]
[null,null,null,null,null,null,""]
[null,null,null,null,null,null,""]
[null,null,null,null,null,null,""]
[null,null,null,null,null,null,""]
[null,null,null,null,null,null,""]
[null,null,null,null,null,null,""]
[null,null,null,null,null,null,""]
[null,null,null,null,null,null,""]
[null,null,null,null,null,null,""]
[null,null,null,null,null,null,""]
[null,null,null,null,null,null,""]
[null,null,null,null,null,null,""]
[null,null,null,null,null,null,""]
[null,null,null,null,null,null,""]
[null,null,null,null,null,null,""]
[null,null,null,null,null,null,""]
[null,null,null,null,null,null,""]
[null,null,null,null,null,null,""]
[null,null,null,null,null,null,""]
[null,null,null,null,null,null,""]
[null,null,null,null,null,null,""]
[null,null,null,null,null,null,""]
[null,null,null,null,null,null,""]
[null,null,null,null,null,null,""]
[null,null,null,null,null,null,""]
[null,null,null,null,null,null,""]
[null,null,null,null,null,null,""]
[null,null,null,null,null,null,""]
[null,null,null,null,null,null,""]
[null,null,null,null,null,null,""]
[null,null,null,null,null,null,""]
[null,null,null,null,null,null,""]
[null,null,null,null,null,null,""]
[null,null,null,null,null,null,""]
[null,null,null,null,null,null,""]
[null,null,null,null,null,null,""]
[null,null,null,null,null,null,""]
[null,null,null,null,null,null,""]
[null,null,null,null,null,null,""]
[null,null,null,null,null,null,""]
[null,null,null,null,null,null,""]
[null,null,null,null,null,null,""]
[null,null,null,null,null,null,""]
[null,null,null,null,null,null,""]
[null,null,null,null,null,null,""]
[null,null,null,null,null,null,""]
[null,null,null,null,null,null,""]
[null,null,null,null,null,null,""]
[null,null,null,null,null,null,""]
[null,null,null,null,null,null,""]
[null,null,null,null,null,null,""]
[null,null,null,null,null,null,""]
[null,null,null,null,null,null,""]
[null,null,null,null,null,null,""]
[null,null,null,null,null,null,""]
[null,null,null,null,null,null,""]
[null,null,null,null,null,null,""]
[null,null,null,null,null,null,""]
[null,null,null,null,null,null,""]
[null,null,null,null,null,null,""]
[null,null,null,null,null,null,""]
[null,null,null,null,null,null,""]
[null,null,null,null,null,null,""]
[null,null,null,null,null,null,""]
[null,null,null,null,null,null,""]
[null,null,null,null,null,null,""]
[null,null,null,null,null,null,""]
[null,null,null,null,null,null,""]
[null,null,null,null,null,null,""]
[null,null,null,null,null,null,""]
[null,null,null,null,null,null,""]
[null,null,null,null,null,null,""]
[null,null,null,null,null,null,""]
[null,null,null,null,null,null,""]
[null,null,null,null,null,null,""]
[null,null,null,null,null,null,""]
[null,null,null,null,null,null,""]
[null,null,null,null,null,null,""]
[null,null,null,null,null,null,""]
[null,null,null,null,null,null,""]
[null,null,null,null,null,null,""]
[null,null,null,null,null,null,""]
[null,null,null,null,null,null,""]
[null,null,null,null,null,null,""]
[null,null,null,null,null,null,""]
[null,null,null,null,null,null,""]
[null,null,null,null,null,null,""]
[null,null,null,null,null,null,""]
[null,null,null,null,null,null,""]
[null,null,null,null,null,null,""]
[null,null,null,null,null,null,""]
[null,null,null,null,null,null,""]
[null,null,null,null,null,null,""]
[null,null,null,null,null,null,""]
[null,null,null,null,null,null,""]
[null,null,null,null,null,null,""]
[null,null,null,null,null,null,""]
[null,null,null,null,null,null,""]
[null,null,null,null,null,null,""]
[null,null,null,null,null,null,""]
[null,null,null,null,null,null,""]
[null,null,null,null,null,null,""]
[null,null,null,null,null,null,""]
[null,null,null,null,null,null,""]
[null,null,null,null,null,null,""]
[null,null,null,null,null,null,""]
[null,null,null,null,null,null,""]
[null,null,null,null,null,null,""]
[null,null,null,null,null,null,""]
[null,null,null,null,null,null,""]
[null,null,null,null,null,null,""]
[null,null,null,null,null,null,""]
[null,null,null,null,null,null,""]
[null,null,null,null,null,null,""]
[null,null,null,null,null,null,""]
[null,null,null,null,null,null,""]
[null,null,null,null,null,null,""]
[null,null,null,null,null,null,""]
[null,null,null,null,null,null,""]
[null,null,null,null,null,null,""]
[null,null,null,null,null,null,""]
[null,null,null,null,null,null,""]
[null,null,null,null,null,null,""]
[null,null,null,null,null,null,""]
[null,null,null,null,null,null,""]
[null,null,null,null,null,null,""]
[null,null,null,null,null,null,""]
[null,null,null,null,null,null,""]
[null,null,null,null,null,null,""]
[null,null,null,null,null,null,""]
[null,null,null,null,null,null,""]
[null,null,null,null,null,null,""]
[null,null,null,null,null,null,""]
[null,null,null,null,null,null,""]
[null,null,null,null,null,null,""]
[null,null,null,null,null,null,""]
[null,null,null,null,null,null,""]
[null,null,null,null,null,null,""]
[null,null,null,null,null,null,""]
[null,null,null,null,null,null,""]
[null,null,null,null,null,null,""]
[null,null,null,null,null,null,""]
[null,null,null,null,null,null,""]
[null,null,null,null,null,null,""]
[null,null,null,null,null,null,""]
[null,null,null,null,null,null,""]

{"sheet":"E09","index":11,"n_rows":237,"n_cols":7,"rows_kept":237,"cut":false,"hidden":false,"merged":[[4,1,4,3],[5,2,5,3],[6,2,6,3],[7,2,7,3],[8,2,13,3],[17,1,17,3],[18,2,18,3],[19,2,19,3],[20,2,20,3],[21,2,26,3],[32,1,32,3],[47,1,47,3],[48,2,48,3],[49,2,49,3],[50,2,50,3],[75,1,75,3],[33,2,33,3],[34,2,34,3],[51,2,56,3],[36,2,41,3],[35,2,35,3],[64,2,69,3],[63,2,63,3],[62,2,62,3],[61,2,61,3],[60,1,60,3],[76,2,76,3],[77,2,77,3],[78,2,78,3],[79,2,84,3],[92,2,97,3],[91,2,91,3],[90,2,90,3],[89,2,89,3],[88,1,88,3],[103,1,103,3],[104,2,104,3],[105,2,105,3],[106,2,106,3],[107,2,112,3],[120,2,125,3],[119,2,119,3],[118,2,118,3],[117,2,117,3],[116,1,116,3],[133,2,138,3],[132,2,132,3],[131,2,131,3],[130,2,130,3],[129,1,129,3],[142,1,142,3],[143,2,143,3],[144,2,144,3],[145,2,145,3],[146,2,151,3],[159,2,164,3],[158,2,158,3],[157,2,157,3],[156,2,156,3],[155,1,155,3],[170,1,170,3],[171,2,171,3],[172,2,172,3],[173,2,173,3],[174,2,179,3],[187,2,192,3],[186,2,186,3],[185,2,185,3],[184,2,184,3],[183,1,183,3],[200,2,205,3],[199,2,199,3],[198,2,198,3],[197,2,197,3],[196,1,196,3],[211,1,211,3],[212,2,212,3],[213,2,213,3],[214,2,214,3],[215,2,220,3],[228,2,233,3],[227,2,227,3],[226,2,226,3],[225,2,225,3],[224,1,224,3]]}
[]
[null,null,null,null,null,null,""]
[null,"9.1 - Frühwarnung",null,null,null,null,"9.1"]
[null,null,null,null,null,null,""]
[null,"9.1.1 - Vorhandensein und Wirksamkeit von Frühwarnsystemen ",null,null,null,null,"9.1.1"]
[null,"Frage / Beurteilungsbereich","Kommentare",null,null,null,""]
[null,null,null,null,null,null,""]
[null,"Empfohlene – nicht verbindliche – Bewertungsskala","Stellen Sie Nachweise bereit (Erklärungen etc.)",null,null,null,""]
[null,null,null,null,null,{"$f":"IF(E9=1,TRUE,FALSE)","v":false},""]
[null,null,null,null,null,{"$f":"IF(E9=2,TRUE,FALSE)","v":false},""]
[null,null,null,null,null,{"$f":"IF(E9=3,TRUE,FALSE)","v":false},""]
[null,null,null,null,null,{"$f":"IF(E9=4,TRUE,FALSE)","v":false},""]
[null,null,null,null,null,{"$f":"IF(E9=5,TRUE,FALSE)","v":false},""]
[null,null,null,null,null,{"$f":"IF(E9=6,TRUE,FALSE)","v":false},""]
[null,"Maßnahmen um maximale Resilienz zu erreichen","Verantwortliche Stelle","Zeitraum",null,null,""]
[null,null,null,null,null,null,""]
[null,null,null,null,null,null,""]
[null,"9.1.1.1 - Reichweite der Warnung",null,null,null,null,"9.1.1.1"]
[null,"Frage / Beurteilungsbereich","Kommentare",null,null,null,""]
[null,null,null,null,null,null,""]
[null,"Empfohlene – nicht verbindliche – Bewertungsskala","Stellen Sie Nachweise bereit (Erklärungen etc.)",null,null,null,""]
[null,null,null,null,null,{"$f":"IF(E22=1,TRUE,FALSE)","v":false},""]
[null,null,null,null,null,{"$f":"IF(E22=2,TRUE,FALSE)","v":false},""]
[null,null,null,null,null,{"$f":"IF(E22=3,TRUE,FALSE)","v":false},""]
[null,null,null,null,null,{"$f":"IF(E22=4,TRUE,FALSE)","v":false},""]
[null,null,null,null,null,{"$f":"IF(E22=5,TRUE,FALSE)","v":false},""]
[null,null,null,null,null,{"$f":"IF(E22=6,TRUE,FALSE)","v":false},""]
[null,"Maßnahmen um maximale Resilienz zu erreichen","Verantwortliche Stelle","Zeitraum",null,null,""]
[null,null,null,null,null,null,""]
[null,null,null,null,null,null,""]
[null,"9.2 - Reaktionspläne für Ereignisse",null,null,null,null,"9.2"]
[null,null,null,null,null,null,""]
[null,"9.2.1 - Vorhandensein von Notfallplänen, die professionelle Einsatzkräfte und kommunale Organisationen einbeziehen\n(Für Maßnahmen nach dem Ereignis - siehe Grundprinzip 10)",null,null,null,null,"9.2.1"]
[null,"Frage / Beurteilungsbereich","Kommentare",null,null,null,""]
[null,null,null,null,null,null,""]
[null,"Empfohlene – nicht verbindliche – Bewertungsskala","Stellen Sie Nachweise bereit (Erklärungen etc.)",null,null,null,""]
[null,null,null,null,null,{"$f":"IF(E37=1,TRUE,FALSE)","v":false},""]
[null,null,null,null,null,{"$f":"IF(E37=2,TRUE,FALSE)","v":false},""]
[null,null,null,null,null,{"$f":"IF(E37=3,TRUE,FALSE)","v":false},""]
[null,null,null,null,null,{"$f":"IF(E37=4,TRUE,FALSE)","v":false},""]
[null,null,null,null,null,{"$f":"IF(E37=5,TRUE,FALSE)","v":false},""]
[null,null,null,null,null,{"$f":"IF(E37=6,TRUE,FALSE)","v":false},""]
[null,"Maßnahmen um maximale Resilienz zu erreichen","Verantwortliche Stelle","Zeitraum",null,null,""]
[null,null,null,null,null,null,""]
[null,null,null,null,null,null,""]
[null,"9.3 - Personalbedarf/Bedarf an Einsatzkräften",null,null,null,null,"9.3"]
[null,null,null,null,null,null,""]
[null,"9.3.1 - Zusätzliche Kapazität der Polizei zur Unterstützung der Ersthelfenden",null,null,null,null,"9.3.1"]
[null,"Frage / Beurteilungsbereich","Kommentare",null,null,null,""]
[null,null,null,null,null,null,""]
[null,"Empfohlene – nicht verbindliche – Bewertungsskala","Stellen Sie Nachweise bereit (Erklärungen etc.)",null,null,null,""]
[null,null,null,null,null,{"$f":"IF(E52=1,TRUE,FALSE)","v":false},""]
[null,null,null,null,null,{"$f":"IF(E52=2,TRUE,FALSE)","v":false},""]
[null,null,null,null,null,{"$f":"IF(E52=3,TRUE,FALSE)","v":false},""]
[null,null,null,null,null,{"$f":"IF(E52=4,TRUE,FALSE)","v":false},""]
[null,null,null,null,null,{"$f":"IF(E52=5,TRUE,FALSE)","v":false},""]
[null,null,null,null,null,{"$f":"IF(E52=6,TRUE,FALSE)","v":false},""]
[null,"Maßnahmen um maximale Resilienz zu erreichen","Verantwortliche Stelle","Zeitraum",null,null,""]
[null,null,null,null,null,null,""]
[null,null,null,null,null,null,""]
[null,"9.3.2 - Definition des Bedarfs an weiteren Ersthelfenden und anderem Personal sowie deren Verfügbarkeit",null,null,null,null,"9.3.2"]
[null,"Frage / Beurteilungsbereich","Kommentare",null,null,null,""]
[null,null,null,null,null,null,""]
[null,"Empfohlene – nicht verbindliche – Bewertungsskala","Stellen Sie Nachweise bereit (Erklärungen etc.)",null,null,null,""]
[null,null,null,null,null,{"$f":"IF(E65=1,TRUE,FALSE)","v":false},""]
[null,null,null,null,null,{"$f":"IF(E65=2,TRUE,FALSE)","v":false},""]
[null,null,null,null,null,{"$f":"IF(E65=3,TRUE,FALSE)","v":false},""]
[null,null,null,null,null,{"$f":"IF(E65=4,TRUE,FALSE)","v":false},""]
[null,null,null,null,null,{"$f":"IF(E65=5,TRUE,FALSE)","v":false},""]
[null,null,null,null,null,{"$f":"IF(E65=6,TRUE,FALSE)","v":false},""]
[null,"Maßnahmen um maximale Resilienz zu erreichen","Verantwortliche Stelle","Zeitraum",null,null,""]
[null,null,null,null,null,null,""]
[null,null,null,null,null,null,""]
[null,"9.4 - Bedarf an Ausrüstung und Hilfsgütern",null,null,null,null,"9.4"]
[null,null,null,null,null,null,""]
[null,"9.4.1 - Festlegung des Ausrüstungs- und Versorgungsbedarfs sowie der Verfügbarkeit von Ausrüstung",null,null,null,null,"9.4.1"]
[null,"Frage / Beurteilungsbereich","Kommentare",null,null,null,""]
[null,null,null,null,null,null,""]
[null,"Empfohlene – nicht verbindliche – Bewertungsskala","Stellen Sie Nachweise bereit (Erklärungen etc.)",null,null,null,""]
[null,null,null,null,null,{"$f":"IF(E80=1,TRUE,FALSE)","v":false},""]
[null,null,null,null,null,{"$f":"IF(E80=2,TRUE,FALSE)","v":false},""]
[null,null,null,null,null,{"$f":"IF(E80=3,TRUE,FALSE)","v":false},""]
[null,null,null,null,null,{"$f":"IF(E80=4,TRUE,FALSE)","v":false},""]
[null,null,null,null,null,{"$f":"IF(E80=5,TRUE,FALSE)","v":false},""]
[null,null,null,null,null,{"$f":"IF(E80=6,TRUE,FALSE)","v":false},""]
[null,"Maßnahmen um maximale Resilienz zu erreichen","Verantwortliche Stelle","Zeitraum",null,null,""]
[null,null,null,null,null,null,""]
[null,null,null,null,null,null,""]
[null,"9.4.1.1 - Festlegung des Ausrüstungs- und Versorgungsbedarfs sowie der Verfügbarkeit von Ausrüstung",null,null,null,null,"9.4.1.1"]
[null,"Frage / Beurteilungsbereich","Kommentare",null,null,null,""]
[null,null,null,null,null,null,""]
[null,"Empfohlene – nicht verbindliche – Bewertungsskala","Stellen Sie Nachweise bereit (Erklärungen etc.)",null,null,null,""]
[null,null,null,null,null,{"$f":"IF(E93=1,TRUE,FALSE)","v":false},""]
[null,null,null,null,null,{"$f":"IF(E93=2,TRUE,FALSE)","v":false},""]
[null,null,null,null,null,{"$f":"IF(E93=3,TRUE,FALSE)","v":false},""]
[null,null,null,null,null,{"$f":"IF(E93=4,TRUE,FALSE)","v":false},""]
[null,null,null,null,null,{"$f":"IF(E93=5,TRUE,FALSE)","v":false},""]
[null,null,null,null,null,{"$f":"IF(E93=6,TRUE,FALSE)","v":false},""]
[null,"Maßnahmen um maximale Resilienz zu erreichen","Verantwortliche Stelle","Zeitraum",null,null,""]
[null,null,null,null,null,null,""]
[null,null,null,null,null,null,""]
[null,"9.5 - Versorgung mit Nahrungsmitteln, Unterkünften, Grundversorgungsmitteln und Brennstoffen",null,null,null,null,"9.5"]
[null,null,null,null,null,null,""]
[null,"9.5.1 -Prognostizierte Aufrechtherhaltung der Lebensmittel-versorgung",null,null,null,null,"9.5.1"]
[null,"Frage / Beurteilungsbereich","Kommentare",null,null,null,""]
[null,null,null,null,null,null,""]
[null,"Empfohlene – nicht verbindliche – Bewertungsskala","Stellen Sie Nachweise bereit (Erklärungen etc.)",null,null,null,""]
[null,null,null,null,null,{"$f":"IF(E108=1,TRUE,FALSE)","v":false},""]
[null,null,null,null,null,{"$f":"IF(E108=2,TRUE,FALSE)","v":false},""]
[null,null,null,null,null,{"$f":"IF(E108=3,TRUE,FALSE)","v":false},""]
[null,null,null,null,null,{"$f":"IF(E108=4,TRUE,FALSE)","v":false},""]
[null,null,null,null,null,{"$f":"IF(E108=5,TRUE,FALSE)","v":false},""]
[null,null,null,null,null,{"$f":"IF(E108=6,TRUE,FALSE)","v":false},""]
[null,"Maßnahmen um maximale Resilienz zu erreichen","Verantwortliche Stelle","Zeitraum",null,null,""]
[null,null,null,null,null,null,""]
[null,null,null,null,null,null,""]
[null,"9.5.2 - Voraussichtliche Fähigkeit, den Bedarf für Unterkünfte/sichere Orte zu decken",null,null,null,null,"9.5.2"]
[null,"Frage / Beurteilungsbereich","Kommentare",null,null,null,""]
[null,null,null,null,null,null,""]
[null,"Empfohlene – nicht verbindliche – Bewertungsskala","Stellen Sie Nachweise bereit (Erklärungen etc.)",null,null,null,""]
[null,null,null,null,null,{"$f":"IF(E121=1,TRUE,FALSE)","v":false},""]
[null,null,null,null,null,{"$f":"IF(E121=2,TRUE,FALSE)","v":false},""]
[null,null,null,null,null,{"$f":"IF(E121=3,TRUE,FALSE)","v":false},""]
[null,null,null,null,null,{"$f":"IF(E121=4,TRUE,FALSE)","v":false},""]
[null,null,null,null,null,{"$f":"IF(E121=5,TRUE,FALSE)","v":false},""]
[null,null,null,null,null,{"$f":"IF(E121=6,TRUE,FALSE)","v":false},""]
[null,"Maßnahmen um maximale Resilienz zu erreichen","Verantwortliche Stelle","Zeitraum",null,null,""]
[null,null,null,null,null,null,""]
[null,null,null,null,null,null,""]
[null,"9.5.2.1",null,null,null,null,"9.5.2.1"]
[null,"Frage / Beurteilungsbereich","Kommentare",null,null,null,""]
[null,null,null,null,null,null,""]
[null,"Empfohlene – nicht verbindliche – Bewertungsskala","Stellen Sie Nachweise bereit (Erklärungen etc.)",null,null,null,""]
[null,null,null,null,null,{"$f":"IF(E134=1,TRUE,FALSE)","v":false},""]
[null,null,null,null,null,{"$f":"IF(E134=2,TRUE,FALSE)","v":false},""]
[null,null,null,null,null,{"$f":"IF(E134=3,TRUE,FALSE)","v":false},""]
[null,null,null,null,null,{"$f":"IF(E134=4,TRUE,FALSE)","v":false},""]
[null,null,null,null,null,{"$f":"IF(E134=5,TRUE,FALSE)","v":false},""]
[null,null,null,null,null,{"$f":"IF(E134=6,TRUE,FALSE)","v":false},""]
[null,"Maßnahmen um maximale Resilienz zu erreichen","Verantwortliche Stelle","Zeitraum",null,null,""]
[null,null,null,null,null,null,""]
[null,null,null,null,null,null,""]
[null,"9.5.3 - Fähigkeit, den voraussichtlichen Bedarf an Grundversorgungs-mitteln zu decken",null,null,null,null,"9.5.3"]
[null,"Frage / Beurteilungsbereich","Kommentare",null,null,null,""]
[null,null,null,null,null,null,""]
[null,"Empfohlene – nicht verbindliche – Bewertungsskala","Stellen Sie Nachweise bereit (Erklärungen etc.)",null,null,null,""]
[null,null,null,null,null,{"$f":"IF(E147=1,TRUE,FALSE)","v":false},""]
[null,null,null,null,null,{"$f":"IF(E147=2,TRUE,FALSE)","v":false},""]
[null,null,null,null,null,{"$f":"IF(E147=3,TRUE,FALSE)","v":false},""]
[null,null,null,null,null,{"$f":"IF(E147=4,TRUE,FALSE)","v":false},""]
[null,null,null,null,null,{"$f":"IF(E147=5,TRUE,FALSE)","v":false},""]
[null,null,null,null,null,{"$f":"IF(E147=6,TRUE,FALSE)","v":false},""]
[null,"Maßnahmen um maximale Resilienz zu erreichen","Verantwortliche Stelle","Zeitraum",null,null,""]
[null,null,null,null,null,null,""]
[null,null,null,null,null,null,""]
[null,"9.5.4 - Voraussichtliche Verfügbarkeit von Treibstoff",null,null,null,null,"9.5.4"]
[null,"Frage / Beurteilungsbereich","Kommentare",null,null,null,""]
[null,null,null,null,null,null,""]
[null,"Empfohlene – nicht verbindliche – Bewertungsskala","Stellen Sie Nachweise bereit (Erklärungen etc.)",null,null,null,""]
[null,null,null,null,null,{"$f":"IF(E160=1,TRUE,FALSE)","v":false},""]
[null,null,null,null,null,{"$f":"IF(E160=2,TRUE,FALSE)","v":false},""]
[null,null,null,null,null,{"$f":"IF(E160=3,TRUE,FALSE)","v":false},""]
[null,null,null,null,null,{"$f":"IF(E160=4,TRUE,FALSE)","v":false},""]
[null,null,null,null,null,{"$f":"IF(E160=5,TRUE,FALSE)","v":false},""]
[null,null,null,null,null,{"$f":"IF(E160=6,TRUE,FALSE)","v":false},""]
[null,"Maßnahmen um maximale Resilienz zu erreichen","Verantwortliche Stelle","Zeitraum",null,null,""]
[null,null,null,null,null,null,""]
[null,null,null,null,null,null,""]
[null,"9.6 - Interoperabilität und behördenübergreifendes Arbeiten",null,null,null,null,"9.6"]
[null,null,null,null,null,null,""]
[null,"9.6.1 - Interoperabilität kritischer Systeme und Verfahren mit benachbarten Kommunen/Staaten und anderen Regierungsebenen",null,null,null,null,"9.6.1"]
[null,"Frage / Beurteilungsbereich","Kommentare",null,null,null,""]
[null,null,null,null,null,null,""]
[null,"Empfohlene – nicht verbindliche – Bewertungsskala","Stellen Sie Nachweise bereit (Erklärungen etc.)",null,null,null,""]
[null,null,null,null,null,{"$f":"IF(E175=1,TRUE,FALSE)","v":false},""]
[null,null,null,null,null,{"$f":"IF(E175=2,TRUE,FALSE)","v":false},""]
[null,null,null,null,null,{"$f":"IF(E175=3,TRUE,FALSE)","v":false},""]
[null,null,null,null,null,{"$f":"IF(E175=4,TRUE,FALSE)","v":false},""]
[null,null,null,null,null,{"$f":"IF(E175=5,TRUE,FALSE)","v":false},""]
[null,null,null,null,null,{"$f":"IF(E175=6,TRUE,FALSE)","v":false},""]
[null,"Maßnahmen um maximale Resilienz zu erreichen","Verantwortliche Stelle","Zeitraum",null,null,""]
[null,null,null,null,null,null,""]
[null,null,null,null,null,null,""]
[null,"9.6.2 - Krisenstab",null,null,null,null,"9.6.2"]
[null,"Frage / Beurteilungsbereich","Kommentare",null,null,null,""]
[null,null,null,null,null,null,""]
[null,"Empfohlene – nicht verbindliche – Bewertungsskala","Stellen Sie Nachweise bereit (Erklärungen etc.)",null,null,null,""]
[null,null,null,null,null,{"$f":"IF(E188=1,TRUE,FALSE)","v":false},""]
[null,null,null,null,null,{"$f":"IF(E188=2,TRUE,FALSE)","v":false},""]
[null,null,null,null,null,{"$f":"IF(E188=3,TRUE,FALSE)","v":false},""]
[null,null,null,null,null,{"$f":"IF(E188=4,TRUE,FALSE)","v":false},""]
[null,null,null,null,null,{"$f":"IF(E188=5,TRUE,FALSE)","v":false},""]
[null,null,null,null,null,{"$f":"IF(E188=6,TRUE,FALSE)","v":false},""]
[null,"Maßnahmen um maximale Resilienz zu erreichen","Verantwortliche Stelle","Zeitraum",null,null,""]
[null,null,null,null,null,null,""]
[null,null,null,null,null,null,""]
[null,"9.6.3 - Koordinierung der Wiederherstellung nach dem Ereignis",null,null,null,null,"9.6.3"]
[null,"Frage / Beurteilungsbereich","Kommentare",null,null,null,""]
[null,null,null,null,null,null,""]
[null,"Empfohlene – nicht verbindliche – Bewertungsskala","Stellen Sie Nachweise bereit (Erklärungen etc.)",null,null,null,""]
[null,null,null,null,null,{"$f":"IF(E201=1,TRUE,FALSE)","v":false},""]
[null,null,null,null,null,{"$f":"IF(E201=2,TRUE,FALSE)","v":false},""]
[null,null,null,null,null,{"$f":"IF(E201=3,TRUE,FALSE)","v":false},""]
[null,null,null,null,null,{"$f":"IF(E201=4,TRUE,FALSE)","v":false},""]
[null,null,null,null,null,{"$f":"IF(E201=5,TRUE,FALSE)","v":false}]
[null,null,null,null,null,{"$f":"IF(E201=6,TRUE,FALSE)","v":false},""]
[null,"Maßnahmen um maximale Resilienz zu erreichen","Verantwortliche Stelle","Zeitraum",null,null,""]
[null,null,null,null,null,null,""]
[null,null,null,null,null,null,""]
[null,"9.7 - Übungen",null,null,null,null,"9.7"]
[null,null,null,null,null,null,""]
[null,"9.7.1 - Übungen und Proben - sowohl für die Öffentlichkeit als auch für Fachleute",null,null,null,null,"9.7.1"]
[null,"Frage / Beurteilungsbereich","Kommentare",null,null,null,""]
[null,null,null,null,null,null,""]
[null,"Empfohlene – nicht verbindliche – Bewertungsskala","Stellen Sie Nachweise bereit (Erklärungen etc.)",null,null,null,""]
[null,null,null,null,null,{"$f":"IF(E216=1,TRUE,FALSE)","v":false},""]
[null,null,null,null,null,{"$f":"IF(E216=2,TRUE,FALSE)","v":false},""]
[null,null,null,null,null,{"$f":"IF(E216=3,TRUE,FALSE)","v":false},""]
[null,null,null,null,null,{"$f":"IF(E216=4,TRUE,FALSE)","v":false},""]
[null,null,null,null,null,{"$f":"IF(E216=5,TRUE,FALSE)","v":false},""]
[null,null,null,null,null,{"$f":"IF(E216=6,TRUE,FALSE)","v":false},""]
[null,"Maßnahmen um maximale Resilienz zu erreichen","Verantwortliche Stelle","Zeitraum",null,null,""]
[null,null,null,null,null,null,""]
[null,null,null,null,null,null,""]
[null,"9.7.2  -Effektivität von Übungen und Schulungen",null,null,null,null,"9.7.2"]
[null,"Frage / Beurteilungsbereich","Kommentare",null,null,null,""]
[null,null,null,null,null,null,""]
[null,"Empfohlene – nicht verbindliche – Bewertungsskala","Stellen Sie Nachweise bereit (Erklärungen etc.)",null,null,null,""]
[null,null,null,null,null,{"$f":"IF(E229=1,TRUE,FALSE)","v":false},""]
[null,null,null,null,null,{"$f":"IF(E229=2,TRUE,FALSE)","v":false},""]
[null,null,null,null,null,{"$f":"IF(E229=3,TRUE,FALSE)","v":false},""]
[null,null,null,null,null,{"$f":"IF(E229=4,TRUE,FALSE)","v":false},""]
[null,null,null,null,null,{"$f":"IF(E229=5,TRUE,FALSE)","v":false},""]
[null,null,null,null,null,{"$f":"IF(E229=6,TRUE,FALSE)","v":false},""]
[null,"Maßnahmen um maximale Resilienz zu erreichen","Verantwortliche Stelle","Zeitraum",null,null,""]
[null,null,null,null,null,null,""]
[null,null,null,null,null,null,""]

{"sheet":"E10","index":12,"n_rows":664,"n_cols":7,"rows_kept":664,"cut":false,"hidden":false,"merged":[[5,2,5,3],[4,1,4,3],[6,2,6,3],[7,2,7,3],[8,2,13,3],[21,2,26,3],[20,2,20,3],[19,2,19,3],[18,2,18,3],[17,1,17,3],[30,1,30,3],[31,2,31,3],[32,2,32,3],[33,2,33,3],[34,2,39,3],[45,1,45,3],[46,2,46,3],[47,2,47,3],[48,2,48,3],[49,2,54,3]]}
[]
[null,null,null,null,null,null,""]
[null,"10.1 - Planung der Wiederherstellung nach dem Ereignis - vor dem Ereignis",null,null,null,null,"10.1"]
[null,null,null,null,null,null,""]
[null,"10.1.1 - Planung für die Wiederherstellung nach dem Ereignis und den wirtschaftlichen Neustart",null,null,null,null,"10.1.1"]
[null,"Frage / Beurteilungsbereich","Kommentare",null,null,null,""]
[null,null,null,null,null,null,""]
[null,"Empfohlene – nicht verbindliche – Bewertungsskala","Stellen Sie Nachweise bereit (Erklärungen etc.)",null,null,null,""]
[null,null,null,null,null,{"$f":"IF(E9=1,TRUE,FALSE)","v":false},""]
[null,null,null,null,null,{"$f":"IF(E9=2,TRUE,FALSE)","v":false},""]
[null,null,null,null,null,{"$f":"IF(E9=3,TRUE,FALSE)","v":false},""]
[null,null,null,null,null,{"$f":"IF(E9=4,TRUE,FALSE)","v":false},""]
[null,null,null,null,null,{"$f":"IF(E9=5,TRUE,FALSE)","v":false},""]
[null,null,null,null,null,{"$f":"IF(E9=6,TRUE,FALSE)","v":false},""]
[null,"Maßnahmen um maximale Resilienz zu erreichen","Verantwortliche Stelle","Zeitraum",null,null,""]
[null,null,null,null,null,null,""]
[null,null,null,null,null,null,""]
[null,"10.1.2 - Ausmaß der Konsultation der Interessengruppen zu den Plänen für die Wiederherstellung und den Neustart nach einem Ereignis",null,null,null,null,"10.1.2"]
[null,"Frage / Beurteilungsbereich","Kommentare",null,null,null,""]
[null,null,null,null,null,null,""]
[null,"Empfohlene – nicht verbindliche – Bewertungsskala","Stellen Sie Nachweise bereit (Erklärungen etc.)",null,null,null,""]
[null,null,null,null,null,{"$f":"IF(E22=1,TRUE,FALSE)","v":false},""]
[null,null,null,null,null,{"$f":"IF(E22=2,TRUE,FALSE)","v":false},""]
[null,null,null,null,null,{"$f":"IF(E22=3,TRUE,FALSE)","v":false},""]
[null,null,null,null,null,{"$f":"IF(E22=4,TRUE,FALSE)","v":false},""]
[null,null,null,null,null,{"$f":"IF(E22=5,TRUE,FALSE)","v":false},""]
[null,null,null,null,null,{"$f":"IF(E22=6,TRUE,FALSE)","v":false},""]
[null,"Maßnahmen um maximale Resilienz zu erreichen","Verantwortliche Stelle","Zeitraum",null,null,""]
[null,null,null,null,null,null,""]
[null,null,null,null,null,null,""]
[null,"10.1.3 - Schattenfinanz-regelungen für die Bearbeitung der eingehenden Hilfe und die Auszahlung der Mittel",null,null,null,null,"10.1.3"]
[null,"Frage / Beurteilungsbereich","Kommentare",null,null,null,""]
[null,null,null,null,null,null,""]
[null,"Empfohlene – nicht verbindliche – Bewertungsskala","Stellen Sie Nachweise bereit (Erklärungen etc.)",null,null,null,""]
[null,null,null,null,null,{"$f":"IF(E35=1,TRUE,FALSE)","v":false},""]
[null,null,null,null,null,{"$f":"IF(E35=2,TRUE,FALSE)","v":false},""]
[null,null,null,null,null,{"$f":"IF(E35=3,TRUE,FALSE)","v":false},""]
[null,null,null,null,null,{"$f":"IF(E35=4,TRUE,FALSE)","v":false},""]
[null,null,null,null,null,{"$f":"IF(E35=5,TRUE,FALSE)","v":false},""]
[null,null,null,null,null,{"$f":"IF(E35=6,TRUE,FALSE)","v":false},""]
[null,"Maßnahmen um maximale Resilienz zu erreichen","Verantwortliche Stelle","Zeitraum",null,null,""]
[null,null,null,null,null,null,""]
[null,null,null,null,null,null,""]
[null,"10.2 - Gelernte Lektionen / Lernschleifen",null,null,null,null,"10.2"]
[null,null,null,null,null,null,""]
[null,"10.2.1 - Lernschleifen",null,null,null,null,"10.2.1"]
[null,"Frage / Beurteilungsbereich","Kommentare",null,null,null,""]
[null,null,null,null,null,null,""]
[null,"Empfohlene – nicht verbindliche – Bewertungsskala","Stellen Sie Nachweise bereit (Erklärungen etc.)",null,null,null,""]
[null,null,null,null,null,{"$f":"IF(E50=1,TRUE,FALSE)","v":false},""]
[null,null,null,null,null,{"$f":"IF(E50=2,TRUE,FALSE)","v":false},""]
[null,null,null,null,null,{"$f":"IF(E50=3,TRUE,FALSE)","v":false},""]
[null,null,null,null,null,{"$f":"IF(E50=4,TRUE,FALSE)","v":false},""]
[null,null,null,null,null,{"$f":"IF(E50=5,TRUE,FALSE)","v":false},""]
[null,null,null,null,null,{"$f":"IF(E50=6,TRUE,FALSE)","v":false},""]
[null,"Maßnahmen um maximale Resilienz zu erreichen","Verantwortliche Stelle","Zeitraum",null,null,""]
[null,null,null,null,null,null,""]
[null,null,null,null,null,null,""]
[null,null,null,null,null,null,""]
[null,null,null,null,null,null,""]
[null,null,null,null,null,null,""]
[null,null,null,null,null,null,""]
[null,null,null,null,null,null,""]
[null,null,null,null,null,null,""]
[null,null,null,null,null,null,""]
[null,null,null,null,null,null,""]
[null,null,null,null,null,null,""]
[null,null,null,null,null,null,""]
[null,null,null,null,null,null,""]
[null,null,null,null,null,null,""]
[null,null,null,null,null,null,""]
[null,null,null,null,null,null,""]
[null,null,null,null,null,null,""]
[null,null,null,null,null,null,""]
[null,null,null,null,null,null,""]
[null,null,null,null,null,null,""]
[null,null,null,null,null,null,""]
[null,null,null,null,null,null,""]
[null,null,null,null,null,null,""]
[null,null,null,null,null,null,""]
[null,null,null,null,null,null,""]
[null,null,null,null,null,null,""]
[null,null,null,null,null,null,""]
[null,null,null,null,null,null,""]
[null,null,null,null,null,null,""]
[null,null,null,null,null,null,""]
[null,null,null,null,null,null,""]
[null,null,null,null,null,null,""]
[null,null,null,null,null,null,""]
[null,null,null,null,null,null,""]
[null,null,null,null,null,null,""]
[null,null,null,null,null,null,""]
[null,null,null,null,null,null,""]
[null,null,null,null,null,null,""]
[null,null,null,null,null,null,""]
[null,null,null,null,null,null,""]
[null,null,null,null,null,null,""]
[null,null,null,null,null,null,""]
[null,null,null,null,null,null,""]
[null,null,null,null,null,null,""]
[null,null,null,null,null,null,""]
[null,null,null,null,null,null,""]
[null,null,null,null,null,null,""]
[null,null,null,null,null,null,""]
[null,null,null,null,null,null,""]
[null,null,null,null,null,null,""]
[null,null,null,null,null,null,""]
[null,null,null,null,null,null,""]
[null,null,null,null,null,null,""]
[null,null,null,null,null,null,""]
[null,null,null,null,null,null,""]
[null,null,null,null,null,null,""]
[null,null,null,null,null,null,""]
[null,null,null,null,null,null,""]
[null,null,null,null,null,null,""]
[null,null,null,null,null,null,""]
[null,null,null,null,null,null,""]
[null,null,null,null,null,null,""]
[null,null,null,null,null,null,""]
[null,null,null,null,null,null,""]
[null,null,null,null,null,null,""]
[null,null,null,null,null,null,""]
[null,null,null,null,null,null,""]
[null,null,null,null,null,null,""]
[null,null,null,null,null,null,""]
[null,null,null,null,null,null,""]
[null,null,null,null,null,null,""]
[null,null,null,null,null,null,""]
[null,null,null,null,null,null,""]
[null,null,null,null,null,null,""]
[null,null,null,null,null,null,""]
[null,null,null,null,null,null,""]
[null,null,null,null,null,null,""]
[null,null,null,null,null,null,""]
[null,null,null,null,null,null,""]
[null,null,null,null,null,null,""]
[null,null,null,null,null,null,""]
[null,null,null,null,null,null,""]
[null,null,null,null,null,null,""]
[null,null,null,null,null,null,""]
[null,null,null,null,null,null,""]
[null,null,null,null,null,null,""]
[null,null,null,null,null,null,""]
[null,null,null,null,null,null,""]
[null,null,null,null,null,null,""]
[null,null,null,null,null,null,""]
[null,null,null,null,null,null,""]
[null,null,null,null,null,null,""]
[null,null,null,null,null,null,""]
[null,null,null,null,null,null,""]
[null,null,null,null,null,null,""]
[null,null,null,null,null,null,""]
[null,null,null,null,null,null,""]
[null,null,null,null,null,null,""]
[null,null,null,null,null,null,""]
[null,null,null,null,null,null,""]
[null,null,null,null,null,null,""]
[null,null,null,null,null,null,""]
[null,null,null,null,null,null,""]
[null,null,null,null,null,null,""]
[null,null,null,null,null,null,""]
[null,null,null,null,null,null,""]
[null,null,null,null,null,null,""]
[null,null,null,null,null,null,""]
[null,null,null,null,null,null,""]
[null,null,null,null,null,null,""]
[null,null,null,null,null,null,""]
[null,null,null,null,null,null,""]
[null,null,null,null,null,null,""]
[null,null,null,null,null,null,""]
[null,null,null,null,null,null,""]
[null,null,null,null,null,null,""]
[null,null,null,null,null,null,""]
[null,null,null,null,null,null,""]
[null,null,null,null,null,null,""]
[null,null,null,null,null,null,""]
[null,null,null,null,null,null,""]
[null,null,null,null,null,null,""]
[null,null,null,null,null,null,""]
[null,null,null,null,null,null,""]
[null,null,null,null,null,null,""]
[null,null,null,null,null,null,""]
[null,null,null,null,null,null,""]
[null,null,null,null,null,null,""]
[null,null,null,null,null,null,""]
[null,null,null,null,null,null,""]
[null,null,null,null,null,null,""]
[null,null,null,null,null,null,""]
[null,null,null,null,null,null,""]
[null,null,null,null,null,null,""]
[null,null,null,null,null,null,""]
[null,null,null,null,null,null,""]
[null,null,null,null,null,null,""]
[null,null,null,null,null,null,""]
[null,null,null,null,null,null,""]
[null,null,null,null,null,null,""]
[null,null,null,null,null,null,""]
[null,null,null,null,null,null,""]
[null,null,null,null,null,null,""]
[null,null,null,null,null,null,""]
[null,null,null,null,null,null,""]
[null,null,null,null,null,null,""]
[null,null,null,null,null,null,""]
[null,null,null,null,null,null,""]
[null,null,null,null,null,null,""]
[null,null,null,null,null,null,""]
[null,null,null,null,null,null,""]
[null,null,null,null,null,null,""]
[null,null,null,null,null,null,""]
[null,null,null,null,null,null,""]
[null,null,null,null,null,null,""]
[null,null,null,null,null,null,""]
[null,null,null,null,null,null,""]
[null,null,null,null,null,null,""]
[null,null,null,null,null,null,""]
[null,null,null,null,null,null,""]
[null,null,null,null,null,null,""]
[null,null,null,null,null,null,""]
[null,null,null,null,null,null,""]
[null,null,null,null,null,null,""]
[null,null,null,null,null,null,""]
[null,null,null,null,null,null,""]
[null,null,null,null,null,null,""]
[null,null,null,null,null,null,""]
[null,null,null,null,null,null,""]
[null,null,null,null,null,null,""]
[null,null,null,null,null,null,""]
[null,null,null,null,null,null,""]
[null,null,null,null,null,null,""]
[null,null,null,null,null,null,""]
[null,null,null,null,null,null,""]
[null,null,null,null,null,null,""]
[null,null,null,null,null,null,""]
[null,null,null,null,null,null,""]
[null,null,null,null,null,null,""]
[null,null,null,null,null,null,""]
[null,null,null,null,null,null,""]
[null,null,null,null,null,null,""]
[null,null,null,null,null,null,""]
[null,null,null,null,null,null,""]
[null,null,null,null,null,null,""]
[null,null,null,null,null,null,""]
[null,null,null,null,null,null,""]
[null,null,null,null,null,null,""]
[null,null,null,null,null,null,""]
[null,null,null,null,null,null,""]
[null,null,null,null,null,null,""]
[null,null,null,null,null,null,""]
[null,null,null,null,null,null,""]
[null,null,null,null,null,null,""]
[null,null,null,null,null,null,""]
[null,null,null,null,null,null,""]
[null,null,null,null,null,null,""]
[null,null,null,null,null,null,""]
[null,null,null,null,null,null,""]
[null,null,null,null,null,null,""]
[null,null,null,null,null,null,""]
[null,null,null,null,null,null,""]
[null,null,null,null,null,null,""]
[null,null,null,null,null,null,""]
[null,null,null,null,null,null,""]
[null,null,null,null,null,null,""]
[null,null,null,null,null,null,""]
[null,null,null,null,null,null,""]
[null,null,null,null,null,null,""]
[null,null,null,null,null,null,""]
[null,null,null,null,null,null,""]
[null,null,null,null,null,null,""]
[null,null,null,null,null,null,""]
[null,null,null,null,null,null,""]
[null,null,null,null,null,null,""]
[null,null,null,null,null,null,""]
[null,null,null,null,null,null,""]
[null,null,null,null,null,null,""]
[null,null,null,null,null,null,""]
[null,null,null,null,null,null,""]
[null,null,null,null,null,null,""]
[null,null,null,null,null,null,""]
[null,null,null,null,null,null,""]
[null,null,null,null,null,null,""]
[null,null,null,null,null,null,""]
[null,null,null,null,null,null,""]
[null,null,null,null,null,null,""]
[null,null,null,null,null,null,""]
[null,null,null,null,null,null,""]
[null,null,null,null,null,null,""]
[null,null,null,null,null,null,""]
[null,null,null,null,null,null,""]
[null,null,null,null,null,null,""]
[null,null,null,null,null,null,""]
[null,null,null,null,null,null,""]
[null,null,null,null,null,null,""]
[null,null,null,null,null,null,""]
[null,null,null,null,null,null,""]
[null,null,null,null,null,null,""]
[null,null,null,null,null,null,""]
[null,null,null,null,null,null,""]
[null,null,null,null,null,null,""]
[null,null,null,null,null,null,""]
[null,null,null,null,null,null,""]
[null,null,null,null,null,null,""]
[null,null,null,null,null,null,""]
[null,null,null,null,null,null,""]
[null,null,null,null,null,null,""]
[null,null,null,null,null,null,""]
[null,null,null,null,null,null,""]
[null,null,null,null,null,null,""]
[null,null,null,null,null,null,""]
[null,null,null,null,null,null,""]
[null,null,null,null,null,null,""]
[null,null,null,null,null,null,""]
[null,null,null,null,null,null,""]
[null,null,null,null,null,null,""]
[null,null,null,null,null,null,""]
[null,null,null,null,null,null,""]
[null,null,null,null,null,null,""]
[null,null,null,null,null,null,""]
[null,null,null,null,null,null,""]
[null,null,null,null,null,null,""]
[null,null,null,null,null,null,""]
[null,null,null,null,null,null,""]
[null,null,null,null,null,null,""]
[null,null,null,null,null,null,""]
[null,null,null,null,null,null,""]
[null,null,null,null,null,null,""]
[null,null,null,null,null,null,""]
[null,null,null,null,null,null,""]
[null,null,null,null,null,null,""]
[null,null,null,null,null,null,""]
[null,null,null,null,null,null,""]
[null,null,null,null,null,null,""]
[null,null,null,null,null,null,""]
[null,null,null,null,null,null,""]
[null,null,null,null,null,null,""]
[null,null,null,null,null,null,""]
[null,null,null,null,null,null,""]
[null,null,null,null,null,null,""]
[null,null,null,null,null,null,""]
[null,null,null,null,null,null,""]
[null,null,null,null,null,null,""]
[null,null,null,null,null,null,""]
[null,null,null,null,null,null,""]
[null,null,null,null,null,null,""]
[null,null,null,null,null,null,""]
[null,null,null,null,null,null,""]
[null,null,null,null,null,null,""]
[null,null,null,null,null,null,""]
[null,null,null,null,null,null,""]
[null,null,null,null,null,null,""]
[null,null,null,null,null,null,""]
[null,null,null,null,null,null,""]
[null,null,null,null,null,null,""]
[null,null,null,null,null,null,""]
[null,null,null,null,null,null,""]
[null,null,null,null,null,null,""]
[null,null,null,null,null,null,""]
[null,null,null,null,null,null,""]
[null,null,null,null,null,null,""]
[null,null,null,null,null,null,""]
[null,null,null,null,null,null,""]
[null,null,null,null,null,null,""]
[null,null,null,null,null,null,""]
[null,null,null,null,null,null,""]
[null,null,null,null,null,null,""]
[null,null,null,null,null,null,""]
[null,null,null,null,null,null,""]
[null,null,null,null,null,null,""]
[null,null,null,null,null,null,""]
[null,null,null,null,null,null,""]
[null,null,null,null,null,null,""]
[null,null,null,null,null,null,""]
[null,null,null,null,null,null,""]
[null,null,null,null,null,null,""]
[null,null,null,null,null,null,""]
[null,null,null,null,null,null,""]
[null,null,null,null,null,null,""]
[null,null,null,null,null,null,""]
[null,null,null,null,null,null,""]
[null,null,null,null,null,null,""]
[null,null,null,null,null,null,""]
[null,null,null,null,null,null,""]
[null,null,null,null,null,null,""]
[null,null,null,null,null,null,""]
[null,null,null,null,null,null,""]
[null,null,null,null,null,null,""]
[null,null,null,null,null,null,""]
[null,null,null,null,null,null,""]
[null,null,null,null,null,null,""]
[null,null,null,null,null,null,""]
[null,null,null,null,null,null,""]
[null,null,null,null,null,null,""]
[null,null,null,null,null,null,""]
[null,null,null,null,null,null,""]
[null,null,null,null,null,null,""]
[null,null,null,null,null,null,""]
[null,null,null,null,null,null,""]
[null,null,null,null,null,null,""]
[null,null,null,null,null,null,""]
[null,null,null,null,null,null,""]
[null,null,null,null,null,null,""]
[null,null,null,null,null,null,""]
[null,null,null,null,null,null,""]
[null,null,null,null,null,null,""]
[null,null,null,null,null,null,""]
[null,null,null,null,null,null,""]
[null,null,null,null,null,null,""]
[null,null,null,null,null,null,""]
[null,null,null,null,null,null,""]
[null,null,null,null,null,null,""]
[null,null,null,null,null,null,""]
[null,null,null,null,null,null,""]
[null,null,null,null,null,null,""]
[null,null,null,null,null,null,""]
[null,null,null,null,null,null,""]
[null,null,null,null,null,null,""]
[null,null,null,null,null,null,""]
[null,null,null,null,null,null,""]
[null,null,null,null,null,null,""]
[null,null,null,null,null,null,""]
[null,null,null,null,null,null,""]
[null,null,null,null,null,null,""]
[null,null,null,null,null,null,""]
[null,null,null,null,null,null,""]
[null,null,null,null,null,null,""]
[null,null,null,null,null,null,""]
[null,null,null,null,null,null,""]
[null,null,null,null,null,null,""]
[null,null,null,null,null,null,""]
[null,null,null,null,null,null,""]
[null,null,null,null,null,null,""]
[null,null,null,null,null,null,""]
[null,null,null,null,null,null,""]
[null,null,null,null,null,null,""]
[null,null,null,null,null,null,""]
[null,null,null,null,null,null,""]
[null,null,null,null,null,null,""]
[null,null,null,null,null,null,""]
[null,null,null,null,null,null,""]
[null,null,null,null,null,null,""]
[null,null,null,null,null,null,""]
[null,null,null,null,null,null,""]
[null,null,null,null,null,null,""]
[null,null,null,null,null,null,""]
[null,null,null,null,null,null,""]
[null,null,null,null,null,null,""]
[null,null,null,null,null,null,""]
[null,null,null,null,null,null,""]
[null,null,null,null,null,null,""]
[null,null,null,null,null,null,""]
[null,null,null,null,null,null,""]
[null,null,null,null,null,null,""]
[null,null,null,null,null,null,""]
[null,null,null,null,null,null,""]
[null,null,null,null,null,null,""]
[null,null,null,null,null,null,""]
[null,null,null,null,null,null,""]
[null,null,null,null,null,null,""]
[null,null,null,null,null,null,""]
[null,null,null,null,null,null,""]
[null,null,null,null,null,null,""]
[null,null,null,null,null,null,""]
[null,null,null,null,null,null,""]
[null,null,null,null,null,null,""]
[null,null,null,null,null,null,""]
[null,null,null,null,null,null,""]
[null,null,null,null,null,null,""]
[null,null,null,null,null,null,""]
[null,null,null,null,null,null,""]
[null,null,null,null,null,null,""]
[null,null,null,null,null,null,""]
[null,null,null,null,null,null,""]
[null,null,null,null,null,null,""]
[null,null,null,null,null,null,""]
[null,null,null,null,null,null,""]
[null,null,null,null,null,null,""]
[null,null,null,null,null,null,""]
[null,null,null,null,null,null,""]
[null,null,null,null,null,null,""]
[null,null,null,null,null,null,""]
[null,null,null,null,null,null,""]
[null,null,null,null,null,null,""]
[null,null,null,null,null,null,""]
[null,null,null,null,null,null,""]
[null,null,null,null,null,null,""]
[null,null,null,null,null,null,""]
[null,null,null,null,null,null,""]
[null,null,null,null,null,null,""]
[null,null,null,null,null,null,""]
[null,null,null,null,null,null,""]
[null,null,null,null,null,null,""]
[null,null,null,null,null,null,""]
[null,null,null,null,null,null,""]
[null,null,null,null,null,null,""]
[null,null,null,null,null,null,""]
[null,null,null,null,null,null,""]
[null,null,null,null,null,null,""]
[null,null,null,null,null,null,""]
[null,null,null,null,null,null,""]
[null,null,null,null,null,null,""]
[null,null,null,null,null,null,""]
[null,null,null,null,null,null,""]
[null,null,null,null,null,null,""]
[null,null,null,null,null,null,""]
[null,null,null,null,null,null,""]
[null,null,null,null,null,null,""]
[null,null,null,null,null,null,""]
[null,null,null,null,null,null,""]
[null,null,null,null,null,null,""]
[null,null,null,null,null,null,""]
[null,null,null,null,null,null,""]
[null,null,null,null,null,null,""]
[null,null,null,null,null,null,""]
[null,null,null,null,null,null,""]
[null,null,null,null,null,null,""]
[null,null,null,null,null,null,""]
[null,null,null,null,null,null,""]
[null,null,null,null,null,null,""]
[null,null,null,null,null,null,""]
[null,null,null,null,null,null,""]
[null,null,null,null,null,null,""]
[null,null,null,null,null,null,""]
[null,null,null,null,null,null,""]
[null,null,null,null,null,null,""]
[null,null,null,null,null,null,""]
[null,null,null,null,null,null,""]
[null,null,null,null,null,null,""]
[null,null,null,null,null,null,""]
[null,null,null,null,null,null,""]
[null,null,null,null,null,null,""]
[null,null,null,null,null,null,""]
[null,null,null,null,null,null,""]
[null,null,null,null,null,null,""]
[null,null,null,null,null,null,""]
[null,null,null,null,null,null,""]
[null,null,null,null,null,null,""]
[null,null,null,null,null,null,""]
[null,null,null,null,null,null,""]
[null,null,null,null,null,null,""]
[null,null,null,null,null,null,""]
[null,null,null,null,null,null,""]
[null,null,null,null,null,null,""]
[null,null,null,null,null,null,""]
[null,null,null,null,null,null,""]
[null,null,null,null,null,null,""]
[null,null,null,null,null,null,""]
[null,null,null,null,null,null,""]
[null,null,null,null,null,null,""]
[null,null,null,null,null,null,""]
[null,null,null,null,null,null,""]
[null,null,null,null,null,null,""]
[null,null,null,null,null,null,""]
[null,null,null,null,null,null,""]
[null,null,null,null,null,null,""]
[null,null,null,null,null,null,""]
[null,null,null,null,null,null,""]
[null,null,null,null,null,null,""]
[null,null,null,null,null,null,""]
[null,null,null,null,null,null,""]
[null,null,null,null,null,null,""]
[null,null,null,null,null,null,""]
[null,null,null,null,null,null,""]
[null,null,null,null,null,null,""]
[null,null,null,null,null,null,""]
[null,null,null,null,null,null,""]
[null,null,null,null,null,null,""]
[null,null,null,null,null,null,""]
[null,null,null,null,null,null,""]
[null,null,null,null,null,null,""]
[null,null,null,null,null,null,""]
[null,null,null,null,null,null,""]
[null,null,null,null,null,null,""]
[null,null,null,null,null,null,""]
[null,null,null,null,null,null,""]
[null,null,null,null,null,null,""]
[null,null,null,null,null,null,""]
[null,null,null,null,null,null,""]
[null,null,null,null,null,null,""]
[null,null,null,null,null,null,""]
[null,null,null,null,null,null,""]
[null,null,null,null,null,null,""]
[null,null,null,null,null,null,""]
[null,null,null,null,null,null,""]
[null,null,null,null,null,null,""]
[null,null,null,null,null,null,""]
[null,null,null,null,null,null,""]
[null,null,null,null,null,null,""]
[null,null,null,null,null,null,""]
[null,null,null,null,null,null,""]
[null,null,null,null,null,null,""]
[null,null,null,null,null,null,""]
[null,null,null,null,null,null,""]
[null,null,null,null,null,null,""]
[null,null,null,null,null,null,""]
[null,null,null,null,null,null,""]
[null,null,null,null,null,null,""]
[null,null,null,null,null,null,""]
[null,null,null,null,null,null,""]
[null,null,null,null,null,null,""]
[null,null,null,null,null,null,""]
[null,null,null,null,null,null,""]
[null,null,null,null,null,null,""]
[null,null,null,null,null,null,""]
[null,null,null,null,null,null,""]
[null,null,null,null,null,null,""]
[null,null,null,null,null,null,""]
[null,null,null,null,null,null,""]
[null,null,null,null,null,null,""]
[null,null,null,null,null,null,""]
[null,null,null,null,null,null,""]
[null,null,null,null,null,null,""]
[null,null,null,null,null,null,""]
[null,null,null,null,null,null,""]
[null,null,null,null,null,null,""]
[null,null,null,null,null,null,""]
[null,null,null,null,null,null,""]
[null,null,null,null,null,null,""]
[null,null,null,null,null,null,""]
[null,null,null,null,null,null,""]
[null,null,null,null,null,null,""]
[null,null,null,null,null,null,""]
[null,null,null,null,null,null,""]
[null,null,null,null,null,null,""]
[null,null,null,null,null,null,""]
[null,null,null,null,null,null,""]
[null,null,null,null,null,null,""]
[null,null,null,null,null,null,""]
[null,null,null,null,null,null,""]
[null,null,null,null,null,null,""]
[null,null,null,null,null,null,""]
[null,null,null,null,null,null,""]
[null,null,null,null,null,null,""]
[null,null,null,null,null,null,""]
[null,null,null,null,null,null,""]
[null,null,null,null,null,null,""]
[null,null,null,null,null,null,""]
[null,null,null,null,null,null,""]
[null,null,null,null,null,null,""]
[null,null,null,null,null,null,""]
[null,null,null,null,null,null,""]
[null,null,null,null,null,null,""]
[null,null,null,null,null,null,""]
[null,null,null,null,null,null,""]
[null,null,null,null,null,null,""]
[null,null,null,null,null,null,""]
[null,null,null,null,null,null,""]
[null,null,null,null,null,null,""]
[null,null,null,null,null,null,""]
[null,null,null,null,null,null,""]
[null,null,null,null,null,null,""]
[null,null,null,null,null,null,""]
[null,null,null,null,null,null,""]
[null,null,null,null,null,null,""]
[null,null,null,null,null,null,""]
[null,null,null,null,null,null,""]
[null,null,null,null,null,null,""]
[null,null,null,null,null,null,""]
[null,null,null,null,null,null,""]
[null,null,null,null,null,null,""]
[null,null,null,null,null,null,""]
[null,null,null,null,null,null,""]
[null,null,null,null,null,null,""]
[null,null,null,null,null,null,""]
[null,null,null,null,null,null,""]
[null,null,null,null,null,null,""]

{"sheet":"About","index":13,"n_rows":0,"n_cols":0,"rows_kept":0,"cut":false,"hidden":false,"merged":[]}